Workbook

Sheet HOME
D1: 2020 v2 Multifamily Application
D2: PNM Business Energy Efficiency Programs | K2: Add comments below:
A3: Why improve energy efficiency?
B17: Directly improves profitability by cutting operating costs | E17: Distinguishes your business as an energy efficiency steward in the community | H17: Qualifies your business for rebates that can cover portions of the upgrade cost
A18: Application Process | F18: Click on a quick link below:
A20: 1. | B20: Submit a Pre-Notification Application to reserve funding (if required). | F20: Administrative
A23: 2. | B23: Install the qualified technology.
A25: 3. | B25: Complete, sign and submit Final Application with all required documentation within 6 months of project completion.
F26: Worksheets
A30: 4. | B30: The incentive check will be sent 4 to 6 weeks after approval of the Final Application.
A39: Contact Our PNM Business Energy Efficiency Team
A41: 320 Gold Avenue SW, Ste 500 Albuquerque, NM 87102 | D41: (505) 938-9400 Main (505) 938-9401 Fax | F41: energyefficiency@pnm.com
F42: www.pnmenergyefficiency.com

Sheet Applicant Info
D1: APPLICANT INFORMATION | J1: For office use only:
J2: Application # | K2: Revision #
A4: Application Type: | G4: Check ONE box below:
C6: Retrofit | H6: Pre-Notification | J6: Date | P6: =IF(G6>0,"Yes",) -> 0
H7: or
H8: Final Application | J8: Date | O8: New pre notification checkbox flag: | P8: FALSE
A10: Customer Information | O10: Multifacility checkbox flag: | P10: FALSE
A11: PNM Account Number where measures installed* | O11: SOW Checkbox | P11: FALSE
P12: TRUE
C13: This Application represents multiple accounts / premises | G13: Enter number of Accounts / Premises -------> | N13: =is ->  | O13: IQ Checkbox | P13: FALSE
C14: 2. If yes: Complete Multi-Facility Worksheet -------> CLICK HERE
C15: This project includes lighting measures as part of the scope
C16: Scope of Work is REQUIRED for Lighting measures ----> Click Here
C17: Income Qualifier
C18: Check if your property qualifies for an Income Qualifier Bonus----> Click here
A19: Building Type*
A20: =M21 -> Multifamily | M20: Business Type | O20: Tax Status | Q20: State
A21: Name of Property Owner* | G21: Name Exactly as it Appears on Your Utility Bill* | M21: Multifamily | O21: Corporation (Inc, PC, etc.) | Q21: AL
O22: Government Agency | Q22: AK
A23: Name of Property Manager* | G23: Name of Multifamily Property* | O23: Individual | Q23: AZ
O24: Partnership | Q24: AR
A25: Name of Contact Person* | G25: Title* | O25: Exempt | Q25: CA
Q26: CO
A27: Telephone #* | G27: Fax # | Q27: CT
A28: Email Address* | Q28: DE
A29: Address Where Measures Installed* | Q29: FL
A30: City Where Measures Installed* | G30: State* | I30: =IF(E30="","","NM") ->  | J30: Zip* | Q30: GA
A31: Mailing Address* | Q31: HI
A32: City* | G32: State* | J32: Zip* | Q32: ID
A33: Taxpayer ID Number (SSN/FEIN)* | G33: Tax Status* | Q33: IL
A34: Contractor Information | Q34: IN
A35: Contracting Company* | Q35: IA
A36: Contractor Name* | G36: Contractor Phone Number* | Q36: KS
A37: Contractor Email Address* | Q37: KY
A38: Contractor Mailing Address* | Q38: LA
A39: City* | G39: State* | J39: Zip* | Q39: ME
A40: Third Party Payment Release | Q40: MD
Q41: MA
C42: I request that the incentive check be sent to the third party below | H42: Check here if the third party payee is the contractor (Contractor must be a PNM Authorized Contractor to be eligible for third party payment) | Q42: MI
Q43: MN
A44: Name of Third Party* | Q44: MS
A45: Name of Third Party Contact Person* | G45: Title* | Q45: MO
Q46: MT
A47: Third Party Phone #* | G47: Fax # | Q47: NE
A48: Third Party Mailing Address* | Q48: NV
A49: Third Party City* | G49: State* | J49: Zip* | Q49: NH
A50: Third Party Email Address* | Q50: NJ
A51: Third Party Taxpayer ID # (SSN/FEIN)* | G51: Tax Status* | Q51: NM
A52: Incentive Summary | Q52: NY
A53: Total Incentive Requested | F53: Total Project Cost PRE-TAX * REQUIRED * | J53: =IF(P8=TRUE, "Estimated Project Completion Date", "Project Completion Date") -> Project Completion Date | Q53: NC
A54: =MIN(H89, F54*0.5,400000) -> 0 | Q54: ND
Q55: OH
A56: Incentive requested + 20% Bonus (valid 7/1/2020-12/31/2020 ONLY) *Any bonus offers are a limited time only, while funds are available and can be terminated at any time at the program's discretion. | Q56: OK
A57: =MIN($H$89*1.2,$F$54*0.5,400000) -> 0 | Q57: OR
A58: AGREEMENT AND AUTHORIZATION | Q58: PA
A59: I understand that in the event funds are reserved based on a pre-notification, the payment of incentives will be based upon the Final Application and program terms and conditions, and that the PNM Business Energy Efficiency program is subject to change or cancellation at any time and without notice. PNM is not responsible for any lost, late, stolen, ineligible, illegible, misdirected or postage-due mail. All completed submissions become the property of PNM and will not be returned. PNM makes no guarantees about the availability of products or rebate forms. By participating in the PNM Business Energy Efficiency program, customers agree to waive any claims and release PNM from any liability for damages of any kind. Rebates are funded by a charge on PNM electric customer bills. | Q59: RI
A60: =" I, " &A22& " , certify that " &G24& " qualifies as a ''Low-Income/Affordable Housing'' community in the State of New Mexico. " &G24& " participates in at least one of the following programs to qualify for the Low-Income Bonus provided by the PNM Business Energy Efficiency Programs:" -> I, , certify that qualifies as a ''Low-Income/Affordable Housing'' community in the State of New Mexico. participates in at least one of the following programs to qualify for the Low-Income Bonus provided by the PNM Business Energy Efficiency Programs: | Q60: SC
A61: For a property to be considered multifamily, it must consist of five or more attached dwelling units or a complex consisting of two or more buildings with four or more dwelling units within each building. For a multifamily property to be considered “Income Qualified” in this program, it must be listed on the MFA Housing New Mexico website. The Income Qualified Directory is also available on a tab in this document. | Q61: SD
A62: ="The signature on this application authorizes " &A24& " to act on behalf of " &A22& " with the PNM Business Energy Efficiency Program. " &A22& " hereby designates, appoints and empowers " &A24& " to communicate and sign on behalf of " &A22& " in the PNM Business Energy Efficiency Program." -> The signature on this application authorizes to act on behalf of with the PNM Business Energy Efficiency Program. hereby designates, appoints and empowers to communicate and sign on behalf of in the PNM Business Energy Efficiency Program. | Q62: TN
A63: I have read and understand the program requirements, measure specifications, and Terms & Conditions set forth in this application and agree to abide by those requirements. Furthermore, I concur that I must meet all eligibility criteria in order to be paid under this program. | Q63: TX
A64: As an eligible customer, I verify that the signature below is my own and that the information is correct. I am requesting consideration for participation under this program. By signing this agreement I attest that I understand and agree to abide by all Program terms and conditions. | Q64: UT
A65: Customer Signature (PNM Customer) | H65: Third Party Signature | Q65: VT
F66: Please sign by hand or via DocuSign® | Q66: VA
A67: Print Customer Name | H67: Print Third Party Name | Q67: WA
Q68: WI
A69: Date | H69: Date | Q69: WV
Q70: WY
M76: =(H78-F78) -> 0
B77: For Office Use Only | F77: Low Income Bonus | H77: Total Incentive | M77: 0
B78: Retrofit Lighting Interior | F78: =Lighting!N13 -> 0 | H78: =Lighting!N14 -> 0 | M78: 0
B79: Lighting-LED or Fluorescent replacing HID | F79: =Lighting!J27 -> 0 | H79: =Lighting!L27 -> 0 | M79: 0
B80: Lighting-LED replacing Fluorescent | F80: =Lighting!J71 -> 0 | H80: =Lighting!L71 -> 0 | M80: 0
B81: Lighting-Controlled LED Fixures | F81: =Lighting!F115 -> 0 | H81: =Lighting!H115 -> 0
B82: HVAC | F82: ='HVAC & Smart Thermostats'!I43 -> 0 | H82: ='HVAC & Smart Thermostats'!I44 -> 0 | M82: 0
B83: Smart Thermostats | F83: ='HVAC & Smart Thermostats'!G59 -> 0 | H83: ='HVAC & Smart Thermostats'!G60 ->  | M83: 0
B84: Windows Incentive | F84: =Windows!J17 -> 0 | H84: =Windows!J18 -> 0 | M84: 0
B85: Motors Incentives | F85: ='Motors, VSDs & Pool Pumps'!I36 -> 0 | H85: ='Motors, VSDs & Pool Pumps'!I37 -> 0 | M85: 0
B86: Pool Pumps Incentive | F86: ='Motors, VSDs & Pool Pumps'!J47 -> 0 | H86: ='Motors, VSDs & Pool Pumps'!J48 -> 0 | M86: 0
B87: VSD Incentives | F87: ='Motors, VSDs & Pool Pumps'!J62 -> 0 | H87: ='Motors, VSDs & Pool Pumps'!J63 -> 0 | M87: 0
B88: Custom Incentives | F88: =Custom!I51 -> 0 | H88: =Custom!I52 -> 0
B89: Total------> | F89: =SUM(F78:G88) -> 0 | H89: =SUM(H78:I88) -> 0

Sheet Checklist
D1: APPLICATION CHECKLIST
H50: http://www.pnmenergyefficiency.com
A61: APPLICATION CHECKLIST (CONTINUED)

Sheet Terms & Conditions
D1: TERMS & CONDITIONS

Sheet Multi-Facility
B1: LIGHTING MULTIPLE FACILITY WORKSHEET
A2: Use this worksheet ONLY if installing the SAME measure in facilities with different service addresses and unique account numbers.
A3: If a project encompasses multiple buildings at the same premise, this worksheet is not required.
A4: For official use only | B4: Pre-Notification Date: | C4: =IF(ISBLANK('Applicant Info'!$K$6)," ",'Applicant Info'!$K$6) ->  | D4: Final Application Date: | E4: =IF(ISBLANK('Applicant Info'!$K$8)," ",'Applicant Info'!$K$8) -> 
A5: Application # | B5: =IF('Applicant Info'!J3="","",'Applicant Info'!J3) ->  | C5: Business Name: | D5: =IF(ISBLANK('Applicant Info'!$A$22)," ",'Applicant Info'!$A$22) -> 
A6: Prepared by: | B6: =IF(ISBLANK('Applicant Info'!$A$26)," ",'Applicant Info'!$A$26) ->  | D6: Contact #: | E6: ='Applicant Info'!$D$27 -> 0
A8: Project Locations
A9: Service Address | B9: Account # | C9: Replacement Equipment Type 1 | D9: Replacement Equipment Type 2 | E9: Replacement Equipment Qty | F9: Existing Equipment Description | G9: Existing Equipment Qty
A35: Total | E35: =SUM(E10:E34) -> 0 | G35: =SUM(G10:G34) -> 0
A200: Measure Type 1
A201: Interior_Lighting
A202: Exterior_Lighting
A203: _24_7_Lighting
A204: Plug_Load_Controls
A205: Custom
A206: HVAC
A207: Envelope
A208: Refrigeration
A209: Food_Service_Equipment
A210: Motors
A211: VSDs
A213: Measure Type 1 | B213: Measure Type 2 | C213: Unit | D213: Incentive | F213: Measure Type 1
A214: 24/7 Lighting | B214: T8, T5 or LED Replacing HID Lamp Only | C214: Watts Reduced | D214: 0.25 | F214: Interior Lighting
A215: 24/7 Lighting | B215: T8, T5 or LED Replacing HID, Entire Fixture | C215: Watts Reduced | D215: 0.5 | F215: Exterior Lighting
A216: 24/7 Lighting | B216: T8, T5 or LED Replacing HID, Retrofit Kit | C216: Watts Reduced | D216: 0.3 | F216: 24/7 Lighting
A217: 24/7 Lighting | B217: LED Replacing T5, T8 or T12, Lamp Only | C217: Watts Reduced | D217: 0.25 | F217: HVAC
A218: 24/7 Lighting | B218: LED Replacing T5, T8 or T12, Entire Fixture | C218: Watts Reduced | D218: 0.5 | F218: Envelope
A219: 24/7 Lighting | B219: LED Replacing T5, T8 or T12, Retrofit Kit | C219: Watts Reduced | D219: 0.3 | F219: Refrigeration
A220: 24/7 Lighting | B220: Controls for Existing LED Fixtures | C220: Watts Controlled | D220: 0.5 | F220: Food Service Equipment
A221: Exterior Lighting | B221: T8, T5 or LED Replacing HID, Lamp Only | C221: Watts Reduced | D221: 0.2 | F221: Plug Load Controls
A222: Exterior Lighting | B222: T8, T5 or LED Replacing HID, Entire Fixture | C222: Watts Reduced | D222: 0.4 | F222: Motors
A223: Exterior Lighting | B223: T8, T5 or LED Replacing HID, Retrofit Kit | C223: Watts Reduced | D223: 0.25 | F223: VSDs
A224: Exterior Lighting | B224: LED Replacing T5, T8 or T12, Lamp Only | C224: Watts Reduced | D224: 0.2
A225: Exterior Lighting | B225: LED Replacing T5, T8 or T12, Entire Fixture | C225: Watts Reduced | D225: 0.4
A226: Exterior Lighting | B226: LED Replacing T5, T8 or T12, Retrofit Kit | C226: Watts Reduced | D226: 0.25
A227: Exterior Lighting | B227: Controls for Existing LED Fixtures | C227: Watts Controlled | D227: 0.4
A228: Interior Lighting | B228: 20W or less LED Lamp replacing Incandescent Lamp ≤ 100W | C228: Lamp | D228: 8
A229: Interior Lighting | B229: 20W or less LED Lamp replacing CFL Lamp ≤ 42W | C229: Lamp | D229: 4
A230: Interior Lighting | B230: Controls Occupancy Sensors | C230: Watts Controlled | D230: 0.12
A231: Interior Lighting | B231: Controls Daylighting Sensor Controls | C231: Watts Controlled | D231: 0.09
A232: Interior Lighting | B232: T8, T5 or LED Replacing HID, Lamp Only | C232: Watts Reduced | D232: 0.15
A233: Interior Lighting | B233: T8, T5 or LED Replacing HID, Entire Fixture | C233: Watts Reduced | D233: 0.3
A234: Interior Lighting | B234: T8, T5 or LED Replacing HID, Retrofit Kit | C234: Watts Reduced | D234: 0.2
A235: Interior Lighting | B235: LED Replacing T5, T8 or T12, Lamp Only | C235: Watts Reduced | D235: 0.15
A236: Interior Lighting | B236: LED Replacing T5, T8 or T12, Entire Fixture | C236: Watts Reduced | D236: 0.3
A237: Interior Lighting | B237: LED Replacing T5, T8 or T12, Retrofit Kit | C237: Watts Reduced | D237: 0.2
C239: Unit | D239: Incentive
A240: Envelope | B240: Window Film | C240: Sq. Ft. of Glazing | D240: 1.2
C242: Unit | D242: Incentive
A243: Refrigeration | B243: Strip Curtains on Walk-ins and Freezers | C243: Sq. Ft. | D243: 3
A244: Refrigeration | B244: Night Covers for Displays | C244: Lin. Ft. of Case | D244: 10
A245: Refrigeration | B245: EC Motor for Reach-in Refrigerator or Freezer Cases | C245: Motor | D245: 25
A246: Refrigeration | B246: Evaporator Fan Controller - Shade Pole Motor | C246: Motor | D246: 40
A247: Refrigeration | B247: Anti Sweat Heater Controls | C247: Lin. Ft. of Case | D247: 25
A248: Refrigeration | B248: LED Refrigeration Case Lighting | C248: Door | D248: 40
A249: Refrigeration | B249: ENERGY STAR® Solid Door Freezer | C249: Unit | D249: 100
A250: Refrigeration | B250: ENERGY STAR® Glass Door Freezer | C250: Unit | D250: 350
C252: Unit | D252: Incentive
A253: Food Service Equipment | B253: ENERGY STAR® Steam Cookers | C253: Unit | D253: 400
A254: Food Service Equipment | B254: Combination Oven | C254: Unit | D254: 800
A255: Food Service Equipment | B255: ENERGY STAR® Hot Holding Cabinet - 1/2 size | C255: Unit | D255: 200
A256: Food Service Equipment | B256: ENERGY STAR® Hot Holding Cabinet - 3/4 size | C256: Unit | D256: 300
A257: Food Service Equipment | B257: ENERGY STAR® Hot Holding Cabinet - Full size | C257: Unit | D257: 400
A258: Food Service Equipment | B258: ENERGY STAR® Beverage Vending Machine | C258: Unit | D258: 80
A259: Food Service Equipment | B259: ENERGY STAR® Commercial Vat Fryer | C259: Unit | D259: 225
A260: Food Service Equipment | B260: ENERGY STAR® Griddle | C260: Unit | D260: 125
C262: Unit | D262: Incentive
A263: High Efficiency Ice Makers | B263: 101-200 lbs/24 hours | C263: Unit | D263: 100
A264: High Efficiency Ice Makers | B264: 201-300 lbs/24 hours | C264: Unit | D264: 150
A265: High Efficiency Ice Makers | B265: 301-400 lbs/24 hours | C265: Unit | D265: 200
A266: High Efficiency Ice Makers | B266: 401-500 lbs/24 hours | C266: Unit | D266: 250
A267: High Efficiency Ice Makers | B267: 501-1000 lbs/24 hours | C267: Unit | D267: 300
A268: High Efficiency Ice Makers | B268: 1001-1500 lbs/24 hours | C268: Unit | D268: 350
A269: High Efficiency Ice Makers | B269: >1500 lbs/24 hours | C269: Unit | D269: 400
C271: Unit | D271: Incentive
A272: Plug Load Controls | B272: Beverage Vending Machine Control | C272: Unit | D272: Contact for offer
A273: Plug Load Controls | B273: Refrigerated Cooler Control | C273: Unit | D273: Contact for offer
A274: Plug Load Controls | B274: Snack Machine Control | C274: Unit | D274: Contact for offer
A275: Plug Load Controls | B275: Plug Load Occupancy Sensors | C275: Unit | D275: 25
C277: Unit | D277: Incentive
A278: Motors | B278: 1200 RPM - 1 HP - Open | C278: motor | D278: 1
A279: Motors | B279: 1200 RPM - 1 HP - Open | C279: motor | D279: 1.5
A280: Motors | B280: 1200 RPM - 1 HP - Open | C280: motor | D280: 2
A281: Motors | B281: 1200 RPM - 1 HP - Open | C281: motor | D281: 3
A282: Motors | B282: 1200 RPM - 1 HP - Open | C282: motor | D282: 4
A283: Motors | B283: 1200 RPM - 1 HP - Open | C283: motor | D283: 9
A284: Motors | B284: 1200 RPM - 1 HP - Open | C284: motor | D284: 10
A285: Motors | B285: 1200 RPM - 1 HP - Open | C285: motor | D285: 11
A286: Motors | B286: 1200 RPM - 1 HP - Open | C286: motor | D286: 12
A287: Motors | B287: 1200 RPM - 1 HP - Open | C287: motor | D287: 15
A288: Motors | B288: 1200 RPM - 1 HP - Open | C288: motor | D288: 17
A289: Motors | B289: 1200 RPM - 1 HP - Open | C289: motor | D289: 20
A290: Motors | B290: 1200 RPM - 1 HP - Open | C290: motor | D290: 24
A291: Motors | B291: 1200 RPM - 1 HP - Open | C291: motor | D291: 25
A292: Motors | B292: 1200 RPM - 1 HP - Open | C292: motor | D292: 30
A293: Motors | B293: 1200 RPM - 1 HP - Open | C293: motor | D293: 40
A294: Motors | B294: 1200 RPM - 1 HP - Open | C294: motor | D294: 50
A295: Motors | B295: 1200 RPM - 1 HP - Open | C295: motor | D295: 60
A296: Motors | B296: 1200 RPM - 1 HP - Open | C296: motor | D296: 75
A297: Motors | B297: 1200 RPM - 1 HP - Open | C297: motor | D297: 1
A298: Motors | B298: 1200 RPM - 1 HP - Open | C298: motor | D298: 1.5
A299: Motors | B299: 1200 RPM - 1 HP - Open | C299: motor | D299: 2
A300: Motors | B300: 1200 RPM - 1 HP - Open | C300: motor | D300: 3
A301: Motors | B301: 1200 RPM - 1 HP - Open | C301: motor | D301: 4
A302: Motors | B302: 1200 RPM - 1 HP - Open | C302: motor | D302: 9
A303: Motors | B303: 1200 RPM - 1 HP - Open | C303: motor | D303: 10
A304: Motors | B304: 1200 RPM - 1 HP - Open | C304: motor | D304: 11
A305: Motors | B305: 1200 RPM - 1 HP - Open | C305: motor | D305: 12
A306: Motors | B306: 1200 RPM - 1 HP - Open | C306: motor | D306: 15
A307: Motors | B307: 1200 RPM - 1 HP - Open | C307: motor | D307: 17
A308: Motors | B308: 1200 RPM - 1 HP - Open | C308: motor | D308: 20
A309: Motors | B309: 1200 RPM - 1 HP - Open | C309: motor | D309: 24
A310: Motors | B310: 1200 RPM - 1 HP - Open | C310: motor | D310: 25
A311: Motors | B311: 1200 RPM - 1 HP - Open | C311: motor | D311: 30
A312: Motors | B312: 1200 RPM - 1 HP - Open | C312: motor | D312: 40
A313: Motors | B313: 1200 RPM - 1 HP - Open | C313: motor | D313: 50
A314: Motors | B314: 1200 RPM - 1 HP - Open | C314: motor | D314: 60
A315: Motors | B315: 1200 RPM - 1 HP - Open | C315: motor | D315: 75
A316: Motors | B316: 1200 RPM - 1 HP - Open | C316: motor | D316: 1
A317: Motors | B317: 1200 RPM - 1 HP - Open | C317: motor | D317: 1.5
A318: Motors | B318: 1200 RPM - 1 HP - Open | C318: motor | D318: 2
A319: Motors | B319: 1200 RPM - 1 HP - Open | C319: motor | D319: 3
A320: Motors | B320: 1200 RPM - 1 HP - Open | C320: motor | D320: 4
A321: Motors | B321: 1200 RPM - 1 HP - Open | C321: motor | D321: 9
A322: Motors | B322: 1200 RPM - 1 HP - Open | C322: motor | D322: 10
A323: Motors | B323: 1200 RPM - 1 HP - Open | C323: motor | D323: 11
A324: Motors | B324: 1200 RPM - 1 HP - Open | C324: motor | D324: 12
A325: Motors | B325: 1200 RPM - 1 HP - Open | C325: motor | D325: 15
A326: Motors | B326: 1200 RPM - 1 HP - Open | C326: motor | D326: 17
A327: Motors | B327: 1200 RPM - 1 HP - Open | C327: motor | D327: 20
A328: Motors | B328: 1200 RPM - 1 HP - Open | C328: motor | D328: 24
A329: Motors | B329: 1200 RPM - 1 HP - Open | C329: motor | D329: 25
A330: Motors | B330: 1200 RPM - 1 HP - Open | C330: motor | D330: 30
A331: Motors | B331: 1200 RPM - 1 HP - Open | C331: motor | D331: 40
A332: Motors | B332: 1200 RPM - 1 HP - Open | C332: motor | D332: 50
A333: Motors | B333: 1200 RPM - 1 HP - Open | C333: motor | D333: 60
A334: Motors | B334: 1200 RPM - 1 HP - Open | C334: motor | D334: 75
A335: Motors | B335: 1200 RPM - 1 HP - Open | C335: motor | D335: 1
A336: Motors | B336: 1200 RPM - 1 HP - Open | C336: motor | D336: 1.5
A337: Motors | B337: 1200 RPM - 1 HP - Open | C337: motor | D337: 2
A338: Motors | B338: 1200 RPM - 1 HP - Open | C338: motor | D338: 3
A339: Motors | B339: 1200 RPM - 1 HP - Open | C339: motor | D339: 4
A340: Motors | B340: 1200 RPM - 1 HP - Open | C340: motor | D340: 9
A341: Motors | B341: 1200 RPM - 1 HP - Open | C341: motor | D341: 10
A342: Motors | B342: 1200 RPM - 1 HP - Open | C342: motor | D342: 11
A343: Motors | B343: 1200 RPM - 1 HP - Open | C343: motor | D343: 12
A344: Motors | B344: 1200 RPM - 1 HP - Open | C344: motor | D344: 15
A345: Motors | B345: 1200 RPM - 1 HP - Open | C345: motor | D345: 17
A346: Motors | B346: 1200 RPM - 1 HP - Open | C346: motor | D346: 20
A347: Motors | B347: 1200 RPM - 1 HP - Open | C347: motor | D347: 24
A348: Motors | B348: 1200 RPM - 1 HP - Open | C348: motor | D348: 25
A349: Motors | B349: 1200 RPM - 1 HP - Open | C349: motor | D349: 30
A350: Motors | B350: 1200 RPM - 1 HP - Open | C350: motor | D350: 40
A351: Motors | B351: 1200 RPM - 1 HP - Open | C351: motor | D351: 50
A352: Motors | B352: 1200 RPM - 1 HP - Open | C352: motor | D352: 60
A353: Motors | B353: 1200 RPM - 1 HP - Open | C353: motor | D353: 75
A354: Motors | B354: 1200 RPM - 1 HP - Open | C354: motor | D354: 1
A355: Motors | B355: 1200 RPM - 1 HP - Open | C355: motor | D355: 1.5
A356: Motors | B356: 1200 RPM - 1 HP - Open | C356: motor | D356: 2
A357: Motors | B357: 1200 RPM - 1 HP - Open | C357: motor | D357: 3
A358: Motors | B358: 1200 RPM - 1 HP - Open | C358: motor | D358: 4
A359: Motors | B359: 1200 RPM - 1 HP - Open | C359: motor | D359: 9
A360: Motors | B360: 1200 RPM - 1 HP - Open | C360: motor | D360: 10
A361: Motors | B361: 1200 RPM - 1 HP - Open | C361: motor | D361: 11
A362: Motors | B362: 1200 RPM - 1 HP - Open | C362: motor | D362: 12
A363: Motors | B363: 1200 RPM - 1 HP - Open | C363: motor | D363: 15
A364: Motors | B364: 1200 RPM - 1 HP - Open | C364: motor | D364: 17
A365: Motors | B365: 1200 RPM - 1 HP - Open | C365: motor | D365: 20
A366: Motors | B366: 1200 RPM - 1 HP - Open | C366: motor | D366: 24
A367: Motors | B367: 1200 RPM - 1 HP - Open | C367: motor | D367: 25
A368: Motors | B368: 1200 RPM - 1 HP - Open | C368: motor | D368: 30
A369: Motors | B369: 1200 RPM - 1 HP - Open | C369: motor | D369: 40
A370: Motors | B370: 1200 RPM - 1 HP - Open | C370: motor | D370: 50
A371: Motors | B371: 1200 RPM - 1 HP - Open | C371: motor | D371: 60
A372: Motors | B372: 1200 RPM - 1 HP - Open | C372: motor | D372: 75
A373: Motors | B373: 1200 RPM - 1 HP - Open | C373: motor | D373: 1
A374: Motors | B374: 1200 RPM - 1 HP - Open | C374: motor | D374: 1.5
A375: Motors | B375: 1200 RPM - 1 HP - Open | C375: motor | D375: 2
A376: Motors | B376: 1200 RPM - 1 HP - Open | C376: motor | D376: 3
A377: Motors | B377: 1200 RPM - 1 HP - Open | C377: motor | D377: 4
A378: Motors | B378: 1200 RPM - 1 HP - Open | C378: motor | D378: 9
A379: Motors | B379: 1200 RPM - 1 HP - Open | C379: motor | D379: 10
A380: Motors | B380: 1200 RPM - 1 HP - Open | C380: motor | D380: 11
A381: Motors | B381: 1200 RPM - 1 HP - Open | C381: motor | D381: 12
A382: Motors | B382: 1200 RPM - 1 HP - Open | C382: motor | D382: 15
A383: Motors | B383: 1200 RPM - 1 HP - Open | C383: motor | D383: 17
A384: Motors | B384: 1200 RPM - 1 HP - Open | C384: motor | D384: 20
A385: Motors | B385: 1200 RPM - 1 HP - Open | C385: motor | D385: 24
A386: Motors | B386: 1200 RPM - 1 HP - Open | C386: motor | D386: 25
A387: Motors | B387: 1200 RPM - 1 HP - Open | C387: motor | D387: 30
A388: Motors | B388: 1200 RPM - 1 HP - Open | C388: motor | D388: 40
A389: Motors | B389: 1200 RPM - 1 HP - Open | C389: motor | D389: 50
A390: Motors | B390: 1200 RPM - 1 HP - Open | C390: motor | D390: 60
A391: Motors | B391: 1200 RPM - 1 HP - Open | C391: motor | D391: 75
C394: Unit | D394: Incentive
A395: VSDs | B395: VSD Size (HP) | C395: Hp | D395: 50
C397: Unit | D397: Incentive
A398: HVAC | B398: HVAC Units, contact for offer | C398: Unit | D398: Contact for offer
C400: Unit | D400: Incentive
A401: Custom | B401: Per kWh | C401: kWh | D401: 0.075

Sheet Income Qualifier Directory
C1: Type Address ---> | E1: =IF(D1="","",I3) -> 
A2: # | B2: Apartment Community Name | C2: Phone # | D2: Address | E2: City/Town | F2: Zip Code | H2: =IFERROR(VLOOKUP(A3,I2:I279,3,FALSE),"") -> 
A3: 1 | B3: Abo Apartments | C3: 575.746.2496 | D3: 700 North 10th St. | E3: Artesia | F3: 88210 | H3: 1 | I3: =IFERROR(VLOOKUP(H3,J3:L279,3,FALSE),"") -> 700 North 10th St. | J3: =IFERROR(RANK(K3,$K$3:$K$279,1),"") -> 1 | K3: =IFERROR(SEARCH($D$1,L3)+ROW()/100000,"") -> 1.00003 | L3: 700 North 10th St. | O3: 1 | P3: =IFERROR(VLOOKUP(O3,Q3:S279,3,FALSE),"") ->  | Q3: =IFERROR(RANK(R3,$R$3:$R$279,1),"") ->  | R3: =IFERROR(SEARCH(#REF!,S3)+ROW()/100000,"") ->  | S3: 575.746.2496
A4: 2 | B4: Abode Group Home | C4: 575.523.2219 | D4: 999 West Amador | E4: Las Cruces | F4: 88005 | H4: 2 | I4: =IFERROR(VLOOKUP(H4,J4:L279,3,FALSE),"") -> 999 West Amador | J4: 2 | K4: =IFERROR(SEARCH($D$1,L4)+ROW()/100000,"") -> 1.00004 | L4: 999 West Amador | O4: 2 | P4: =IFERROR(VLOOKUP(O4,Q4:S279,3,FALSE),"") ->  | R4: =IFERROR(SEARCH(#REF!,S4)+ROW()/100000,"") ->  | S4: 575.523.2219
A5: 3 | B5: Alta Tierra Apartments | C5: 575.523.5472 | D5: 1500 East Madrid | E5: Las Cruces | F5: 88001 | H5: 3 | I5: =IFERROR(VLOOKUP(H5,J5:L279,3,FALSE),"") -> 1500 East Madrid | J5: 3 | K5: 1.00005 | L5: 1500 East Madrid | O5: 3 | P5: =IFERROR(VLOOKUP(O5,Q5:S279,3,FALSE),"") ->  | R5: =IFERROR(SEARCH(#REF!,S5)+ROW()/100000,"") ->  | S5: 575.523.5472
A6: 4 | B6: Alta Vista Apartments | C6: 505.298.1856 | D6: 4200 Spanish Bit NE | E6: Albuquerque | F6: 87111 | H6: 4 | I6: =IFERROR(VLOOKUP(H6,J6:L279,3,FALSE),"") -> 4200 Spanish Bit NE | J6: 4 | K6: 1.00006 | L6: 4200 Spanish Bit NE | O6: 4 | P6: =IFERROR(VLOOKUP(O6,Q6:S279,3,FALSE),"") ->  | R6: =IFERROR(SEARCH(#REF!,S6)+ROW()/100000,"") ->  | S6: 505.298.1856
A7: 5 | B7: Anasazi Village Apartments | C7: 505.474.7200 | D7: 6921 Airport Road | E7: Santa Fe | F7: 87507 | H7: 5 | I7: 6921 Airport Road | J7: 5 | K7: 1.00007 | L7: 6921 Airport Road | O7: 5 | R7: =IFERROR(SEARCH(#REF!,S7)+ROW()/100000,"") ->  | S7: 505.474.7200
A8: 6 | B8: Apple Ridge Apartments | C8: 505.327.0151 | D8: 1600 Cliffside Drive | E8: Farmington | F8: 87401 | H8: 6 | I8: 1600 Cliffside Drive | J8: 6 | K8: 1.00008 | L8: 1600 Cliffside Drive | O8: 6 | R8: =IFERROR(SEARCH(#REF!,S8)+ROW()/100000,"") ->  | S8: 505.327.0151
A9: 7 | B9: Arioso Apartments | C9: 505.884.7622 | D9: 7303 Montgomery Blvd. NE | E9: Albuquerque | F9: 87109 | H9: 7 | I9: 1600 Cliffside Drive | J9: 7 | K9: 1.00009 | L9: 1600 Cliffside Drive | O9: 7 | R9: =IFERROR(SEARCH(#REF!,S9)+ROW()/100000,"") ->  | S9: 505.327.0151
A10: 8 | B10: Arrowhead Ridge | C10: 505.892.2988 | D10: 4515 Arrowhead Ridge Drive | E10: Rio Rancho | F10: 87124 | H10: 8 | I10: 7303 Montgomery Blvd. NE | J10: 8 | K10: 1.0001 | L10: 7303 Montgomery Blvd. NE | O10: 8 | R10: =IFERROR(SEARCH(#REF!,S10)+ROW()/100000,"") ->  | S10: 505.884.7622
A11: 9 | B11: Arroyo Villas Apartments | C11: 505.898.6719 | D11: 4701 Irving Blvd. NW | E11: Albuquerque | F11: 87114 | H11: 9 | I11: 4515 Arrowhead Ridge Drive | J11: 9 | K11: 1.00011 | L11: 4515 Arrowhead Ridge Drive | O11: 9 | R11: =IFERROR(SEARCH(#REF!,S11)+ROW()/100000,"") ->  | S11: 505.892.2988
A12: 10 | B12: Artesia Properties | C12: 575.746.3236 | D12: 1601 West Centre St. | E12: Artesia | F12: 88210 | H12: 10 | I12: 4701 Irving Blvd. NW | J12: 10 | K12: 1.00012 | L12: 4701 Irving Blvd. NW | O12: 10 | R12: =IFERROR(SEARCH(#REF!,S12)+ROW()/100000,"") ->  | S12: 505.898.6719
A13: 11 | B13: Aspen Ridge Apartments | C13: 505.268.3344 | D13: 820 Louisiana Blvd. SE | E13: Albuquerque | F13: 87108 | H13: 11 | I13: 1601 West Centre St. | J13: 11 | K13: 1.00013 | L13: 1601 West Centre St. | O13: 11 | R13: =IFERROR(SEARCH(#REF!,S13)+ROW()/100000,"") ->  | S13: 575.746.3236
A14: 12 | B14: Avalon Cove Apartments | C14: 575.393.1475 | D14: 1200 East Broadway | E14: Hobbs | F14: 88240 | H14: 12 | I14: 820 Louisiana Blvd. SE | J14: 12 | K14: 1.00014 | L14: 820 Louisiana Blvd. SE | O14: 12 | R14: =IFERROR(SEARCH(#REF!,S14)+ROW()/100000,"") ->  | S14: 505.268.3344
A15: 13 | B15: Azotea Senior Apartments | C15: 575.437.5465 | D15: 2400 East First St. | E15: Alamogordo | F15: 88310 | H15: 13 | I15: 1200 East Broadway | J15: 13 | K15: 1.00015 | L15: 1200 East Broadway | O15: 13 | R15: =IFERROR(SEARCH(#REF!,S15)+ROW()/100000,"") ->  | S15: 575.393.1475
A16: 14 | B16: Aztec Villiage Apartments | C16: 505.883.0859 | D16: 4321 Montgomery Blvd. NE | E16: Albuquerque | F16: 87109 | H16: 14 | I16: 2400 East First St. | J16: 14 | K16: 1.00016 | L16: 2400 East First St. | O16: 14 | R16: =IFERROR(SEARCH(#REF!,S16)+ROW()/100000,"") ->  | S16: 575.437.5465
A17: 15 | B17: Battered Family Services | C17: 505.722.7483 | D17: 207 South Strong Drive | E17: Gallup | F17: 87301 | H17: 15 | I17: 4321 Montgomery Blvd. NE | J17: 15 | K17: 1.00017 | L17: 4321 Montgomery Blvd. NE | O17: 15 | R17: =IFERROR(SEARCH(#REF!,S17)+ROW()/100000,"") ->  | S17: 505.883.0859
A18: 16 | B18: Belen Crossing Apartments | C18: 505.864.4640 | D18: 1200 Court St. | E18: Belen | F18: 87002 | H18: 16 | I18: 207 South Strong Drive | J18: 16 | K18: 1.00018 | L18: 207 South Strong Drive | O18: 16 | R18: =IFERROR(SEARCH(#REF!,S18)+ROW()/100000,"") ->  | S18: 505.722.7483
A19: 17 | B19: Belen Vista Apartments | C19: 505.864.7999 | D19: 531 Christopher Road | E19: Belen | F19: 87002 | H19: 19 | I19: =IFERROR(VLOOKUP(H19,J19:L294,3,FALSE),"") -> 110 Otoño Road | J19: 17 | K19: 1.00019 | L19: 531 Christoper Road | O19: 19 | P19: =IFERROR(VLOOKUP(O19,Q19:S294,3,FALSE),"") ->  | R19: =IFERROR(SEARCH(#REF!,S19)+ROW()/100000,"") ->  | S19: 505.864.7999
A20: 18 | B20: Bella Vista Apartments | C20: 575.751.1017 | D20: 110 Otoño Road | E20: Taos | F20: 87571 | H20: 20 | I20: 3400 Gidding | J20: 18 | K20: 1.0002 | L20: 531 Christopher Road | O20: 20 | R20: =IFERROR(SEARCH(#REF!,S20)+ROW()/100000,"") ->  | S20: 505.864.7999
A21: 19 | B21: Bella Vista Townhomes | C21: 575.763.4297 | D21: 3400 Gidding | E21: Clovis | F21: 88101 | H21: 21 | I21: 6302 Harper Place NE | J21: 19 | K21: 1.00021 | L21: 110 Otoño Road | O21: 21 | R21: =IFERROR(SEARCH(#REF!,S21)+ROW()/100000,"") ->  | S21: 575.751.1017
A22: 20 | B22: Brentwood Gardens | C22: 505.821.0818 | D22: 6302 Harper Place NE | E22: Albuquerque | F22: 87109 | H22: 22 | I22: 6302 Harper Place NE | J22: 20 | K22: 1.00022 | L22: 3400 Gidding | O22: 22 | R22: =IFERROR(SEARCH(#REF!,S22)+ROW()/100000,"") ->  | S22: 575.763.4297
A23: 21 | B23: Broadway Apartments | C23: 505.266.7000 | D23: 414 Broadway Blvd. SE | E23: Albuquerque | F23: 87102 | H23: 23 | I23: 414 Broadway Blvd. SE | J23: 21 | K23: 1.00023 | L23: 6302 Harper Place NE | O23: 23 | R23: =IFERROR(SEARCH(#REF!,S23)+ROW()/100000,"") ->  | S23: 505.821.0818
A24: 22 | B24: Buena Vista Apartments | C24: 505.896.8959 | D24: 1355 Meadowlark Lane SE | E24: Rio Rancho | F24: 87124 | H24: 24 | I24: 1355 Meadowlark Lane SE | J24: 22 | K24: 1.00024 | L24: 6302 Harper Place NE | O24: 24 | R24: =IFERROR(SEARCH(#REF!,S24)+ROW()/100000,"") ->  | S24: 505.821.0818
A25: 23 | B25: Buena Vista Senior Living | C25: 575.396.4912 | D25: 1501 Good Samaritan Drive | E25: Lovington | F25: 88260 | H25: 25 | I25: 1501 Good Samaritan Drive | J25: 23 | K25: 1.00025 | L25: 414 Broadway Blvd. SE | O25: 25 | R25: =IFERROR(SEARCH(#REF!,S25)+ROW()/100000,"") ->  | S25: 505.266.7000
A26: 24 | B26: Burley Court Apartments | C26: 575.528.2017 | D26: 1401 Burley Court | E26: Las Cruces | F26: 88005 | H26: 26 | I26: 1401 Burley Court | J26: 24 | K26: 1.00026 | L26: 1355 Meadowlark Lane SE | O26: 26 | R26: =IFERROR(SEARCH(#REF!,S26)+ROW()/100000,"") ->  | S26: 505.896.8959
A27: 25 | B27: Caballo Peak Apartments | C27: 505.662.0620 | D27: 3301 Canyon Road | E27: Los Alamos | F27: 87544 | H27: 27 | I27: 3301 Canyon Road | J27: 25 | K27: 1.00027 | L27: 1501 Good Samaritan Drive | O27: 27 | R27: =IFERROR(SEARCH(#REF!,S27)+ROW()/100000,"") ->  | S27: 575.396.4912
A28: 26 | B28: Campo Alegria Apartments | C28: 505.983.6324 | D28: 104 Camino del Campo | E28: Santa Fe | F28: 87501 | H28: 28 | I28: 104 Camino del Campo | J28: 26 | K28: 1.00028 | L28: 1401 Burley Court | O28: 28 | R28: =IFERROR(SEARCH(#REF!,S28)+ROW()/100000,"") ->  | S28: 575.528.2017
A29: 27 | B29: Candelaria Gardens | C29: 505.833.6000 | D29: 820 Candelaria NW | E29: Albuquerque | F29: 87105 | H29: 29 | I29: 820 Candelaria NW | J29: 27 | K29: 1.00029 | L29: 3301 Canyon Road | O29: 29 | R29: =IFERROR(SEARCH(#REF!,S29)+ROW()/100000,"") ->  | S29: 505.662.0620
A30: 28 | B30: Candlelight Square | C30: 505.884.2295 | D30: 7501 Montgomery Blvd. NE | E30: Albuquerque | F30: 87109 | H30: 30 | I30: 7501 Montgomery Blvd. NE | J30: 28 | K30: 1.0003 | L30: 104 Camino del Campo | O30: 30 | R30: =IFERROR(SEARCH(#REF!,S30)+ROW()/100000,"") ->  | S30: 505.983.6324
A31: 29 | B31: Cañon de Arrowhead | C31: 505.833.9334 | D31: 1700 Market St. NW | E31: Albuquerque | F31: 87120 | H31: 31 | I31: 1700 Market St. NW | J31: 29 | K31: 1.00031 | L31: 820 Candelaria NW | O31: 31 | R31: =IFERROR(SEARCH(#REF!,S31)+ROW()/100000,"") ->  | S31: 505.833.6000
A32: 30 | B32: Canyon Point Apartments | C32: 505.294.3108 | D32: 301 Western Skies Drive SE | E32: Albuquerque | F32: 87123 | H32: 32 | I32: 301 Western Skies Drive SE | J32: 30 | K32: 1.00032 | L32: 7501 Montgomery Blvd. NE | O32: 32 | R32: =IFERROR(SEARCH(#REF!,S32)+ROW()/100000,"") ->  | S32: 505.884.2295
A33: 31 | B33: Canyon Ridge Apartments | C33: 505.299.8066 | D33: 200 Figueroa St. NE | E33: Albuquerque | F33: 87123 | H33: 33 | I33: 200 Figueroa St. NE | J33: 31 | K33: 1.00033 | L33: 1700 Market St. NW | O33: 33 | R33: =IFERROR(SEARCH(#REF!,S33)+ROW()/100000,"") ->  | S33: 505.833.9334
A34: 32 | B34: Casa Alegre II | C34: 505.454.0016 | D34: 400 Mountain View Drive | E34: Las Vegas | F34: 87701 | H34: 34 | I34: 400 Mountain View Drive | J34: 32 | K34: 1.00034 | L34: 301 Western Skies Drive SE | O34: 34 | R34: =IFERROR(SEARCH(#REF!,S34)+ROW()/100000,"") ->  | S34: 505.294.3108
A35: 33 | B35: Casa Bonita | C35: 505.865.4588 | D35: 675 US Highway 314 SW | E35: Los Lunas | F35: 87031 | H35: 35 | I35: 675 US Highway 314 SW | J35: 33 | K35: 1.00035 | L35: 200 Figueroa St. NE | O35: 35 | R35: =IFERROR(SEARCH(#REF!,S35)+ROW()/100000,"") ->  | S35: 505.299.8066
A36: 34 | B36: Casa Bonita Apartments | C36: 505.881.0668 | D36: 4528 Carlisle Blvd. NE | E36: Albuquerque | F36: 87109 | H36: 36 | I36: 4528 Carlisle Blvd. NE | J36: 34 | K36: 1.00036 | L36: 400 Mountain View Drive | O36: 36 | R36: =IFERROR(SEARCH(#REF!,S36)+ROW()/100000,"") ->  | S36: 505.454.0016
A37: 35 | B37: Casa Cerrillos | C37: 505.471.3456 | D37: 3811 1/2 Cerrillos Road | E37: Santa Fe | F37: 87507 | H37: 37 | I37: 3811 1/2 Cerrillos Road | J37: 35 | K37: 1.00037 | L37: 675 US Highway 314 SW | O37: 37 | R37: =IFERROR(SEARCH(#REF!,S37)+ROW()/100000,"") ->  | S37: 505.865.4588
A38: 36 | B38: Casa de Chavez | C38: 505.865.4588 | D38: 675 US Highway 314 SW | E38: Los Lunas | F38: 87031 | H38: 38 | I38: 675 US Highway 314 SW | J38: 36 | K38: 1.00038 | L38: 4528 Carlisle Blvd. NE | O38: 38 | R38: =IFERROR(SEARCH(#REF!,S38)+ROW()/100000,"") ->  | S38: 505.881.0668
A39: 37 | B39: Casa del Rio Apartments | C39: 575.894.2244 | D39: 165 North Silver | E39: T or C | F39: 87901 | H39: 39 | I39: 165 North Silver | J39: 37 | K39: 1.00039 | L39: 3811 1/2 Cerrillos Road | O39: 39 | R39: =IFERROR(SEARCH(#REF!,S39)+ROW()/100000,"") ->  | S39: 505.471.3456
A40: 38 | B40: Casa Linda | C40: 575.388.3755 | D40: 100 East 17 St. | E40: Silver City | F40: 88061 | H40: 40 | I40: 165 North Silver | J40: 38 | K40: 1.0004 | L40: 675 US Highway 314 SW | O40: 40 | R40: =IFERROR(SEARCH(#REF!,S40)+ROW()/100000,"") ->  | S40: 505.865.4588
A41: 39 | B41: Casa Rufina | C41: 505.988.1116 | D41: 2323 Casa Rufina Road | E41: Santa Fe | F41: 87507 | H41: 41 | I41: 100 East 17 St. | J41: 39 | K41: 1.00041 | L41: 165 North Silver | O41: 41 | R41: =IFERROR(SEARCH(#REF!,S41)+ROW()/100000,"") ->  | S41: 575.894.2244
A42: 40 | B42: Casa Villita Apartments | C42: 505.474.7400 | D42: 3330 Calle Po Ae Pi | E42: Santa Fe | F42: 87507 | H42: 42 | I42: 2323 Casa Rufina Road | J42: 40 | K42: 1.00042 | L42: 165 North Silver | O42: 42 | R42: =IFERROR(SEARCH(#REF!,S42)+ROW()/100000,"") ->  | S42: 575.894.2244
A43: 41 | B43: Casamera Apartments | C43: 505.863.2700 | D43: 350 Basilio Drive | E43: Gallup | F43: 87301 | H43: 43 | I43: 3330 Calle Po Ae Pi | J43: 41 | K43: 1.00043 | L43: 100 East 17 St. | O43: 43 | R43: =IFERROR(SEARCH(#REF!,S43)+ROW()/100000,"") ->  | S43: 575.388.3755
A44: 42 | B44: Casitas de Colores | C44: 505.842.5644 | D44: 215 Lead Ave. SW | E44: Albuquerque | F44: 87102 | H44: 44 | I44: 350 Basilio Drive | J44: 42 | K44: 1.00044 | L44: 2323 Casa Rufina Road | O44: 44 | R44: =IFERROR(SEARCH(#REF!,S44)+ROW()/100000,"") ->  | S44: 505.988.1116
A45: 43 | B45: Cedar Hills Apartments | C45: 505.863.3689 | D45: 1710 Elm Circle | E45: Gallup | F45: 87301 | H45: 45 | I45: 215 Lead Ave. SW | J45: 43 | K45: 1.00045 | L45: 3330 Calle Po Ae Pi | O45: 45 | R45: =IFERROR(SEARCH(#REF!,S45)+ROW()/100000,"") ->  | S45: 505.474.7400
A46: 44 | B46: Central Apartments | C46: 575.537.6012 | D46: 500 South Prescott St. | E46: Santa Clara | F46: 88026 | H46: 46 | I46: 1710 Elm Circle | J46: 44 | K46: 1.00046 | L46: 350 Basilio Drive | O46: 46 | R46: =IFERROR(SEARCH(#REF!,S46)+ROW()/100000,"") ->  | S46: 505.863.2700
A47: 45 | B47: Chaco River Apartments | C47: 505.368.3735 | D47: Northwest Division West of mile Marker 94 on Hwy 491 | E47: Shiprock | F47: 87420 | H47: 47 | I47: 500 South Prescott St. | J47: 45 | K47: 1.00047 | L47: 215 Lead Ave. SW | O47: 47 | R47: =IFERROR(SEARCH(#REF!,S47)+ROW()/100000,"") ->  | S47: 505.842.5644
A48: 46 | B48: Chateau Apartments | C48: 505.883.0864 | D48: 6101 Osuna Road NE | E48: Albuquerque | F48: 87109 | H48: 48 | I48: Northwest Division West of mile Marker 94 on Hwy 491 | J48: 46 | K48: 1.00048 | L48: 1710 Elm Circle | O48: 48 | R48: =IFERROR(SEARCH(#REF!,S48)+ROW()/100000,"") ->  | S48: 505.863.3689
A49: 47 | B49: Chuska Apartments | C49: 505.863.7400 | D49: 2534 East Aztec Ave. | E49: Gallup | F49: 87301 | H49: 49 | I49: 6101 Osuna Road NE | J49: 47 | K49: 1.00049 | L49: 500 South Prescott St. | O49: 50 | P49: =IFERROR(VLOOKUP(O49,Q49:S325,3,FALSE),"") ->  | R49: =IFERROR(SEARCH(#REF!,S49)+ROW()/100000,"") ->  | S49: 575.537.6012
A50: 48 | B50: Cibola Apartments | C50: 575.835.3315 | D50: 1101 El Camino Real | E50: Socorro | F50: 87801 | H50: 50 | I50: 2534 East Aztec Ave. | J50: 48 | K50: 1.0005 | L50: Northwest Division West of mile Marker 94 on Hwy 491 | O50: 51 | R50: =IFERROR(SEARCH(#REF!,S50)+ROW()/100000,"") ->  | S50: 505.368.3735
A51: 49 | B51: Cielo De Oro Senior Housing Apartments | C51: 575.622.4146 | D51: 1700 West Hendricks St. | E51: Roswell | F51: 88203 | H51: 51 | I51: =IFERROR(VLOOKUP(H51,J51:L326,3,FALSE),"") -> 1101 El Camino Real | J51: 49 | K51: 1.00051 | L51: 6101 Osuna Road NE | O51: 52 | R51: =IFERROR(SEARCH(#REF!,S51)+ROW()/100000,"") ->  | S51: 505.883.0864
A52: 50 | B52: Cimmaron Apartments | C52: 575.882.0042 | D52: 825 Fourth St. | E52: Anthony | F52: 88021 | H52: 52 | I52: 1700 West Hendricks St. | J52: 50 | K52: 1.00052 | L52: 2534 East Aztec Ave. | O52: 53 | R52: =IFERROR(SEARCH(#REF!,S52)+ROW()/100000,"") ->  | S52: 505.863.7400
A53: 51 | B53: Cinnamon Ridge Apartments | C53: 575.472.3974 | D53: 1001 Cinnamon Loop | E53: Santa Rosa | F53: 88435 | H53: 53 | I53: 825 Fourth St. | J53: 51 | K53: 1.00053 | L53: 1101 El Camino Real | O53: 54 | R53: =IFERROR(SEARCH(#REF!,S53)+ROW()/100000,"") ->  | S53: 575.835.3315
A54: 52 | B54: Cliffside Apartments | C54: 505.722.0127 | D54: 601 Dani Drive | E54: Gallup | F54: 87301 | H54: 54 | I54: 1001 Cinnamon Loop | J54: 52 | K54: 1.00054 | L54: 1700 West Hendricks St. | O54: 55 | R54: =IFERROR(SEARCH(#REF!,S54)+ROW()/100000,"") ->  | S54: 575.622.4146
A55: 53 | B55: Clovis Apartments | C55: 575.762.1533 | D55: 1000 North Dr. Martin Luther King | E55: Clovis | F55: 88101 | H55: 55 | I55: 601 Dani Drive | J55: 53 | K55: 1.00055 | L55: 825 Fourth St. | O55: 56 | R55: =IFERROR(SEARCH(#REF!,S55)+ROW()/100000,"") ->  | S55: 575.882.0042
A56: 54 | B56: Colonial Hillcrest Apartments | C56: 575.885.3816 | D56: 605 North Fifth St. | E56: Carlsbad | F56: 88220 | H56: 56 | I56: 1000 North Dr. Martin Luther King | J56: 54 | K56: 1.00056 | L56: 1001 Cinnamon Loop | O56: 57 | R56: =IFERROR(SEARCH(#REF!,S56)+ROW()/100000,"") ->  | S56: 575.472.3974
A57: 55 | B57: Colonial Hillcrest Apartments | C57: 575.885.3816 | D57: 604 North Fifth St. | E57: Carlsbad | F57: 88220 | H57: 57 | I57: 605 North Fifth St. | J57: 55 | K57: 1.00057 | L57: 601 Dani Drive | O57: 58 | R57: =IFERROR(SEARCH(#REF!,S57)+ROW()/100000,"") ->  | S57: 505.722.0127
A58: 56 | B58: Columbus Apartments | C58: 575.531.2546 | D58: 60 Botanica Drive | E58: Columbus | F58: 88029 | H58: 58 | I58: 604 North Fifth St. | J58: 56 | K58: 1.00058 | L58: 1000 North Dr. Martin Luther King | O58: 59 | R58: =IFERROR(SEARCH(#REF!,S58)+ROW()/100000,"") ->  | S58: 575.762.1533
A59: 57 | B59: Cottonwood Commons | C59: 575.434.2036 | D59: 1220 Jefferson St. | E59: Alamogordo | F59: 88310 | H59: 59 | I59: 60 Botanica Drive | J59: 57 | K59: 1.00059 | L59: 605 North Fifth St. | O59: 60 | R59: =IFERROR(SEARCH(#REF!,S59)+ROW()/100000,"") ->  | S59: 575.885.3816
A60: 58 | B60: Country Club Apartments | C60: 505.471.1871 | D60: 1002 Airport Road | E60: Santa Fe | F60: 87505 | H60: 60 | I60: 1220 Jefferson St. | J60: 58 | K60: 1.0006 | L60: 604 North Fifth St. | O60: 61 | R60: =IFERROR(SEARCH(#REF!,S60)+ROW()/100000,"") ->  | S60: 575.885.3816
A61: 59 | B61: Cuatro Apartments | C61: 505.503.1591 | D61: 1319 Fourth St. NW | E61: Albuquerque | F61: 87102 | H61: 61 | I61: 1002 Airport Road | J61: 59 | K61: 1.00061 | L61: 60 Botanica Drive | O61: 62 | R61: =IFERROR(SEARCH(#REF!,S61)+ROW()/100000,"") ->  | S61: 575.531.2546
A62: 60 | B62: David Spector Shalom House | C62: 505.823.1433 | D62: 5500 Wyoming Blvd. NE | E62: Albuquerque | F62: 87109 | H62: 62 | I62: 1319 Fourth St. NW | J62: 60 | K62: 1.00062 | L62: 1220 Jefferson St. | O62: 63 | R62: =IFERROR(SEARCH(#REF!,S62)+ROW()/100000,"") ->  | S62: 575.434.2036
A63: 61 | B63: Deer Hollow Senior Apartments | C63: 505.632.0296 | D63: 701 Bergin Lane | E63: Bloomfield | F63: 87413 | H63: 63 | I63: 5500 Wyoming Blvd. NE | J63: 61 | K63: 1.00063 | L63: 1002 Airport Road | O63: 64 | R63: =IFERROR(SEARCH(#REF!,S63)+ROW()/100000,"") ->  | S63: 505.471.1871
A64: 62 | B64: Deming Manor Apartments | C64: 575.546.7498 | D64: 1000 South Zinc | E64: Deming | F64: 88030 | H64: 64 | I64: 701 Bergin Lane | J64: 62 | K64: 1.00064 | L64: 1319 Fourth St. NW | O64: 65 | R64: =IFERROR(SEARCH(#REF!,S64)+ROW()/100000,"") ->  | S64: 505.503.1591
A65: 63 | B65: Depot Apartments | C65: 505.832.6746 | D65: 704 West Maple | E65: Moriarty | F65: 87035 | H65: 65 | I65: 1000 South Zinc | J65: 63 | K65: 1.00065 | L65: 5500 Wyoming Blvd. NE | O65: 66 | R65: =IFERROR(SEARCH(#REF!,S65)+ROW()/100000,"") ->  | S65: 505.823.1433
A66: 64 | B66: Desert Palms | C66: 575.523.4138 | D66: 2405 West Picacho Ave. | E66: Las Cruces | F66: 88007 | H66: 66 | I66: 1000 South Zinc | J66: 64 | K66: =IFERROR(SEARCH($D$1,L66)+ROW()/100000,"") -> 1.00066 | L66: 701 Bergin Lane | O66: 67 | R66: =IFERROR(SEARCH(#REF!,S66)+ROW()/100000,"") ->  | S66: 505.632.0296
A67: 65 | B67: Desert Sun Apartments | C67: 575.544.9955 | D67: 1201 North Eighth St. | E67: Deming | F67: 88030 | H67: 67 | I67: 704 West Maple | J67: =IFERROR(RANK(K67,$K$3:$K$279,1),"") -> 65 | K67: 1.00067 | L67: 1000 South Zinc | O67: 68 | Q67: =IFERROR(RANK(R67,$R$3:$R$279,1),"") ->  | R67: =IFERROR(SEARCH(#REF!,S67)+ROW()/100000,"") ->  | S67: 575.546.7498
A68: 66 | B68: Desert Willow Apartments | C68: 505.856.6900 | D68: 8901 Jefferson St. NE | E68: Albuquerque | F68: 87113 | H68: 68 | I68: 2405 West Picacho Ave. | J68: 66 | K68: 1.00068 | L68: 1000 South Zinc | O68: 69 | R68: =IFERROR(SEARCH(#REF!,S68)+ROW()/100000,"") ->  | S68: 575.546.7498
A69: 67 | B69: Dona Ana Park Apartments | C69: 575.524.2524 | D69: 1900 North Solano Drive | E69: Las Cruces | F69: 88001 | H69: 69 | I69: 1201 North Eighth St. | J69: 67 | K69: 1.00069 | L69: 704 West Maple | O69: 70 | R69: =IFERROR(SEARCH(#REF!,S69)+ROW()/100000,"") ->  | S69: 505.832.6746
A70: 68 | B70: Downtown @ 700 2nd Apartments | C70: 505.242.2100 | D70: 700 Second St. NW | E70: Albuquerque | F70: 87102 | H70: 70 | I70: 8901 Jefferson St. NE | J70: 68 | K70: 1.0007 | L70: 2405 West Picacho Ave. | O70: 71 | R70: =IFERROR(SEARCH(#REF!,S70)+ROW()/100000,"") ->  | S70: 575.523.4138
A71: 69 | B71: Drexel House | C71: 505.325.3734 | D71: 115 West Broadway | E71: Farmington | F71: 87401 | H71: 71 | I71: 1900 North Solano Drive | J71: 69 | K71: 1.00071 | L71: 1201 North Eighth St. | O71: 72 | R71: =IFERROR(SEARCH(#REF!,S71)+ROW()/100000,"") ->  | S71: 575.544.9955
A72: 70 | B72: Eagle Creek Apartments | C72: 575.746.9731 | D72: 302 North Fourth St. | E72: Artesia | F72: 88210 | H72: 72 | I72: 700 Second St. NW | J72: 70 | K72: 1.00072 | L72: 8901 Jefferson St. NE | O72: 73 | R72: =IFERROR(SEARCH(#REF!,S72)+ROW()/100000,"") ->  | S72: 505.856.6900
A73: 71 | B73: East Mesa Apartments | C73: 505.879.2554 | D73: 710 West Mesa | E73: Gallup | F73: 87301 | H73: 73 | I73: 115 West Broadway | J73: 71 | K73: 1.00073 | L73: 1900 North Solano Drive | O73: 74 | R73: =IFERROR(SEARCH(#REF!,S73)+ROW()/100000,"") ->  | S73: 575.524.2524
A74: 72 | B74: Eaton Village | C74: 505.327.5720 | D74: 2550 East 16th St. | E74: Farmington | F74: 87401 | H74: 74 | I74: 302 North Fourth St. | J74: 72 | K74: 1.00074 | L74: 700 Second St. NW | O74: 75 | R74: =IFERROR(SEARCH(#REF!,S74)+ROW()/100000,"") ->  | S74: 505.242.2100
A75: 73 | B75: Echols Place Apartments | C75: 575.763.9009 | D75: 1600 Echols Ave. | E75: Clovis | F75: 88101 | H75: 75 | I75: 710 West Mesa | J75: 73 | K75: 1.00075 | L75: 115 West Broadway | O75: 76 | R75: =IFERROR(SEARCH(#REF!,S75)+ROW()/100000,"") ->  | S75: 505.325.3734
A76: 74 | B76: El Cerrito | C76: 575.751.1892 | D76: 250 Paseo del Cañon East | E76: Taos | F76: 87571 | H76: 76 | I76: 2550 East 16th St. | J76: 74 | K76: 1.00076 | L76: 302 North Fourth St. | O76: 77 | R76: =IFERROR(SEARCH(#REF!,S76)+ROW()/100000,"") ->  | S76: 575.746.9731
A77: 75 | B77: El Paseo Apartments | C77: 505.922.9600 | D77: 301 El Pueblo Road NW | E77: Los Ranchos de Albuquerque | F77: 87114 | H77: 77 | I77: 1600 Echols Ave. | J77: 75 | K77: 1.00077 | L77: 710 West Mesa | O77: 78 | R77: =IFERROR(SEARCH(#REF!,S77)+ROW()/100000,"") ->  | S77: 505.879.2554
A78: 76 | B78: El Pueblo Madeira Court | C78: 505.266.5855 | D78: 1001 Madeira Drive SW | E78: Albuquerque | F78: 87108 | H78: 78 | I78: 250 Paseo del Cañon East | J78: 76 | K78: 1.00078 | L78: 2550 East 16th St. | O78: 79 | R78: =IFERROR(SEARCH(#REF!,S78)+ROW()/100000,"") ->  | S78: 505.327.5720
A79: 77 | B79: Enchanted Vista | C79: 505.891.4900 | D79: 4501 Sprint Blvd. NE | E79: Rio Rancho | F79: 87144 | H79: 79 | I79: 301 El Pueblo Road NW | J79: 77 | K79: 1.00079 | L79: 1600 Echols Ave. | O79: 80 | R79: =IFERROR(SEARCH(#REF!,S79)+ROW()/100000,"") ->  | S79: 575.763.9009
A80: 78 | B80: Encino El Paseo Village Apartments | C80: 505.489-7322 | D80: 420 Coal St. SE | E80: Albuquerque | F80: 87102 | H80: 80 | I80: 1001 Madeira Drive SW | J80: 78 | K80: 1.0008 | L80: 250 Paseo del Cañon East | O80: 81 | R80: =IFERROR(SEARCH(#REF!,S80)+ROW()/100000,"") ->  | S80: 575.751.1892
A81: 79 | B81: Encino Gardens | C81: 505.266.7736 | D81: 412 Alvarado St. SE | E81: Albuquerque | F81: 87108 | H81: 81 | I81: 4501 Sprint Blvd. NE | J81: 79 | K81: 1.00081 | L81: 301 El Pueblo Road NW | O81: 82 | P81: =IFERROR(VLOOKUP(O81,Q81:S357,3,FALSE),"") ->  | R81: =IFERROR(SEARCH(#REF!,S81)+ROW()/100000,"") ->  | S81: 505.922.9600
A82: 80 | B82: Encino Terrace | C82: 505.247.4185 | D82: 609 Encino Place NE | E82: Albuquerque | F82: 87102 | H82: 82 | I82: 420 Coal St. SE | J82: 80 | K82: 1.00082 | L82: 1001 Madeira Drive SW | O82: 83 | R82: =IFERROR(SEARCH(#REF!,S82)+ROW()/100000,"") ->  | S82: 505.266.5855
A83: 81 | B83: Encino Villa Apartments | C83: 505.989.7271 | D83: 1501 Montano St. | E83: Santa Fe | F83: 87505 | H83: 83 | I83: =IFERROR(VLOOKUP(H83,J83:L358,3,FALSE),"") -> 412 Alvarado St. SE | J83: 81 | K83: 1.00083 | L83: 4501 Sprint Blvd. NE | O83: 84 | R83: =IFERROR(SEARCH(#REF!,S83)+ROW()/100000,"") ->  | S83: 505.891.4900
A84: 82 | B84: Evergreen Apartments | C84: 505.474.9260 | D84: 2020 Calle Lorca | E84: Santa Fe | F84: 87505 | H84: 84 | I84: 609 Encino Place NE | J84: 82 | K84: 1.00084 | L84: 420 Coal St. SE | O84: 85 | R84: =IFERROR(SEARCH(#REF!,S84)+ROW()/100000,"") ->  | S84: 505.489-7322
A85: 83 | B85: Falcon Ridge Apartments | C85: 575.267.9003 | D85: 20 South Chile Capital St. | E85: Hatch | F85: 87937 | H85: 85 | I85: 1501 Montano St. | J85: 83 | K85: 1.00085 | L85: 412 Alvarado St. SE | O85: 86 | R85: =IFERROR(SEARCH(#REF!,S85)+ROW()/100000,"") ->  | S85: 505.266.7736
A86: 84 | B86: Four Hills Apartments | C86: 575.382.0500 | D86: 2595 Mars Ave. | E86: Las Cruces | F86: 88012 | H86: 86 | I86: 2020 Calle Lorca | J86: 84 | K86: 1.00086 | L86: 609 Encino Place NE | O86: 87 | R86: =IFERROR(SEARCH(#REF!,S86)+ROW()/100000,"") ->  | S86: 505.247.4185
A87: 85 | B87: Four Seasons Apartments | C87: 575.392.6243 | D87: 2405 North Jefferson St. | E87: Hobbs | F87: 88240 | H87: 87 | I87: 20 South Chile Capital St. | J87: 85 | K87: 1.00087 | L87: 1501 Montano St. | O87: 88 | R87: =IFERROR(SEARCH(#REF!,S87)+ROW()/100000,"") ->  | S87: 505.989.7271
A88: 86 | B88: Franklin Vista 1, III, IV, V Apartments | C88: 575.882.5049 | D88: 505 Curry Court, Bldg. E | E88: Anthony | F88: 88021 | H88: 88 | I88: 2595 Mars Ave. | J88: 86 | K88: 1.00088 | L88: 2020 Calle Lorca | O88: 89 | R88: =IFERROR(SEARCH(#REF!,S88)+ROW()/100000,"") ->  | S88: 505.474.9260
A89: 87 | B89: Franklin Vista 2, VI, VII Apartments | C89: 575.882.3909 | D89: 855 Clark Ave. | E89: Anthony | F89: 88021 | H89: 89 | I89: 2405 North Jefferson St. | J89: 87 | K89: 1.00089 | L89: 20 South Chile Capital St. | O89: 90 | R89: =IFERROR(SEARCH(#REF!,S89)+ROW()/100000,"") ->  | S89: 575.267.9003
A90: 88 | B90: Gallinas Valley Apartments | C90: 505.425.5060 | D90: 2612 Seventh St. | E90: Las Vegas | F90: 87701 | H90: 90 | I90: 505 Curry Court, Bldg. E | J90: 88 | K90: 1.0009 | L90: 2595 Mars Ave. | O90: 91 | R90: =IFERROR(SEARCH(#REF!,S90)+ROW()/100000,"") ->  | S90: 575.382.0500
A91: 89 | B91: Gallup Group Home | C91: 505.783.4567 | D91: 209 West Adams | E91: Gallup | F91: 87301 | H91: 91 | I91: 855 Clark Ave. | J91: 89 | K91: 1.00091 | L91: 2405 North Jefferson St. | O91: 92 | R91: =IFERROR(SEARCH(#REF!,S91)+ROW()/100000,"") ->  | S91: 575.392.6243
A92: 90 | B92: Gatewood Village Apartments | C92: 575.769.1995 | D92: 1309 West 15th St. | E92: Clovis | F92: 88101 | H92: 92 | I92: 2612 Seventh St. | J92: 90 | K92: 1.00092 | L92: 505 Curry Court, Bldg. E | O92: 93 | R92: =IFERROR(SEARCH(#REF!,S92)+ROW()/100000,"") ->  | S92: 575.882.5049
A93: 91 | B93: Grants Apartments | C93: 505.287.4973 | D93: 1703 Cordova Court | E93: Grants | F93: 87020 | H93: 93 | I93: 209 West Adams | J93: 91 | K93: 1.00093 | L93: 855 Clark Ave. | O93: 94 | R93: =IFERROR(SEARCH(#REF!,S93)+ROW()/100000,"") ->  | S93: 575.882.3909
A94: 92 | B94: Hidden Valley Apartments | C94: 505.863.9253 | D94: 810 Patton Drive | E94: Gallup | F94: 87301 | H94: 94 | I94: 1309 West 15th St. | J94: 92 | K94: 1.00094 | L94: 2612 Seventh St. | O94: 95 | R94: =IFERROR(SEARCH(#REF!,S94)+ROW()/100000,"") ->  | S94: 505.425.5060
A95: 93 | B95: Hidden Valley Village | C95: 505.632.0004 | D95: 717 Ruth Lane | E95: Bloomfield | F95: 87413 | H95: 95 | I95: 1309 West 15th St. | J95: 93 | K95: 1.00095 | L95: 209 West Adams | O95: 96 | R95: =IFERROR(SEARCH(#REF!,S95)+ROW()/100000,"") ->  | S95: 505.783.4567
A96: 94 | B96: Highland Park Apartments | C96: 575.522.4868 | D96: 2013 South Triviz Drive | E96: Las Cruces | F96: 88001 | H96: 96 | I96: 1703 Cordova Court | J96: 94 | K96: 1.00096 | L96: 1309 West 15th St. | O96: 97 | R96: =IFERROR(SEARCH(#REF!,S96)+ROW()/100000,"") ->  | S96: 575.769.1995
A97: 95 | B97: Hilltop Terrace Apartments | C97: 505.865.5064 | D97: 393 Canal Blvd. | E97: Los Lunas | F97: 87031 | H97: 97 | I97: 810 Patton Drive | J97: 95 | K97: 1.00097 | L97: 1309 West 15th St. | O97: 98 | R97: =IFERROR(SEARCH(#REF!,S97)+ROW()/100000,"") ->  | S97: 575.769.1995
A98: 96 | B98: Hobbs Apartments | C98: 575.393.2523 | D98: 2001 East Clinton St. | E98: Hobbs | F98: 88240 | H98: 98 | I98: 717 Ruth Lane | J98: 96 | K98: 1.00098 | L98: 1703 Cordova Court | O98: 99 | R98: =IFERROR(SEARCH(#REF!,S98)+ROW()/100000,"") ->  | S98: 505.287.4973
A99: 97 | B99: Homeward Bound Apartments | C99: 505.471.1174 | D99: 3454 Cerrillos Road | E99: Santa Fe | F99: 87507 | H99: 99 | I99: 2013 South Triviz Drive | J99: 97 | K99: 1.00099 | L99: 810 Patton Drive | O99: 100 | R99: =IFERROR(SEARCH(#REF!,S99)+ROW()/100000,"") ->  | S99: 505.863.9253
A100: 98 | B100: Hooghan Hozho | C100: 505.863.8892 | D100: 201 East Coal Ave. | E100: Gallup | F100: 87301 | H100: 100 | I100: 2013 South Triviz Drive | J100: 98 | K100: 1.001 | L100: 717 Ruth Lane | O100: 101 | R100: =IFERROR(SEARCH(#REF!,S100)+ROW()/100000,"") ->  | S100: 505.632.0004
A101: 99 | B101: Hotel Clovis Lofts | C101: 575.763.9588 | D101: 201 North Main St. | E101: Clovis | F101: 88101 | H101: 101 | I101: 393 Canal Blvd. | J101: 99 | K101: 1.00101 | L101: 2013 South Triviz Drive | O101: 102 | R101: =IFERROR(SEARCH(#REF!,S101)+ROW()/100000,"") ->  | S101: 575.522.4868
A102: 100 | B102: Imperial Apartments | C102: 505.247.2551 | D102: 205 Silver Ave. SW | E102: Albuquerque | F102: 87102 | H102: 102 | I102: 2001 East Clinton St. | J102: 100 | K102: 1.00102 | L102: 2013 South Triviz Drive | O102: 103 | R102: =IFERROR(SEARCH(#REF!,S102)+ROW()/100000,"") ->  | S102: 575.522.4868
A103: 101 | B103: I-Sah-din-dii | C103: 575.464.9235 | D103: 101 Central Ave. | E103: Mescalero | F103: 88340 | H103: 103 | I103: 3454 Cerrillos Road | J103: 101 | K103: 1.00103 | L103: 393 Canal Blvd. | O103: 104 | R103: =IFERROR(SEARCH(#REF!,S103)+ROW()/100000,"") ->  | S103: 505.865.5064
A104: 102 | B104: Jack Rabbit Hill | C104: 505.455.7973 | D104: Eagle View Lane | E104: Picuris Pueblo | F104: 87553 | H104: 104 | I104: 201 East Coal Ave. | J104: 102 | K104: 1.00104 | L104: 2001 East Clinton St. | O104: 105 | R104: =IFERROR(SEARCH(#REF!,S104)+ROW()/100000,"") ->  | S104: 575.393.2523
A105: 103 | B105: James K. Lyons Apartments | C105: 575.359.1732 | D105: 109 North Ave I | E105: Portales | F105: 88130 | H105: 105 | I105: 201 North Main St. | J105: 103 | K105: 1.00105 | L105: 3454 Cerrillos Road | O105: 106 | R105: =IFERROR(SEARCH(#REF!,S105)+ROW()/100000,"") ->  | S105: 505.471.1174
A106: 104 | B106: Jefferson Crossings | C106: 505.881.4999 | D106: 4401 Montgomery NE | E106: Albuquerque | F106: 87109 | H106: 106 | I106: 205 Silver Ave. SW | J106: 104 | K106: 1.00106 | L106: 201 East Coal Ave. | O106: 107 | R106: =IFERROR(SEARCH(#REF!,S106)+ROW()/100000,"") ->  | S106: 505.863.8892
A107: 105 | B107: Kenneth Wallin Complex | C107: 575.461.7823 | D107: 601 Garcia St. | E107: Logan | F107: 88324 | H107: 107 | I107: 101 Central Ave. | J107: 105 | K107: 1.00107 | L107: 201 North Main St. | O107: 108 | R107: =IFERROR(SEARCH(#REF!,S107)+ROW()/100000,"") ->  | S107: 575.763.9588
A108: 106 | B108: Kentucky Manor | C108: 505.266.7000 | D108: 437 Kentucky St. SE | E108: Albuquerque | F108: 87108 | H108: 108 | I108: Eagle View Lane | J108: 106 | K108: 1.00108 | L108: 205 Silver Ave. SW | O108: 109 | R108: =IFERROR(SEARCH(#REF!,S108)+ROW()/100000,"") ->  | S108: 505.247.2551
A109: 107 | B109: King Arthur's Court Apartments | C109: 575.542.9336 | D109: 428 West Gale | E109: Lordsburg | F109: 88045 | H109: 109 | I109: 109 North Ave I | J109: 107 | K109: 1.00109 | L109: 101 Central Ave. | O109: 110 | R109: =IFERROR(SEARCH(#REF!,S109)+ROW()/100000,"") ->  | S109: 575.464.9235
A110: 108 | B110: Kingdom of the Sun Retirement | C110: 575.546.6619 | D110: 800 West Buckeye St. | E110: Deming | F110: 88030 | H110: 110 | I110: 4401 Montgomery NE | J110: 108 | K110: 1.0011 | L110: Eagle View Lane | O110: 111 | R110: =IFERROR(SEARCH(#REF!,S110)+ROW()/100000,"") ->  | S110: 505.455.7973
A111: 109 | B111: Kristin Park | C111: 505.425.6555 | D111: 2351 Moreland Drive | E111: Las Vegas | F111: 87701 | H111: 111 | I111: 601 Garcia St. | J111: 109 | K111: 1.00111 | L111: 109 North Ave I | O111: 112 | R111: =IFERROR(SEARCH(#REF!,S111)+ROW()/100000,"") ->  | S111: 575.359.1732
A112: 110 | B112: La Cantera Senior Apartments | C112: 505.890.9400 | D112: 3600 Old Airport Road NW | E112: Albuquerque | F112: 87114 | H112: 112 | I112: 437 Kentucky St. SE | J112: 110 | K112: 1.00112 | L112: 4401 Montgomery NE | O112: 113 | R112: =IFERROR(SEARCH(#REF!,S112)+ROW()/100000,"") ->  | S112: 505.881.4999
A113: 111 | B113: La Hacienda Apartments | C113: 505.864.8477 | D113: 420 North Second St. | E113: Belen | F113: 87002 | H113: 113 | I113: 428 West Gale | J113: 111 | K113: 1.00113 | L113: 601 Garcia St. | O113: 114 | P113: =IFERROR(VLOOKUP(O113,Q113:S389,3,FALSE),"") ->  | R113: =IFERROR(SEARCH(#REF!,S113)+ROW()/100000,"") ->  | S113: 575.461.7823
A114: 112 | B114: La Luz Apartments | C114: 505.438.0010 | D114: 2325 Cerrillos Road | E114: Santa Fe | F114: 87505 | H114: 114 | I114: 428 West Gale | J114: 112 | K114: 1.00114 | L114: 437 Kentucky St. SE | O114: 115 | R114: =IFERROR(SEARCH(#REF!,S114)+ROW()/100000,"") ->  | S114: 505.266.7000
A115: 113 | B115: La Paloma del Sol | C115: 575.546.8567 | D115: 601 South Santa Monica St. | E115: Deming | F115: 88030 | H115: 115 | I115: =IFERROR(VLOOKUP(H115,J115:L390,3,FALSE),"") -> 800 West Buckeye St. | J115: 113 | K115: 1.00115 | L115: 428 West Gale | O115: 116 | R115: =IFERROR(SEARCH(#REF!,S115)+ROW()/100000,"") ->  | S115: 575.542.9336
A116: 114 | B116: La Posada Apartments | C116: 575.885.3816 | D116: 710 Hueco St. | E116: Carlsbad | F116: 88220 | H116: 116 | I116: 2351 Moreland Drive | J116: 114 | K116: 1.00116 | L116: 428 West Gale | O116: 117 | R116: =IFERROR(SEARCH(#REF!,S116)+ROW()/100000,"") ->  | S116: 575.542.9336
A117: 115 | B117: La Pradera Apartments | C117: 575.392.0038 | D117: 1023 East Glorietta Drive | E117: Hobbs | F117: 88240 | H117: 117 | I117: 3600 Old Airport Road NW | J117: 115 | K117: 1.00117 | L117: 800 West Buckeye St. | O117: 118 | R117: =IFERROR(SEARCH(#REF!,S117)+ROW()/100000,"") ->  | S117: 575.546.6619
A118: 116 | B118: La Resolana Apartments | C118: 505.296.1425 | D118: 1025 Chelwood Park Blvd. NE | E118: Albuquerque | F118: 87112 | H118: 118 | I118: 420 North Second St. | J118: 116 | K118: 1.00118 | L118: 2351 Moreland Drive | O118: 119 | R118: =IFERROR(SEARCH(#REF!,S118)+ROW()/100000,"") ->  | S118: 505.425.6555
A119: 117 | B119: La Terraza Apartments | C119: 505.836.5800 | D119: 3704 Ladera Drive NW | E119: Albuquerque | F119: 87120 | H119: 119 | I119: 2325 Cerrillos Road | J119: 117 | K119: 1.00119 | L119: 3600 Old Airport Road NW | O119: 120 | R119: =IFERROR(SEARCH(#REF!,S119)+ROW()/100000,"") ->  | S119: 505.890.9400
A120: 118 | B120: La Terraza Apartments | C120: 505.324.6201 | D120: 900 Cannery Court | E120: Farmington | F120: 87401 | H120: 120 | I120: 601 South Santa Monica St. | J120: 118 | K120: 1.0012 | L120: 420 North Second St. | O120: 121 | R120: =IFERROR(SEARCH(#REF!,S120)+ROW()/100000,"") ->  | S120: 505.864.8477
A121: 119 | B121: La Tierra Apartments | C121: 575.258.2727 | D121: 107 Jack Little Drive | E121: Ruidoso | F121: 88345 | H121: 121 | I121: 710 Hueco St. | J121: 119 | K121: 1.00121 | L121: 2325 Cerrillos Road | O121: 122 | R121: =IFERROR(SEARCH(#REF!,S121)+ROW()/100000,"") ->  | S121: 505.438.0010
A122: 120 | B122: La Vida Nueva | C122: 505.265.2860 | D122: 1200 Dickerson Drive SE | E122: Albuquerque | F122: 87106 | H122: 122 | I122: 1023 East Glorietta Drive | J122: 120 | K122: 1.00122 | L122: 601 South Santa Monica St. | O122: 123 | R122: =IFERROR(SEARCH(#REF!,S122)+ROW()/100000,"") ->  | S122: 575.546.8567
A123: 121 | B123: La Villa Elena | C123: 505.867.6123 | D123: 201 Villa Elena Lane | E123: Bernalillo | F123: 87004 | H123: 123 | I123: 1025 Chelwood Park Blvd. NE | J123: 121 | K123: 1.00123 | L123: 710 Hueco St. | O123: 124 | R123: =IFERROR(SEARCH(#REF!,S123)+ROW()/100000,"") ->  | S123: 575.885.3816
A124: 122 | B124: Ladera Apartment Homes | C124: 575.378.5262 | D124: 102 Dipalo Hill Drive | E124: Ruidoso Downs | F124: 88346 | H124: 124 | I124: 3704 Ladera Drive NW | J124: 122 | K124: 1.00124 | L124: 1023 East Glorietta Drive | O124: 125 | R124: =IFERROR(SEARCH(#REF!,S124)+ROW()/100000,"") ->  | S124: 575.392.0038
A125: 123 | B125: Ladera Village Apartments | C125: 505.326.1687 | D125: 3500 North Butler Ave. | E125: Farmington | F125: 87401 | H125: 125 | I125: 900 Cannery Court | J125: 123 | K125: 1.00125 | L125: 1025 Chelwood Park Blvd. NE | O125: 126 | R125: =IFERROR(SEARCH(#REF!,S125)+ROW()/100000,"") ->  | S125: 505.296.1425
A126: 124 | B126: Laguna Homes | C126: 505.552.6430 | D126: 13 Rodeo Drive | E126: Laguna | F126: 87026 | H126: 126 | I126: 107 Jack Little Drive | J126: 124 | K126: 1.00126 | L126: 3704 Ladera Drive NW | O126: 127 | R126: =IFERROR(SEARCH(#REF!,S126)+ROW()/100000,"") ->  | S126: 505.836.5800
A127: 125 | B127: Las Brisas Apartments | C127: 505.255.4252 | D127: 1201 San Pedro Drive SE | E127: Albuquerque | F127: 87108 | H127: 127 | I127: 1200 Dickerson Drive SE | J127: 125 | K127: 1.00127 | L127: 900 Cannery Court | O127: 128 | R127: =IFERROR(SEARCH(#REF!,S127)+ROW()/100000,"") ->  | S127: 505.324.6201
A128: 126 | B128: Las Lomas Apartments | C128: 505.747.3790 | D128: 600 State Road 76 | E128: Espanola | F128: 87532 | H128: 128 | I128: 201 Villa Elena Lane | J128: 126 | K128: 1.00128 | L128: 107 Jack Little Drive | O128: 129 | R128: =IFERROR(SEARCH(#REF!,S128)+ROW()/100000,"") ->  | S128: 575.258.2727
A129: 127 | B129: Las Palomas Apartments | C129: 505.984.8887 | D129: 2001 Hopewell St. | E129: Santa Fe | F129: 87505 | H129: 129 | I129: 102 Dipalo Hill Drive | J129: 127 | K129: 1.00129 | L129: 1200 Dickerson Drive SE | O129: 130 | R129: =IFERROR(SEARCH(#REF!,S129)+ROW()/100000,"") ->  | S129: 505.265.2860
A130: 128 | B130: Lifestyle Apartments at Renaissance | C130: 505.341.3540 | D130: 4920 Union Way NE | E130: Albuquerque | F130: 87107 | H130: 130 | I130: 3500 North Butler Ave. | J130: 128 | K130: =IFERROR(SEARCH($D$1,L130)+ROW()/100000,"") -> 1.0013 | L130: 201 Villa Elena Lane | O130: 131 | R130: =IFERROR(SEARCH(#REF!,S130)+ROW()/100000,"") ->  | S130: 505.867.6123
A131: 129 | B131: Lintero Apartments | C131: 575.388.2519 | D131: 2711 North Leslie | E131: Silver City | F131: 88061 | H131: 131 | I131: 13 Rodeo Drive | J131: =IFERROR(RANK(K131,$K$3:$K$279,1),"") -> 129 | K131: 1.00131 | L131: 102 Dipalo Hill Drive | O131: 132 | Q131: =IFERROR(RANK(R131,$R$3:$R$279,1),"") ->  | R131: =IFERROR(SEARCH(#REF!,S131)+ROW()/100000,"") ->  | S131: 575.378.5262
A132: 130 | B132: Lolomas Senior Housing | C132: 575.763.9575 | D132: 1500 Mitchell St. | E132: Clovis | F132: 88101 | H132: 132 | I132: 1201 San Pedro Drive SE | J132: 130 | K132: 1.00132 | L132: 3500 North Butler Ave. | O132: 133 | R132: =IFERROR(SEARCH(#REF!,S132)+ROW()/100000,"") ->  | S132: 505.326.1687
A133: 131 | B133: Loma Del Norte | C133: 575.882.2282 | D133: 1130 North Fourth St. | E133: Anthony | F133: 88021 | H133: 133 | I133: 600 State Road 76 | J133: 131 | K133: 1.00133 | L133: 13 Rodeo Drive | O133: 134 | R133: =IFERROR(SEARCH(#REF!,S133)+ROW()/100000,"") ->  | S133: 505.552.6430
A134: 132 | B134: Loma Parda Apartments | C134: 575.758.4400 | D134: 1200 Camino de La Cruz | E134: Taos | F134: 87571 | H134: 134 | I134: 2001 Hopewell St. | J134: 132 | K134: 1.00134 | L134: 1201 San Pedro Drive SE | O134: 135 | R134: =IFERROR(SEARCH(#REF!,S134)+ROW()/100000,"") ->  | S134: 505.255.4252
A135: 133 | B135: Lomas Gardens | C135: 505.292.5916 | D135: 12601 Lomas Blvd. NE | E135: Albuquerque | F135: 87112 | H135: 135 | I135: 4920 Union Way NE | J135: 133 | K135: 1.00135 | L135: 600 State Road 76 | O135: 136 | R135: =IFERROR(SEARCH(#REF!,S135)+ROW()/100000,"") ->  | S135: 505.747.3790
A136: 134 | B136: Los Alamos Group Home | C136: 505.662.4703 | D136: 2056 Peach St. | E136: Los Alamos | F136: 87544 | H136: 136 | I136: 2711 North Leslie | J136: 134 | K136: 1.00136 | L136: 2001 Hopewell St. | O136: 137 | R136: =IFERROR(SEARCH(#REF!,S136)+ROW()/100000,"") ->  | S136: 505.984.8887
A137: 135 | B137: Los Altos Apartments | C137: 575.525.8535 | D137: 2301 El Camino | E137: Las Cruces | F137: 88012 | H137: 137 | I137: 2711 North Leslie | J137: 135 | K137: 1.00137 | L137: 4920 Union Way NE | O137: 138 | R137: =IFERROR(SEARCH(#REF!,S137)+ROW()/100000,"") ->  | S137: 505.341.3540
A138: 136 | B138: Luna Lodge Apartments | C138: 505.266.7000 | D138: 9119 Central Ave. NE | E138: Albuquerque | F138: 87123 | H138: 138 | I138: 1500 Mitchell St. | J138: 136 | K138: 1.00138 | L138: 2711 North Leslie | O138: 139 | R138: =IFERROR(SEARCH(#REF!,S138)+ROW()/100000,"") ->  | S138: 575.388.2519
A139: 137 | B139: Main Street Townhomes | C139: 575.763.9529 | D139: 3205 North Main St. | E139: Clovis | F139: 88101 | H139: 139 | I139: 1130 North Fourth St. | J139: 137 | K139: 1.00139 | L139: 2711 North Leslie | O139: 140 | R139: =IFERROR(SEARCH(#REF!,S139)+ROW()/100000,"") ->  | S139: 575.388.2519
A140: 138 | B140: Manzano Mesa Apartments | C140: 505.332.7200 | D140: 700 Eubank Blvd. SE | E140: Albuquerque | F140: 87123 | H140: 140 | I140: 1200 Camino de La Cruz | J140: 138 | K140: 1.0014 | L140: 1500 Mitchell St. | O140: 141 | R140: =IFERROR(SEARCH(#REF!,S140)+ROW()/100000,"") ->  | S140: 575.763.9575
A141: 139 | B141: Mariposa Village Sr. | C141: 575.544.0087 | D141: 901 South Tennyson | E141: Deming | F141: 88030 | H141: 141 | I141: 12601 Lomas Blvd. NE | J141: 139 | K141: 1.00141 | L141: 1130 North Fourth St. | O141: 142 | R141: =IFERROR(SEARCH(#REF!,S141)+ROW()/100000,"") ->  | S141: 575.882.2282
A142: 140 | B142: Meadow Vista Homes | C142: 575.874.3453 | D142: 329 Meadow Vista Road | E142: Sunland Park | F142: 88063 | H142: 142 | I142: 2056 Peach St. | J142: 140 | K142: 1.00142 | L142: 1200 Camino de La Cruz | O142: 143 | R142: =IFERROR(SEARCH(#REF!,S142)+ROW()/100000,"") ->  | S142: 575.758.4400
A143: 141 | B143: Mesa Del Norte Apartments | C143: 505.661.8474 | D143: 650 San Ildefonso Road | E143: Los Alamos | F143: 87544 | H143: 143 | I143: 2301 El Camino | J143: 141 | K143: 1.00143 | L143: 12601 Lomas Blvd. NE | O143: 144 | R143: =IFERROR(SEARCH(#REF!,S143)+ROW()/100000,"") ->  | S143: 505.292.5916
A144: 142 | B144: Mesa Ridge Apartments | C144: 505.836.1924 | D144: 3501 Atrisco NW | E144: Albuquerque | F144: 87120 | H144: 144 | I144: 9119 Central Ave. NE | J144: 142 | K144: 1.00144 | L144: 2056 Peach St. | O144: 145 | R144: =IFERROR(SEARCH(#REF!,S144)+ROW()/100000,"") ->  | S144: 505.662.4703
A145: 143 | B145: Mesa Verde Apartments | C145: 575.622.4944 | D145: 502 South Wyoming Ave. | E145: Roswell | F145: 88203 | H145: 145 | I145: 3205 North Main St. | J145: 143 | K145: 1.00145 | L145: 2301 El Camino | O145: 146 | P145: =IFERROR(VLOOKUP(O145,Q145:S421,3,FALSE),"") ->  | R145: =IFERROR(SEARCH(#REF!,S145)+ROW()/100000,"") ->  | S145: 575.525.8535
A146: 144 | B146: Mesa Village Apartments | C146: 505.564.2570 | D146: 1750 East Elm St. | E146: Farmington | F146: 87401 | H146: 146 | I146: 700 Eubank Blvd. SE | J146: 144 | K146: 1.00146 | L146: 9119 Central Ave. NE | O146: 147 | R146: =IFERROR(SEARCH(#REF!,S146)+ROW()/100000,"") ->  | S146: 505.266.7000
A147: 145 | B147: Mesquite Village | C147: 575.541.5979 | D147: 1851 North Mesquite St. | E147: Las Cruces | F147: 88001 | H147: 147 | I147: =IFERROR(VLOOKUP(H147,J147:L422,3,FALSE),"") -> 901 South Tennyson | J147: 145 | K147: 1.00147 | L147: 3205 North Main St. | O147: 148 | R147: =IFERROR(SEARCH(#REF!,S147)+ROW()/100000,"") ->  | S147: 575.763.9529
A148: 146 | B148: Mesquite Village | C148: 575.482.9539 | D148: 412 South Ave. F | E148: Texico | F148: 88135 | H148: 148 | I148: 329 Meadow Vista Road | J148: 146 | K148: 1.00148 | L148: 700 Eubank Blvd. SE | O148: 149 | R148: =IFERROR(SEARCH(#REF!,S148)+ROW()/100000,"") ->  | S148: 505.332.7200
A149: 147 | B149: Mira Vista Villas | C149: 575.647.8444 | D149: 2141 North Solano Drive | E149: Las Cruces | F149: 88001 | H149: 149 | I149: 650 San Ildefonso Road | J149: 147 | K149: 1.00149 | L149: 901 South Tennyson | O149: 150 | R149: =IFERROR(SEARCH(#REF!,S149)+ROW()/100000,"") ->  | S149: 575.544.0087
A150: 148 | B150: Mission Apartments | C150: 575.885.8204 | D150: 805 Hueco St. | E150: Carlsbad | F150: 88220 | H150: 150 | I150: 502 South Wyoming Ave. | J150: 148 | K150: 1.0015 | L150: 329 Meadow Vista Road | O150: 151 | R150: =IFERROR(SEARCH(#REF!,S150)+ROW()/100000,"") ->  | S150: 575.874.3453
A151: 149 | B151: Montana Meadows | C151: 575.524.1873 | D151: 201 Montana Ave. | E151: Las Cruces | F151: 88005 | H151: 151 | I151: 1750 East Elm St. | J151: 149 | K151: 1.00151 | L151: 650 San Ildefonso Road | O151: 152 | R151: =IFERROR(SEARCH(#REF!,S151)+ROW()/100000,"") ->  | S151: 505.661.8474
A152: 150 | B152: Montana Senior Village | C152: 575.647.0918 | D152: 370 East Montana Ave. #101 | E152: Las Cruces | F152: 88005 | H152: 153 | I152: =IFERROR(VLOOKUP(H152,J152:L428,3,FALSE),"") -> 412 South Ave. F | J152: 150 | K152: 1.00152 | L152: 502 South Wyoming Ave. | O152: 154 | P152: =IFERROR(VLOOKUP(O152,Q152:S429,3,FALSE),"") ->  | R152: =IFERROR(SEARCH(#REF!,S152)+ROW()/100000,"") ->  | S152: 575.622.4944
A153: 151 | B153: Monte Vista Apartments | C153: 505.454.0098 | D153: 500 Mountain View Drive | E153: Las Vegas | F153: 87701 | H153: 154 | I153: 2141 North Solano Drive | J153: 151 | K153: 1.00153 | L153: 1750 East Elm St. | O153: 155 | R153: =IFERROR(SEARCH(#REF!,S153)+ROW()/100000,"") ->  | S153: 505.564.2570
A154: 152 | B154: Montgomery Manor | C154: 505.296.9023 | D154: 4301 Morris St. NE | E154: Albuquerque | F154: 87111 | H154: 155 | I154: 805 Hueco St. | J154: 152 | K154: 1.00154 | L154: 1851 North Mesquite St. | O154: 156 | R154: =IFERROR(SEARCH(#REF!,S154)+ROW()/100000,"") ->  | S154: 575.541.5979
A155: 153 | B155: Mountain View Estates | C155: 575.546.6619 | D155: 1101 Shelly Drive | E155: Deming | F155: 88030 | H155: 156 | I155: 201 Montana Ave. | J155: 153 | K155: 1.00155 | L155: 412 South Ave. F | O155: 157 | R155: =IFERROR(SEARCH(#REF!,S155)+ROW()/100000,"") ->  | S155: 575.482.9539
A156: 154 | B156: Mountain View II | C156: 505.266.5455 | D156: 1515 Columbia St. SE | E156: Albuquerque | F156: 87106 | H156: 157 | I156: 201 Montana Ave. | J156: 154 | K156: 1.00156 | L156: 2141 North Solano Drive | O156: 158 | R156: =IFERROR(SEARCH(#REF!,S156)+ROW()/100000,"") ->  | S156: 575.647.8444
A157: 155 | B157: Mountain View III | C157: 505.266.5455 | D157: 1333 Columbia St. SE | E157: Albuquerque | F157: 87106 | H157: 158 | I157: 370 East Montana Ave. #101 | J157: 155 | K157: 1.00157 | L157: 805 Hueco St. | O157: 159 | R157: =IFERROR(SEARCH(#REF!,S157)+ROW()/100000,"") ->  | S157: 575.885.8204
A158: 156 | B158: Mountain Vista Apartments | C158: 505.662.5417 | D158: 600 San Ildefonso Road | E158: Los Alamos | F158: 87544 | H158: 159 | I158: 500 Mountain View Drive | J158: 156 | K158: 1.00158 | L158: 201 Montana Ave. | O158: 160 | R158: =IFERROR(SEARCH(#REF!,S158)+ROW()/100000,"") ->  | S158: 575.524.1873
A159: 157 | B159: New Leaf Communities | C159: 575.964.1571 | D159: 1601 East Marland St. | E159: Hobbs | F159: 88240 | H159: 160 | I159: 4301 Morris St. NE | J159: 157 | K159: 1.00159 | L159: 201 Montana Ave. | O159: 161 | R159: =IFERROR(SEARCH(#REF!,S159)+ROW()/100000,"") ->  | S159: 575.527.8566
A160: 158 | B160: NewLife Homes IV | C160: 505.433.5111 | D160: 6600 Delia Roa SW | E160: Albuquerque | F160: 87121 | H160: 161 | I160: 4301 Morris St. NE | J160: 158 | K160: 1.0016 | L160: 370 East Montana Ave. #101 | O160: 162 | R160: =IFERROR(SEARCH(#REF!,S160)+ROW()/100000,"") ->  | S160: 575.647.0918
A161: 159 | B161: North Star Apartments | C161: 505.425.5060 | D161: 333 Chico Drive | E161: Las Vegas | F161: 87701 | H161: 162 | I161: 1101 Shelly Drive | J161: 159 | K161: 1.00161 | L161: 500 Mountain View Drive | O161: 163 | R161: =IFERROR(SEARCH(#REF!,S161)+ROW()/100000,"") ->  | S161: 505.454.0098
A162: 160 | B162: Northgate Apartments | C162: 505.327.4197 | D162: 2500 West Apache St. | E162: Farmington | F162: 87401 | H162: 163 | I162: 1101 Shelly Drive | J162: 160 | K162: 1.00162 | L162: 4301 Morris St. NE | O162: 164 | R162: =IFERROR(SEARCH(#REF!,S162)+ROW()/100000,"") ->  | S162: 505.296.9023
A163: 161 | B163: Ortiz Properties | C163: 505.255.8275 | D163: 1335 Ortiz Road SE | E163: Albuquerque | F163: 87108 | H163: 164 | I163: 1515 Columbia St. SE | J163: 161 | K163: 1.00163 | L163: 4301 Morris St. NE | O163: 165 | R163: =IFERROR(SEARCH(#REF!,S163)+ROW()/100000,"") ->  | S163: 505.296.9023
A164: 162 | B164: Otero Village Apartments | C164: 575.437.0498 | D164: 2553 East First St. | E164: Alamogordo | F164: 88310 | H164: 165 | I164: 1333 Columbia St. SE | J164: 162 | K164: 1.00164 | L164: 1101 Shelly Drive | O164: 166 | R164: =IFERROR(SEARCH(#REF!,S164)+ROW()/100000,"") ->  | S164: 575.546.6619
A165: 163 | B165: PAHA LIHTC Homes #1 | C165: 505.552.7528 | D165: 6-A Sunrise Road | E165: Pueblo of Acoma | F165: 87034 | H165: 166 | I165: 600 San Ildefonso Road | J165: 163 | K165: 1.00165 | L165: 1101 Shelly Drive | O165: 167 | R165: =IFERROR(SEARCH(#REF!,S165)+ROW()/100000,"") ->  | S165: 575.546.6619
A166: 164 | B166: Park Place Apartments | C166: 575.397.2195 | D166: 920 East Michigan Drive | E166: Hobbs | F166: 88240 | H166: 167 | I166: 1601 East Marland St. | J166: 164 | K166: 1.00166 | L166: 1515 Columbia St. SE | O166: 168 | R166: =IFERROR(SEARCH(#REF!,S166)+ROW()/100000,"") ->  | S166: 505.266.5455
A167: 165 | B167: Parkside Village | C167: 575.769.2490 | D167: 1200 North Sycamore St. | E167: Clovis | F167: 88101 | H167: 168 | I167: 6600 Delia Roa SW | J167: 165 | K167: 1.00167 | L167: 1333 Columbia St. SE | O167: 169 | R167: =IFERROR(SEARCH(#REF!,S167)+ROW()/100000,"") ->  | S167: 505.266.5455
A168: 166 | B168: Pasa Tiempo | C168: 505.988.2859 | D168: 664 Alta Vista St. | E168: Santa Fe | F168: 87507 | H168: 169 | I168: 333 Chico Drive | J168: 166 | K168: 1.00168 | L168: 600 San Ildefonso Road | O168: 170 | R168: =IFERROR(SEARCH(#REF!,S168)+ROW()/100000,"") ->  | S168: 505.662.5417
A169: 167 | B169: Paseo Del Sol Apartments | C169: 505.473.5980 | D169: 4551 Paseo Del Sol | E169: Santa Fe | F169: 87507 | H169: 170 | I169: 2500 West Apache St. | J169: 167 | K169: 1.00169 | L169: 1601 East Marland St. | O169: 171 | R169: =IFERROR(SEARCH(#REF!,S169)+ROW()/100000,"") ->  | S169: 575.964.1571
A170: 168 | B170: Paseo del Sol Apartments | C170: 505.897.8356 | D170: 291 El Pueblo Road NW | E170: Los Ranchos de Albuquerque | F170: 87114 | H170: 171 | I170: 2500 West Apache St. | J170: 168 | K170: 1.0017 | L170: 6600 Delia Roa SW | O170: 172 | R170: =IFERROR(SEARCH(#REF!,S170)+ROW()/100000,"") ->  | S170: 505.433.5111
A171: 169 | B171: Pecos Valley Village | C171: 575.623.1800 | D171: Scattered Site | E171: Roswell | F171: 88203 | H171: 172 | I171: 1335 Ortiz Road SE | J171: 169 | K171: 1.00171 | L171: 333 Chico Drive | O171: 173 | R171: =IFERROR(SEARCH(#REF!,S171)+ROW()/100000,"") ->  | S171: 505.425.5060
A172: 170 | B172: Piñon Hills Apartments | C172: 505.722.6025 | D172: 2811 Dairy Drive | E172: Gallup | F172: 87301 | H172: 173 | I172: 2553 East First St. | J172: 170 | K172: 1.00172 | L172: 2500 West Apache St. | O172: 174 | R172: =IFERROR(SEARCH(#REF!,S172)+ROW()/100000,"") ->  | S172: 505.327.4197
A173: 171 | B173: Pinon Palmer Rental | C173: 575.464.9235 | D173: 165 Bull Pen Road | E173: Mescalero | F173: 88340 | H173: 174 | I173: 6-A Sunrise Road | J173: 171 | K173: 1.00173 | L173: 2500 West Apache St. | O173: 175 | R173: =IFERROR(SEARCH(#REF!,S173)+ROW()/100000,"") ->  | S173: 505.327.4197
A174: 172 | B174: Pinos Blancos | C174: 505.632.3206 | D174: 600 West Blanco Blvd. | E174: Bloomfield | F174: 87413 | H174: 175 | I174: 920 East Michigan Drive | J174: 172 | K174: 1.00174 | L174: 1335 Ortiz Road SE | O174: 176 | R174: =IFERROR(SEARCH(#REF!,S174)+ROW()/100000,"") ->  | S174: 505.255.8275
A175: 173 | B175: Playa Apartments | C175: 575.589.0498 | D175: 142 Linda Vista Drive | E175: Sunland Park | F175: 88063 | H175: 176 | I175: 1200 North Sycamore St. | J175: 173 | K175: 1.00175 | L175: 2553 East First St. | O175: 177 | R175: =IFERROR(SEARCH(#REF!,S175)+ROW()/100000,"") ->  | S175: 575.437.0498
A176: 174 | B176: Plaza Ciudaña | C176: 505.219.2163 | D176: 310 Indian School Road NE | E176: Albuquerque | F176: 87102 | H176: 177 | I176: 664 Alta Vista St. | J176: 174 | K176: 1.00176 | L176: 6-A Sunrise Road | O176: 178 | R176: =IFERROR(SEARCH(#REF!,S176)+ROW()/100000,"") ->  | S176: 505.552.7528
A177: 175 | B177: Plaza David Chavez | C177: 505.242.1361 | D177: 2821 Mountain Road NW | E177: Albuquerque | F177: 87104 | H177: 178 | I177: 4551 Paseo Del Sol | J177: 175 | K177: 1.00177 | L177: 920 East Michigan Drive | O177: 179 | R177: =IFERROR(SEARCH(#REF!,S177)+ROW()/100000,"") ->  | S177: 575.397.2195
A178: 176 | B178: Plaza Feliz Apartments | C178: 505.255.3030 | D178: 517 San Pablo St. SE | E178: Albuquerque | F178: 87108 | H178: 179 | I178: 291 El Pueblo Road NW | J178: 176 | K178: 1.00178 | L178: 1200 North Sycamore St. | O178: 180 | R178: =IFERROR(SEARCH(#REF!,S178)+ROW()/100000,"") ->  | S178: 575.769.2490
A179: 177 | B179: Polk Avenue Apartments | C179: 575.396.6129 | D179: 214 West Polk Ave. | E179: Lovington | F179: 88260 | H179: 180 | I179: Scattered Site | J179: 177 | K179: 1.00179 | L179: 664 Alta Vista St. | O179: 181 | R179: =IFERROR(SEARCH(#REF!,S179)+ROW()/100000,"") ->  | S179: 505.988.2859
A180: 178 | B180: Portales Estates | C180: 575.359.0610 | D180: 1903 South Avenue I, H5 | E180: Portales | F180: 88130 | H180: 181 | I180: 2811 Dairy Drive | J180: 178 | K180: 1.0018 | L180: 4551 Paseo Del Sol | O180: 182 | R180: =IFERROR(SEARCH(#REF!,S180)+ROW()/100000,"") ->  | S180: 505.473.5980
A181: 179 | B181: Quay Apartments | C181: 575.461.3555 | D181: 702 West Sunset Ave. | E181: Tucumcari | F181: 88401 | H181: 182 | I181: 165 Bull Pen Road | J181: 179 | K181: 1.00181 | L181: 291 El Pueblo Road NW | O181: 183 | R181: =IFERROR(SEARCH(#REF!,S181)+ROW()/100000,"") ->  | S181: 505.897.8356
A182: 180 | B182: Ranchitos Village Apartments | C182: 505.822.9159 | D182: 6811 Ranchitos Road NE | E182: Albuquerque | F182: 87109 | H182: 183 | I182: 600 West Blanco Blvd. | J182: 180 | K182: 1.00182 | L182: Scattered Site | O182: 184 | R182: =IFERROR(SEARCH(#REF!,S182)+ROW()/100000,"") ->  | S182: 575.623.1800
A183: 181 | B183: Red Lake Acres | C183: 505.777.2480 | D183: PO Box 1277 | E183: Navajo | F183: 87328 | H183: 184 | I183: 142 Linda Vista Drive | J183: 181 | K183: 1.00183 | L183: 2811 Dairy Drive | O183: 185 | R183: =IFERROR(SEARCH(#REF!,S183)+ROW()/100000,"") ->  | S183: 505.722.6025
A184: 182 | B184: Rio Abajo Apartments | C184: 575.894.2875 | D184: 1485 East Second Ave. | E184: T or C | F184: 87901 | H184: 185 | I184: 310 Indian School Road NE | J184: 182 | K184: 1.00184 | L184: 165 Bull Pen Road | O184: 186 | R184: =IFERROR(SEARCH(#REF!,S184)+ROW()/100000,"") ->  | S184: 575.464.9235
A185: 183 | B185: Rio Mimbres Apartments | C185: 575.546.8257 | D185: 1608 South Tin St. | E185: Deming | F185: 88030 | H185: 186 | I185: 2821 Mountain Road NW | J185: 183 | K185: 1.00185 | L185: 600 West Blanco Blvd. | O185: 187 | R185: =IFERROR(SEARCH(#REF!,S185)+ROW()/100000,"") ->  | S185: 505.632.3206
A186: 184 | B186: Rio Pecos Estates | C186: 575.472.2272 | D186: 1005 McCarley Loop | E186: Santa Rosa | F186: 88435 | H186: 187 | I186: 517 San Pablo St. SE | J186: 184 | K186: 1.00186 | L186: 142 Linda Vista Drive | O186: 188 | R186: =IFERROR(SEARCH(#REF!,S186)+ROW()/100000,"") ->  | S186: 575.589.0498
A187: 185 | B187: Rio Verde Apartments | C187: 505.864.9558 | D187: 2291 Highway 304 | E187: Belen | F187: 87002 | H187: 188 | I187: 214 West Polk Ave. | J187: 185 | K187: 1.00187 | L187: 310 Indian School Road NE | O187: 189 | R187: =IFERROR(SEARCH(#REF!,S187)+ROW()/100000,"") ->  | S187: 505.219.2163
A188: 186 | B188: Rio Vista Apartments | C188: 505.299.9119 | D188: 770 Juan Tabo Blvd. NE | E188: Albuquerque | F188: 87123 | H188: 189 | I188: 214 West Polk Ave. | J188: 186 | K188: 1.00188 | L188: 2821 Mountain Road NW | O188: 190 | R188: =IFERROR(SEARCH(#REF!,S188)+ROW()/100000,"") ->  | S188: 505.242.1361
A189: 187 | B189: Rio Volcan Apartments | C189: 505.836.0902 | D189: 1919 Ladera Drive NW | E189: Albuquerque | F189: 87120 | H189: 191 | I189: =IFERROR(VLOOKUP(H189,J189:L466,3,FALSE),"") -> 702 West Sunset Ave. | J189: 187 | K189: 1.00189 | L189: 517 San Pablo St. SE | O189: 192 | P189: =IFERROR(VLOOKUP(O189,Q189:S467,3,FALSE),"") ->  | R189: =IFERROR(SEARCH(#REF!,S189)+ROW()/100000,"") ->  | S189: 505.255.3030
A190: 188 | B190: River Glen Apartments | C190: 505.839.0600 | D190: 6801 Glenrio Road NW | E190: Albuquerque | F190: 87121 | H190: 192 | I190: 6811 Ranchitos Road NE | J190: 188 | K190: 1.0019 | L190: 214 West Polk Ave. | O190: 193 | R190: =IFERROR(SEARCH(#REF!,S190)+ROW()/100000,"") ->  | S190: 575.396.6129
A191: 189 | B191: Robledo Ridge Apartments | C191: 575.556.9820 | D191: 1519 Medina Drive | E191: Las Cruces | F191: 88007 | H191: 193 | I191: PO Box 1277 | J191: 189 | K191: 1.00191 | L191: 214 West Polk Ave. | O191: 194 | R191: =IFERROR(SEARCH(#REF!,S191)+ROW()/100000,"") ->  | S191: 575.396.6129
A192: 190 | B192: Roselawn Apartments | C192: 575.736.1073 | D192: 1006 South Roselawn | E192: Artesia | F192: 88210 | H192: 194 | I192: 1485 East Second Ave. | J192: 190 | K192: =IFERROR(SEARCH($D$1,L192)+ROW()/100000,"") -> 1.00192 | L192: 1903 South Avenue I, H5 | O192: 195 | R192: =IFERROR(SEARCH(#REF!,S192)+ROW()/100000,"") ->  | S192: 575.359.0610
A193: 191 | B193: Roswell Summit Apartments | C193: 575.622.4646 | D193: 1100 South Wyoming | E193: Roswell | F193: 88203 | H193: 195 | I193: 1608 South Tin St. | J193: 191 | K193: 1.00193 | L193: 702 West Sunset Ave. | O193: 196 | R193: =IFERROR(SEARCH(#REF!,S193)+ROW()/100000,"") ->  | S193: 575.461.3555
A194: 192 | B194: Ruth Visage Apartments | C194: 575.356.6562 | D194: 1101 West Fir St. | E194: Portales | F194: 88130 | H194: 196 | I194: 1005 McCarley Loop | J194: 192 | K194: 1.00194 | L194: 6811 Ranchitos Road NE | O194: 197 | R194: =IFERROR(SEARCH(#REF!,S194)+ROW()/100000,"") ->  | S194: 505.822.9159
A195: 193 | B195: Saddlecreek Apartments | C195: 575.622.3042 | D195: 1901 South Sunset Ave. | E195: Roswell | F195: 88203 | H195: 197 | I195: 2291 Highway 304 | J195: =IFERROR(RANK(K195,$K$3:$K$279,1),"") -> 193 | K195: 1.00195 | L195: PO Box 1277 | O195: 198 | Q195: =IFERROR(RANK(R195,$R$3:$R$279,1),"") ->  | R195: =IFERROR(SEARCH(#REF!,S195)+ROW()/100000,"") ->  | S195: 505.777.2480
A196: 194 | B196: Sage Apartments | C196: 505.863.4111 | D196: 110 Rudy Drive | E196: Gallup | F196: 87301 | H196: 198 | I196: 770 Juan Tabo Blvd. NE | J196: 194 | K196: 1.00196 | L196: 1485 East Second Ave. | O196: 199 | R196: =IFERROR(SEARCH(#REF!,S196)+ROW()/100000,"") ->  | S196: 575.894.2875
A197: 195 | B197: Sagebrush Place Apartments | C197: 505.722.7454 | D197: 650 Dani Drive | E197: Gallup | F197: 87301 | H197: 199 | I197: 770 Juan Tabo Blvd. NE | J197: 195 | K197: 1.00197 | L197: 1608 South Tin St. | O197: 200 | R197: =IFERROR(SEARCH(#REF!,S197)+ROW()/100000,"") ->  | S197: 575.546.8257
A198: 196 | B198: Saint Anthony Plaza Apartments | C198: 505.766.5619 | D198: 1750 Indian School Road NW | E198: Albuquerque | F198: 87104 | H198: 200 | I198: 1919 Ladera Drive NW | J198: 196 | K198: 1.00198 | L198: 1005 McCarley Loop | O198: 201 | R198: =IFERROR(SEARCH(#REF!,S198)+ROW()/100000,"") ->  | S198: 575.472.2272
A199: 197 | B199: San Juan Apartments | C199: 505.325.8590 | D199: 2614 East 20th St. | E199: Farmington | F199: 87401 | H199: 201 | I199: 6801 Glenrio Road NW | J199: 197 | K199: 1.00199 | L199: 2291 Highway 304 | O199: 202 | R199: =IFERROR(SEARCH(#REF!,S199)+ROW()/100000,"") ->  | S199: 505.864.9558
A200: 198 | B200: San Miguel Senior Apartments | C200: 505.425.5060 | D200: 2710 Collins Drive | E200: Las Vegas | F200: 87701 | H200: 202 | I200: 1519 Medina Drive | J200: 198 | K200: 1.002 | L200: 770 Juan Tabo Blvd. NE | O200: 203 | R200: =IFERROR(SEARCH(#REF!,S200)+ROW()/100000,"") ->  | S200: 505.299.9119
... 79 more rows

Sheet Lighting
C1: LIGHTING INCENTIVES FOR RETROFITS (Multifamily ONLY)
C2: IMPORTANT NOTICE: | E2: Only qualified LED lighting is elegible for a rebate. No fluorescent replacements are eligible for rebates. Scope of work is REQUIRED for all lighting projects.
A3: Applicant: fill in gray fields
A4: 1. Interior Retrofits
A5: Equipment Type* | J5: Incentive | K5: Unit | M5: # of Units | N5: Incentive Subtotal | P5: Cost | T5: =1.191 -> 1.191 | V5: Incentive | W5: kWh | X5: Cost/kWh | Z5: Proposed | AA5: Delta | AB5: Incentive W | AC5: kWh W
A6: LED Lighting | Q6: Recommend decreasing to these levels | T6: Fix to Fix | U6: In | V6: =E68*#REF! ->  | W6: =E68*3564*T5/1000 -> 0 | X6: 0.09423463104 | Z6: =V6/W6 ->  | AA6: =X6-Z6 ->  | AB6: 0.2953952082 | AC6: 0.2865916734
A7: 20W or less LED Lamp replacing Incandescent less than 75W: Ceiling Fans, Bath Vanity, Track Lights, Recessed Can, Pendants | J7: 2 | K7: LED Lamp | N7: =J7*M7 -> 0 | P7: 2 | U7: Ext | V7: =E69*#REF! ->  | W7: =E69*4192/1000 -> 0 | X7: 0.1192748092 | AB7: 0.2277392336 | AC7: 0.1641420573
A8: 20W or less LED Lamp replacing CFL Lamp less than 28W: Ceiling Fans, Vanity, Track Lights, Recessed Can, Pendants | J8: 1 | K8: LED Lamp | N8: =J8*M8 -> 0 | P8: 1 | U8: 24 | V8: =E70*#REF! ->  | W8: =E70*8760/1000 -> 0 | X8: 0.06849315068 | AB8: 0.06018826332 | AC8: 0.05926012659
A9: Controls* | C9: Watts Controlled Calculator Required - DOWNLOAD HERE | T9: Fix to Retro | U9: In | V9: =I68*#REF! ->  | W9: =I68*3564*T5/1000 -> 0 | X9: 0.04711731552 | AB9: 0.04139502914 | AC9: 0.05890014028
A10: Occupancy Sensors | J10: 0.15 | K10: Watts Controlled | N10: =J10*M10 -> 0 | P10: 0.1423469353 | U10: Ext | V10: =I69*#REF! ->  | W10: =I69*4192/1000 -> 0 | X10: 0.05963740458 | AB10: 0.005633925964 | AC10: 0.005185389619
A11: Daylighting Sensor Controls | J11: 0.09 | K11: Watts Controlled | N11: =J11*M11 -> 0 | U11: 24 | V11: =I70*#REF! ->  | W11: =I70*8760/1000 -> 0 | X11: 0.03424657534 | AB11: 0.1164101134 | AC11: 0.1795344842
C12: NOTE: Individual apartment units DO NOT qualify for Interior Controls | T12: L to L | U12: In | V12: =G68*#REF! ->  | W12: =G68*3564*T5/1000 -> 0 | X12: 0.03533798664 | AB12: 0.1248771278 | AC12: 0.1644381947
I13: Income Qualifier Bonus: | N13: =IF('Applicant Info'!P13=TRUE,SUM(Lighting!N7:N11)*0.1,0) -> 0 | Q13: =N14 -> 0 | U13: Ext | V13: =G69*#REF! ->  | W13: =G69*4192/1000 -> 0 | X13: 0.04770992366 | AB13: 0.00618656693 | AC13: 0.007225629765
I14: Total Retrofit Lighting Incentives (Interior): | N14: =IF(N13="",SUM(N7:N11),SUM(N7:N13)) -> 0 | U14: 24 | V14: =G70*#REF! ->  | W14: =G70*8760/1000 -> 0 | X14: 0.02853881279 | AB14: 0.02881852043 | AC14: 0.05339410861
A15: *Please provide a description of the retrofit, including any lighting layouts, fixture counts or calculation spreadsheets.
A16: ** Interior controls for non apartment units (i.e. Leasing Office, Hall/Entry, Laundry Room, Gym, etc.).
A17: *** A dwelling unit is defined as an interior space that is residential in nature (i.e. Appartments,hotel rooms, dormitories, retirement and senior living communities, etc.).
A18: ****Watts Reduced = old connected wattage - new connected wattage
A21: 2. LED Replacing HID (Lamps, Fixtures & Retrofit kits)
B22: Type of Retrofit | D22: Fixture Replacing Fixture | F22: Lamp Replacing Lamp | H22: Fixture to Retrofit Kit | J22: Income Qualifier Bonus | L22: Total Incentive
D23: Incentive | E23: Watts Reduced | F23: Incentive | G23: Watts Reduced | H23: Incentive | I23: Watts Reduced | Q23: Recommend increasing to these levels
B24: Interior | D24: 0.4 | E24: =SUMIFS($N$30:$N$44,$B$30:$B$44,$B24,$C$30:$C$44,D$22)-SUMIFS($N$48:$N$62,$B$48:$B$62,$B24,$C$48:$C$62,D$22) -> 0 | F24: 0.2 | G24: =SUMIFS($N$30:$N$44,$B$30:$B$44,$B24,$C$30:$C$44,F$22)-SUMIFS($N$48:$N$62,$B$48:$B$62,$B24,$C$48:$C$62,F$22) -> 0 | H24: 0.3 | I24: =SUMIFS($N$30:$N$44,$B$30:$B$44,$B24,$C$30:$C$44,H$22)-SUMIFS($N$48:$N$62,$B$48:$B$62,$B24,$C$48:$C$62,H$22) -> 0 | J24: =ROUNDUP(IF('Applicant Info'!$P$13=TRUE,IF(OR(D24*E24+F24*G24+H24*I24<0,$N$63="",$N$63=0), 0, (D24*E24+F24*G24+H24*I24)*0.1),0),2) -> 0 | L24: =IF('Applicant Info'!$P$13=TRUE,IF(OR(D24*E24+F24*G24+H24*I24<0,$N$63="",$N$63=0), 0, D24*E24+F24*G24+H24*I24)+Lighting!J24,IF(OR(D24*E24+F24*G24+H24*I24<0,$N$63="",$N$63=0), 0, D24*E24+F24*G24+H24*I24)) -> 0
B25: Exterior/12 Hour | D25: 0.5 | E25: =SUMIFS($N$30:$N$44,$B$30:$B$44,$B25,$C$30:$C$44,D$22)-SUMIFS($N$48:$N$62,$B$48:$B$62,$B25,$C$48:$C$62,D$22) -> 0 | F25: 0.25 | G25: =SUMIFS($N$30:$N$44,$B$30:$B$44,$B25,$C$30:$C$44,F$22)-SUMIFS($N$48:$N$62,$B$48:$B$62,$B25,$C$48:$C$62,F$22) -> 0 | H25: 0.35 | I25: =SUMIFS($N$30:$N$44,$B$30:$B$44,$B25,$C$30:$C$44,H$22)-SUMIFS($N$48:$N$62,$B$48:$B$62,$B25,$C$48:$C$62,H$22) -> 0 | J25: =ROUNDUP(IF('Applicant Info'!$P$13=TRUE,IF(OR(D25*E25+F25*G25+H25*I25<0,$N$63="",$N$63=0), 0, (D25*E25+F25*G25+H25*I25)*0.1),0),2) -> 0 | L25: =IF('Applicant Info'!$P$13=TRUE,IF(OR(D25*E25+F25*G25+H25*I25<0,$N$63="",$N$63=0), 0, D25*E25+F25*G25+H25*I25)+Lighting!J25,IF(OR(D25*E25+F25*G25+H25*I25<0,$N$63="",$N$63=0), 0, D25*E25+F25*G25+H25*I25)) -> 0
B26: 24 Hour/Garage/3-Shift | D26: 1.2 | E26: =SUMIFS($N$30:$N$44,$B$30:$B$44,$B26,$C$30:$C$44,D$22)-SUMIFS($N$48:$N$62,$B$48:$B$62,$B26,$C$48:$C$62,D$22) -> 0 | F26: 0.6 | G26: =SUMIFS($N$30:$N$44,$B$30:$B$44,$B26,$C$30:$C$44,F$22)-SUMIFS($N$48:$N$62,$B$48:$B$62,$B26,$C$48:$C$62,F$22) -> 0 | H26: 0.8 | I26: =SUMIFS($N$30:$N$44,$B$30:$B$44,$B26,$C$30:$C$44,H$22)-SUMIFS($N$48:$N$62,$B$48:$B$62,$B26,$C$48:$C$62,H$22) -> 0 | J26: =ROUNDUP(IF('Applicant Info'!$P$13=TRUE,IF(OR(D26*E26+F26*G26+H26*I26<0,$N$63="",$N$63=0), 0, (D26*E26+F26*G26+H26*I26)*0.1),0),2) -> 0 | L26: =IF('Applicant Info'!$P$13=TRUE,IF(OR(D26*E26+F26*G26+H26*I26<0,$N$63="",$N$63=0), 0, D26*E26+F26*G26+H26*I26)+Lighting!J26,IF(OR(D26*E26+F26*G26+H26*I26<0,$N$63="",$N$63=0), 0, D26*E26+F26*G26+H26*I26)) -> 0 | Q26: =L27 -> 0
B27: TOTAL NEW High Efficiency LED fixture replacing HID Fixture | J27: =SUM(J24:K26) -> 0 | L27: =SUM(L24:M26) -> 0
A28: Existing equipment: HID fixtures and/or lamps being removed
A29: # | B29: Measure Type | C29: Retrofit Type | D29: Fixture Type | F29: Ballast Type | H29: Description | J29: Lamps/ Fixture | K29: Lamp Wattage | L29: Fixture Quantity | M29: Fixture Wattage | N29: Base Watts
A30: 1 | J30: =IF($H30="","",VLOOKUP($H30,$BB:$BF,3,FALSE)) ->  | K30: =IF($H30="","",VLOOKUP($H30,$BB:$BF,4,FALSE)) ->  | M30: =IF($H30="","",VLOOKUP($H30,$BB:$BF,5,FALSE)) ->  | N30: =IF((IF($H30="","",M30*L30))=0,"Missing Value",(IF($H30="","",M30*L30))) -> 
A31: 2
A32: 3
A33: 4
A34: 5
A35: 6
A36: 7 | N36: =IF((IF($H36="","",M36*L36))=0,"Missing Value",(IF($H36="","",M36*L36))) -> 
A37: 8
A38: 9
A39: 10
A40: 11
A41: 12
A42: 13
A43: 14
A44: 15
A45: Subtotal HID Base Case Wattage | N45: =IF(SUM(N30:N44)=0,"",SUM(N30:N44)) -> 
A46: Replacement equipment: New LED lamps, fixtures, or fixture retrofit kit being installed
A47: # | B47: Measure Type | C47: Retrofit Type | D47: Fixture Type | F47: Fixture or Ballast Sub Type | H47: Description (type in model number) | J47: Lamps/ Fixture | K47: Lamp Wattage | L47: Fixture Quantity | M47: Fixture Wattage | N47: Installed Watts
A48: 1 | M48: =IF($H48="","",J48*K48) ->  | N48: =IF((IF($H48="","",M48*L48))=0,"Missing Value",(IF($H48="","",M48*L48))) -> 
A49: 2
A50: 3
A51: 4
A52: 5
A53: 6
A54: 7
A55: 8
A56: 9 | M56: =IF($H56="","",J56*K56) ->  | N56: =IF((IF($H56="","",M56*L56))=0,"Missing Value",(IF($H56="","",M56*L56))) -> 
A57: 10
A58: 11
A59: 12
A60: 13
A61: 14
A62: 15
A63: Subtotal Installed T8, T5, or LED Wattage | N63: =IF(SUM(N48:N62)=0,"",SUM(N48:N62)) ->  | R63: Ranges and lookup values for calculated lighting tables. Use caution when editing ranges that are used for data validation lists
A64: 3. LED Replacing T5, T8 or T12 (Lamps, Fixtures & Retrofit Kits) | R64: (tips: no symbols allowed, no spaces allowed unless removed with substitute function, any change to a range could delete it, so it must be re-created, use ctrl shift F3 to create a range, range name must begin and end with a letter and no spaces)
R65: TABLE 1: EXISTING HID
B66: Type of Retrofit | D66: Fixture Replacing Fixture | F66: Lamp Replacing Lamp | H66: Fixture to Retrofit Kit | J66: Income Qualifier Bonus | L66: Total Incentive | R66: Measure Type | T66: 1. Retrofit Type | Y66: 2. Fixture Type | AD66: 3. Ballast Type | AN66: 4. Description | BA66: 5. Description lookup (all measures)
D67: Incentive | E67: Watts Reduced | F67: Incentive | G67: Watts Reduced | H67: Incentive | I67: Watts Reduced | Y67: HIDFixturereplacingFixture | Z67: HIDLampreplacingLamp | AA67: HIDFixturetoRetrofitKit | AD67: CFL | AE67: HPS | AF67: I/H | AG67: MV | AH67: MH | BA67: TYPE | BB67: DESCRIPTION | BC67: Ballast Type | BD67: LAMP / FIXTURE | BE67: WATT / LAMP | BF67: WATT / FIXTURE
B68: Interior | D68: 0.4 | E68: =SUMIFS($N$74:$N$88,$B$74:$B$88,$B68,$C$74:$C$88,D$66)-SUMIFS($N$92:$N$106,$B$92:$B$106,$B68,$C$92:$C$106,D$66) -> 0 | F68: 0.2 | G68: =SUMIFS($N$74:$N$88,$B$74:$B$88,$B68,$C$74:$C$88,F$66)-SUMIFS($N$92:$N$106,$B$92:$B$106,$B68,$C$92:$C$106,F$66) -> 0 | H68: 0.3 | I68: =SUMIFS($N$74:$N$88,$B$74:$B$88,$B68,$C$74:$C$88,H$66)-SUMIFS($N$92:$N$106,$B$92:$B$106,$B68,$C$92:$C$106,H$66) -> 0 | J68: =ROUNDUP(IF('Applicant Info'!$P$13=TRUE,IF(OR(D68*E68+F68*G68+H68*I68<0,$N$63="",$N$63=0), 0, (D68*E68+F68*G68+H68*I68)*0.1),0),2) -> 0 | L68: =IF('Applicant Info'!$P$13=TRUE,IF(OR(D68*E68+F68*G68+H68*I68<0,$N$107="",$N$107=0), 0, D68*E68+F68*G68+H68*I68)+Lighting!J68,IF(OR(D68*E68+F68*G68+H68*I68<0,$N$107="",$N$107=0), 0, D68*E68+F68*G68+H68*I68)) -> 0 | R68: MeasureType | T68: 1. Retrofit Type | Y68: CFL | Z68: CFL | AA68: CFL | AD68: HIDCFL | AE68: HIDHighPressureSodium | AF68: HIDIncanorHalogen | AG68: HIDMercuryVapor | AH68: HIDMetalHalide | AN68: HighPressureSodiumMagnetic | AO68: IncanorHalogenNone | AQ68: MercuryVaporMagnetic | AR68: MetalHalideElectronic | AS68: MetalHalideMagnetic | AT68: FixturetoRetrofitKitFixturetoRetrofitKit | AU68: CFLNone | BA68: CFL | BB68: 25 Watt Compact Fluorescent | BC68: None | BD68: 1 | BE68: 25 | BF68: 25
B69: Exterior/12 Hour | D69: 0.5 | E69: =SUMIFS($N$74:$N$88,$B$74:$B$88,$B69,$C$74:$C$88,D$66)-SUMIFS($N$92:$N$106,$B$92:$B$106,$B69,$C$92:$C$106,D$66) -> 0 | F69: 0.25 | G69: =SUMIFS($N$74:$N$88,$B$74:$B$88,$B69,$C$74:$C$88,F$66)-SUMIFS($N$92:$N$106,$B$92:$B$106,$B69,$C$92:$C$106,F$66) -> 0 | H69: 0.35 | I69: =SUMIFS($N$74:$N$88,$B$74:$B$88,$B69,$C$74:$C$88,H$66)-SUMIFS($N$92:$N$106,$B$92:$B$106,$B69,$C$92:$C$106,H$66) -> 0 | J69: =ROUNDUP(IF('Applicant Info'!$P$13=TRUE,IF(OR(D69*E69+F69*G69+H69*I69<0,$N$63="",$N$63=0), 0, (D69*E69+F69*G69+H69*I69)*0.1),0),2) -> 0 | L69: =IF('Applicant Info'!$P$13=TRUE,IF(OR(D69*E69+F69*G69+H69*I69<0,$N$107="",$N$107=0), 0, D69*E69+F69*G69+H69*I69)+Lighting!J69,IF(OR(D69*E69+F69*G69+H69*I69<0,$N$107="",$N$107=0), 0, D69*E69+F69*G69+H69*I69)) -> 0 | R69: Interior | T69: Fixture replacing Fixture | Y69: High Pressure Sodium | Z69: High Pressure Sodium | AA69: High Pressure Sodium | AD69: None | AE69: Magnetic | AF69: None | AG69: Magnetic | AH69: Magnetic | AN69: 35 Watt HPS Lamp, Magnetic ballast | AO69: 110 Watt Incandescent or Halogen Lamp | AQ69: 40 Watt MV Lamp | AR69: 20 Watt MH Lamp, Electronic Ballast | AS69: 32 Watt MH Lamp, Magnetic ballast | AT69: Fixture to Retrofit Kit | AU69: 25 Watt Compact Fluorescent | BA69: CFL | BB69: 30 Watt Compact Fluorescent | BC69: None | BD69: 1 | BE69: 30 | BF69: 30
B70: 24 Hour/Garage/3-Shift | D70: 1.2 | E70: =SUMIFS($N$74:$N$88,$B$74:$B$88,$B70,$C$74:$C$88,D$66)-SUMIFS($N$92:$N$106,$B$92:$B$106,$B70,$C$92:$C$106,D$66) -> 0 | F70: 0.6 | G70: =SUMIFS($N$74:$N$88,$B$74:$B$88,$B70,$C$74:$C$88,F$66)-SUMIFS($N$92:$N$106,$B$92:$B$106,$B70,$C$92:$C$106,F$66) -> 0 | H70: 0.8 | I70: =SUMIFS($N$74:$N$88,$B$74:$B$88,$B70,$C$74:$C$88,H$66)-SUMIFS($N$92:$N$106,$B$92:$B$106,$B70,$C$92:$C$106,H$66) -> 0 | J70: =ROUNDUP(IF('Applicant Info'!$P$13=TRUE,IF(OR(D70*E70+F70*G70+H70*I70<0,$N$63="",$N$63=0), 0, (D70*E70+F70*G70+H70*I70)*0.1),0),2) -> 0 | L70: =IF('Applicant Info'!$P$13=TRUE,IF(OR(D70*E70+F70*G70+H70*I70<0,$N$107="",$N$107=0), 0, D70*E70+F70*G70+H70*I70)+Lighting!J70,IF(OR(D70*E70+F70*G70+H70*I70<0,$N$107="",$N$107=0), 0, D70*E70+F70*G70+H70*I70)) -> 0 | Q70: =L71 -> 0 | R70: Exterior/12 Hour | T70: Lamp replacing Lamp | Y70: Incan or Halogen | Z70: Incan or Halogen | AA70: Incan or Halogen | AH70: Electronic | AN70: 50 Watt HPS Lamp, Magnetic ballast | AO70: 116 Watt Incandescent or Halogen Lamp | AQ70: 50 Watt MV Lamp | AR70: 22 Watt MH Lamp, Electronic Ballast | AS70: 39 Watt MH Lamp, Magnetic ballast | AU70: 30 Watt Compact Fluorescent | BA70: CFL | BB70: 35 Watt Compact Fluorescent | BC70: None | BD70: 1 | BE70: 35 | BF70: 35
B71: TOTAL NEW LED replacing T5, T8, or T12 Fixture | J71: =SUM(J68:K70) -> 0 | L71: =SUM(L68:M70) -> 0 | R71: 24 Hour/Garage/3-Shift | T71: Fixture to Retrofit Kit | Y71: Mercury Vapor | Z71: Mercury Vapor | AA71: Mercury Vapor | AN71: 70 Watt HPS Lamp, Magnetic ballast | AO71: 120 Watt Incandescent or Halogen Lamp | AQ71: 75 Watt MV Lamp | AR71: 39 Watt MH Lamp, Electronic Ballast | AS71: 50 Watt MH Lamp, Magnetic ballast | AU71: 35 Watt Compact Fluorescent | BA71: CFL | BB71: 40 Watt Compact Fluorescent | BC71: None | BD71: 1 | BE71: 40 | BF71: 40
A72: Existing equipment: T5, T8 or T12 fixtures and/or lamps being removed | Y72: Metal Halide | Z72: Metal Halide | AA72: Metal Halide | AN72: 100 Watt HPS Lamp, Magnetic ballast | AO72: 125 Watt Incandescent or Halogen Lamp | AQ72: 100 Watt MV Lamp | AR72: 50 Watt MH Lamp, Electronic Ballast | AS72: 70 Watt MH Lamp, Magnetic ballast | AU72: 40 Watt Compact Fluorescent | BA72: CFL | BB72: 45 Watt Compact Fluorescent | BC72: None | BD72: 1 | BE72: 45 | BF72: 45
A73: # | B73: Measure Type | C73: Retrofit Type | D73: Fixture Type | F73: Ballast Type | H73: Description | J73: Lamps/ Fixture | K73: Lamp Wattage | L73: Fixture Quantity | M73: Fixture Wattage | N73: Base Watts | AN73: 150 Watt HPS Lamp, Magnetic ballast | AO73: 130 Watt Incandescent or Halogen Lamp | AQ73: 160 Watt MV self-ballasted Lamp | AR73: 70 Watt MH Lamp, Electronic Ballast | AS73: 100 Watt MH Lamp, Magnetic ballast | AU73: 45 Watt Compact Fluorescent | BA73: CFL | BB73: 50 Watt Compact Fluorescent | BC73: None | BD73: 1 | BE73: 50 | BF73: 50
A74: 1 | J74: =IF($H74="","",VLOOKUP($H74,$BB:$BF,3,FALSE)) ->  | K74: =IF($H74="","",VLOOKUP($H74,$BB:$BF,4,FALSE)) ->  | M74: =IF($H74="","",VLOOKUP($H74,$BB:$BF,5,FALSE)) ->  | N74: =IF((IF($H74="","",M74*L74))=0,"Missing Value",(IF($H74="","",M74*L74))) ->  | AN74: 200 Watt HPS Lamp, Magnetic ballast | AO74: 135 Watt Incandescent or Halogen Lamp | AQ74: 175 Watt MV Lamp | AR74: 100 Watt MH Lamp, Electronic Ballast | AS74: 125 Watt MH Lamp, Magnetic ballast | AU74: 50 Watt Compact Fluorescent | BA74: CFL | BB74: 55 Watt Compact Fluorescent | BC74: None | BD74: 1 | BE74: 55 | BF74: 55
A75: 2 | AN75: 250 Watt HPS Lamp, Magnetic ballast | AO75: 150 Watt Incandescent or Halogen Lamp | AQ75: 250 Watt MV Lamp | AR75: 150 Watt MH Lamp, Electronic Ballast | AS75: 150 Watt MH Lamp, Magnetic Ballast | AU75: 55 Watt Compact Fluorescent | BA75: CFL | BB75: 60 Watt Compact Fluorescent | BC75: None | BD75: 1 | BE75: 60 | BF75: 60
A76: 3 | AN76: 310 Watt HPS Lamp, Magnetic ballast | AO76: 160 Watt Incandescent or Halogen Lamp | AQ76: 400 Watt MV Lamp | AR76: 175 Watt MH Lamp, Electronic Ballast | AS76: 175 Watt MH Lamp, Magnetic ballast | AU76: 60 Watt Compact Fluorescent | BA76: CFL | BB76: 65 Watt Compact Fluorescent | BC76: None | BD76: 1 | BE76: 65 | BF76: 65
A77: 4 | AN77: 360 Watt HPS Lamp, Magnetic ballast | AO77: 170 Watt Incandescent or Halogen Lamp | AQ77: 700 Watt MV Lamp | AR77: 200 Watt MH Lamp, Electronic Ballast | AS77: 200 Watt MH Lamp, Magnetic ballast | AU77: 65 Watt Compact Fluorescent | BA77: CFL | BB77: 70 Watt Compact Fluorescent | BC77: None | BD77: 1 | BE77: 70 | BF77: 70
A78: 5 | AN78: 400 Watt HPS Lamp, Magnetic ballast | AO78: 200 Watt Incandescent or Halogen Lamp | AQ78: 1000 Watt MV Lamp | AR78: 250 Watt MH Lamp, Electronic Ballast | AS78: 250 Watt MH Lamp, Magnetic ballast | AU78: 70 Watt Compact Fluorescent | BA78: CFL | BB78: 75 Watt Compact Fluorescent | BC78: None | BD78: 1 | BE78: 75 | BF78: 75
A79: 6 | AN79: 1000 Watt HPS Lamp, Magnetic ballast | AO79: 250 Watt Incandescent or Halogen Lamp | AR79: 320 Watt MH Lamp, Electronic Ballast | AS79: 320 Watt MH Lamp, Magnetic ballast | AU79: 75 Watt Compact Fluorescent | BA79: CFL | BB79: 80 Watt Compact Fluorescent | BC79: None | BD79: 1 | BE79: 80 | BF79: 80
A80: 7 | AO80: 300 Watt Incandescent or Halogen Lamp | AR80: 350 Watt MH Lamp, Electronic Ballast | AS80: 350 Watt MH Lamp, Magnetic ballast | AU80: 80 Watt Compact Fluorescent | BA80: CFL | BB80: 85 Watt Compact Fluorescent | BC80: None | BD80: 1 | BE80: 85 | BF80: 85
A81: 8 | AO81: 400 Watt Incandescent or Halogen Lamp | AR81: 400 Watt MH Lamp, Electronic Ballast | AS81: 360 Watt MH Lamp, Magnetic ballast | AU81: 85 Watt Compact Fluorescent | BA81: CFL | BB81: 90 Watt Compact Fluorescent | BC81: None | BD81: 1 | BE81: 90 | BF81: 90
A82: 9 | AO82: 448 Watt Incandescent or Halogen Lamp | AR82: 450 Watt MH Lamp, Electronic Ballast | AS82: 400 Watt MH Lamp, Magnetic ballast | AU82: 90 Watt Compact Fluorescent | BA82: CFL | BB82: 95 Watt Compact Fluorescent | BC82: None | BD82: 1 | BE82: 95 | BF82: 95
A83: 10 | AO83: 500 Watt Incandescent or Halogen Lamp | AS83: 450 Watt MH Lamp, Magnetic ballast | AU83: 95 Watt Compact Fluorescent | BA83: CFL | BB83: 100 Watt Compact Fluorescent | BC83: None | BD83: 1 | BE83: 100 | BF83: 100
A84: 11 | AO84: 750 Watt Incandescent or Halogen Lamp | AS84: 750 Watt MH Lamp, Magnetic ballast | AU84: 100 Watt Compact Fluorescent | BA84: CFL | BB84: 105 Watt Compact Fluorescent | BC84: None | BD84: 1 | BE84: 105 | BF84: 105
A85: 12 | R85: TABLE 2: REPLACEMENT FROM HID | Y85: 2. Fixture Type | AD85: 3. Ballast Type | AO85: 1000 Watt Incandescent or Halogen Lamp | AS85: 1000 Watt MH Lamp, Magnetic ballast | AU85: 105 Watt Compact Fluorescent | BA85: CFL | BB85: 110 Watt Compact Fluorescent | BC85: None | BD85: 1 | BE85: 110 | BF85: 110
A86: 13 | Y86: RFixturereplacingFixture | Z86: RLampreplacingLamp | AA86: RFixturetoRetrofitKit | AD86: RT5R | AE86: RT8R | AF86: RFUTT8R | AG86: RLEDR | AH86: RRetrofitKitR | AO86: 1500 Watt Incandescent or Halogen Lamp | AS86: 1500 Watt MH Lamp, Magnetic ballast | AU86: 110 Watt Compact Fluorescent | BA86: High Pressure Sodium | BB86: 35 Watt HPS Lamp, Magnetic ballast | BC86: Magnetic | BD86: 1 | BE86: 35 | BF86: 46
A87: 14 | Y87: LED | Z87: LED | AA87: Retrofit Kit | AD87: PRS Elec | AE87: Electronic HO | AF87: Electronic | AG87: LEDs Over 20W | AH87: LED Retrofit Kit | AO87: 2000 Watt Incandescent or Halogen Lamp | BA87: High Pressure Sodium | BB87: 50 Watt HPS Lamp, Magnetic ballast | BC87: Magnetic | BD87: 1 | BE87: 50 | BF87: 66
A88: 15 | AE88: Electronic Std | AF88: Electronic HO | AG88: Downlight Can Over 20W | BA88: High Pressure Sodium | BB88: 70 Watt HPS Lamp, Magnetic ballast | BC88: Magnetic | BD88: 1 | BE88: 70 | BF88: 95
A89: Subtotal HID Base Case Wattage | N89: =IF(SUM(N74:N88)=0,"",SUM(N74:N88)) ->  | AG89: Outdoor Pole-Mounted LEDs | BA89: High Pressure Sodium | BB89: 100 Watt HPS Lamp, Magnetic ballast | BC89: Magnetic | BD89: 1 | BE89: 100 | BF89: 138
A90: Replacement equipment: LED lamps, fixtures, or fixture retrofit kits being installed | AG90: Outdoor Wall-Mounted LEDs | BA90: High Pressure Sodium | BB90: 150 Watt HPS Lamp, Magnetic ballast | BC90: Magnetic | BD90: 1 | BE90: 150 | BF90: 188
A91: # | B91: Measure Type | C91: Retrofit Type | D91: Fixture Type | F91: LED Fixture Sub Type | H91: Description (type in model number) | J91: Lamps/ Fixture | K91: Lamp Wattage | L91: Fixture Quantity | M91: Fixture Wattage | N91: Installed Watts | AG91: Parking Garage LEDs | BA91: High Pressure Sodium | BB91: 200 Watt HPS Lamp, Magnetic ballast | BC91: Magnetic | BD91: 1 | BE91: 200 | BF91: 250
A92: 1 | M92: =IF($H92="","",J92*K92) ->  | N92: =IF((IF($H92="","",M92*L92))=0,"Missing Value",(IF($H92="","",M92*L92))) ->  | AG92: High-Bay LEDs | BA92: High Pressure Sodium | BB92: 250 Watt HPS Lamp, Magnetic ballast | BC92: Magnetic | BD92: 1 | BE92: 250 | BF92: 295
A93: 2 | AG93: Low-Bay LEDs | BA93: High Pressure Sodium | BB93: 310 Watt HPS Lamp, Magnetic ballast | BC93: Magnetic | BD93: 1 | BE93: 310 | BF93: 365
A94: 3 | AG94: Stairway / Passageway LEDs | BA94: High Pressure Sodium | BB94: 360 Watt HPS Lamp, Magnetic ballast | BC94: Magnetic | BD94: 1 | BE94: 360 | BF94: 414
A95: 4 | AG95: Outdoor Signage | BA95: High Pressure Sodium | BB95: 400 Watt HPS Lamp, Magnetic ballast | BC95: Magnetic | BD95: 1 | BE95: 400 | BF95: 465
A96: 5 | AG96: Bollards | BA96: High Pressure Sodium | BB96: 1000 Watt HPS Lamp, Magnetic ballast | BC96: Magnetic | BD96: 1 | BE96: 1000 | BF96: 1100
A97: 6 | AG97: 1x2 Luminaires | BA97: Incan or Halogen | BB97: 110 Watt Incandescent or Halogen Lamp | BC97: None | BD97: 1 | BE97: 110 | BF97: 110
A98: 7 | AG98: 1x4 Luminaires | BA98: Incan or Halogen | BB98: 116 Watt Incandescent or Halogen Lamp | BC98: None | BD98: 1 | BE98: 116 | BF98: 116
A99: 8 | AG99: 2x2 Luminaires | BA99: Incan or Halogen | BB99: 120 Watt Incandescent or Halogen Lamp | BC99: None | BD99: 1 | BE99: 120 | BF99: 120
A100: 9 | AG100: 2x4 Luminaires | BA100: Incan or Halogen | BB100: 125 Watt Incandescent or Halogen Lamp | BC100: None | BD100: 1 | BE100: 125 | BF100: 125
A101: 10 | AG101: 1x8 Luminaires | BA101: Incan or Halogen | BB101: 130 Watt Incandescent or Halogen Lamp | BC101: None | BD101: 1 | BE101: 130 | BF101: 130
A102: 11 | BA102: Incan or Halogen | BB102: 135 Watt Incandescent or Halogen Lamp | BC102: None | BD102: 1 | BE102: 135 | BF102: 135
A103: 12 | BA103: Incan or Halogen | BB103: 150 Watt Incandescent or Halogen Lamp | BC103: None | BD103: 1 | BE103: 150 | BF103: 150
A104: 13 | BA104: Incan or Halogen | BB104: 160 Watt Incandescent or Halogen Lamp | BC104: None | BD104: 1 | BE104: 160 | BF104: 160
A105: 14 | BA105: Incan or Halogen | BB105: 170 Watt Incandescent or Halogen Lamp | BC105: None | BD105: 1 | BE105: 170 | BF105: 170
A106: 15 | BA106: Incan or Halogen | BB106: 200 Watt Incandescent or Halogen Lamp | BC106: None | BD106: 1 | BE106: 200 | BF106: 200
A107: Subtotal Installed LED Wattage | N107: =IF(SUM(N92:N106)=0,"",SUM(N92:N106)) ->  | BA107: Incan or Halogen | BB107: 250 Watt Incandescent or Halogen Lamp | BC107: None | BD107: 1 | BE107: 250 | BF107: 250
A108: 4. Controls for Existing LED Fixtures (Refer to Section 1 for Interior Controls) | BA108: Incan or Halogen | BB108: 300 Watt Incandescent or Halogen Lamp | BC108: None | BD108: 1 | BE108: 300 | BF108: 300
BA109: Incan or Halogen | BB109: 400 Watt Incandescent or Halogen Lamp | BC109: None | BD109: 1 | BE109: 400 | BF109: 400
B110: Type of Retrofit | D110: Controlled Fixture | F110: Income Qualifier Bonus | H110: Total Incentive | Y110: 2. Fixture Type | AD110: 3. Ballast Type | BA110: Incan or Halogen | BB110: 448 Watt Incandescent or Halogen Lamp | BC110: None | BD110: 1 | BE110: 448 | BF110: 448
D111: Incentive | E111: Watts Reduced | R111: TMeasureType | T111: TRetrofitType | Y111: TFixturereplacingFixture | Z111: TLampreplacingLamp | AA111: TFixturetoRetrofitKit | AD111: FUT12 | AE111: FUT8 | AF111: T12 | AG111: T8 | AH111: F2RK | AI111: T5 | BA111: Incan or Halogen | BB111: 500 Watt Incandescent or Halogen Lamp | BC111: None | BD111: 1 | BE111: 500 | BF111: 500
B112: Interior | D112: NA | E112: NA | F112: NA | H112: NA | R112: Interior | T112: Fixture replacing Fixture | Y112: T5 | Z112: T5 | AA112: T5 | AD112: TFUT12T | AE112: TFUT8T | AF112: TT12T | AG112: TT8T | AH112: TFixturetoRetrofitKitT | AI112: TT5T | AN112: FUT12Magnetic | AO112: FUT8Electronic | AP112: FUT8ElectronicHO | AQ112: T12Magnetic | AR112: T8ElectronicHO | AS112: T8ElectronicStd | AT112: T5PRSElec | BA112: Incan or Halogen | BB112: 750 Watt Incandescent or Halogen Lamp | BC112: None | BD112: 1 | BE112: 750 | BF112: 750
B113: Exterior/12 Hour | D113: 0.4 | E113: =SUMIFS($M$118:$M$132,$B$118:$B$132,$B113,$D$118:$D$132,D$110) -> 0 | F113: =IF('Applicant Info'!$P$13=TRUE,D113*E113*0.1,0) -> 0 | H113: =D113*E113+F113 -> 0 | R113: Exterior/12 Hour | T113: Lamp replacing Lamp | Y113: T8 | Z113: T8 | AA113: T8 | AD113: Magnetic | AE113: Electronic | AF113: Magnetic | AG113: Electronic HO | AH113: Fixture to Retrofit Kit | AI113: PRS Elec | AN113: (1) U-Tube, T12 STD Lamp, STD Mag Ballast, 34 Watt Lamps | AO113: (1) U-Tube, T8 Standard ballast, 32 Watt Lamp | AP113: (1) U-Tube, T8 High Output Ballast, 32 Watt Lamp | AQ113: (1) 24" T12, STD Lamps, 20 Watt Lamps | AR113: (1) 24", T8, High Output Ballast, 17 Watt Lamps | AS113: (1) 24", T8, Std Elec Ballast, 17 Watt Lamps | AT113: (1) 22" T-5 14W Lamp (1) Prog Start or PRS Ballast, HLO (.95<BF<1.1) | BA113: Incan or Halogen | BB113: 1000 Watt Incandescent or Halogen Lamp | BC113: None | BD113: 1 | BE113: 1000 | BF113: 1000
B114: 24 Hour/Garage/3-Shift | D114: 0.5 | E114: =SUMIFS($M$118:$M$132,$B$118:$B$132,$B114,$D$118:$D$132,D$110) -> 0 | F114: =IF('Applicant Info'!$P$13=TRUE,D114*E114*0.1,0) -> 0 | H114: =D114*E114+F114 -> 0 | R114: 24 Hour/Garage/3-Shift | T114: Fixture to Retrofit Kit | Y114: T12 | Z114: T12 | AA114: T12 | AE114: Electronic HO | AG114: Electronic Std | AN114: (1) U-Tube, T12 STD Lamp, STD Mag Ballast, 40 Watt Lamps | AO114: (2) U-Tube, T8 Standard ballast, 32 Watt Lamp | AP114: (2) U-Tube, T8 High Output Ballast, 32 Watt Lamp | AQ114: (1) 36" T12, STD Lamps Mag-STD, 30 Watt Lamps | AR114: (1) 36", T8, High Output Ballast, 25 Watt Lamps | AS114: (1) 36", T8, Std Elec Ballast, 25 Watt Lamps | AT114: (1) 22" T-5 24W HO Lamp (1) Prog Start or PRS Ballast, HLO (.95<BF<1) | BA114: Incan or Halogen | BB114: 1500 Watt Incandescent or Halogen Lamp | BC114: None | BD114: 1 | BE114: 1500 | BF114: 1500
B115: Controls on Existing LED Fixtures | F115: =SUM(F112:G114) -> 0 | H115: =SUM(H112:I114) -> 0 | Q115: =+H115 -> 0 | Y115: FUT8 | Z115: FUT8 | AA115: FUT8 | AN115: (2) U-Tube, T12 STD Lamp, STD Mag Ballast, 34 Watt Lamps | AQ115: (1) 48" T12, ES Lamp, Magnetic Ballast-STD, 34 Watt Lamps | AR115: (1) 48", T8, High Output Ballast, 28 Watt Lamps | AS115: (1) 48", T8, Std Ballast, 25 Watt Lamps | AT115: (1) 34" T-5 21W Lamp (1) Prog Start or PRS Ballast, HLO (.95<BF<1.1) | BA115: Incan or Halogen | BB115: 2000 Watt Incandescent or Halogen Lamp | BC115: None | BD115: 1 | BE115: 2000 | BF115: 2000
A116: Controlled Existing LED Fixture with High and Low Settings | Y116: FUT12 | Z116: FUT12 | AA116: FUT12 | AN116: (2) U-Tube, T12 STD Lamp, STD Mag Ballast, 40 Watt Lamps | AQ116: (1) 48" T12, STD Lamp, Magnetic Ballast-STD, 40 Watt Lamps | AR116: (1) 48", T8, High Output Ballast, 25 Watt Lamps | AS116: (1) 48", T8, Std Ballast, 28 Watt Lamps | AT116: (1) 34" T-5 39W HO Lamp (1) Prog Start or PRS Ballast, HLO (.95<BF<1.1) | BA116: Mercury Vapor | BB116: 40 Watt MV Lamp | BC116: Magnetic | BD116: 1 | BE116: 40 | BF116: 50
A117: # | B117: Measure Type | C117: Retrofit Type | D117: Fixture Type | F117: Sub Type | H117: Description (type in) | J117: Fixture Quantity | K117: High Setting Wattage | L117: Low Setting Wattage | M117: Weighted Average Watts Reduced | AQ117: (1) 48" T12, STD Lamp, Magnetic Ballast-STD, 40 Watt Lamps | AR117: (1) 48", T8, High Output Ballast, 32 Watt Lamps | AS117: (1) 48", T8, Std Ballast, 32 Watt Lamps | AT117: (1) 45.8" T-5 28W Lamp (1) Prog Start or PRS Ballast, HLO (.95<BF<1.1) | BA117: Mercury Vapor | BB117: 50 Watt MV Lamp | BC117: Magnetic | BD117: 1 | BE117: 50 | BF117: 74
A118: 1 | C118: =IFERROR(VLOOKUP($B118,$R$166:$U$168,3,FALSE),"") ->  | D118: =IFERROR(VLOOKUP($B118,$R$166:$U$168,4,FALSE),"") ->  | E118: =VLOOKUP($B118,$R$166:$U$168,3,FALSE) ->  | M118: =IF((IF($H118="","",(ROUND(((K118-L118)*0.85*J118),0))))=0,"Missing Value",(IF($H118="","",(ROUND(((K118-L118)*0.85*J118),0))))) ->  | AQ118: (1) 48" T12, HO Lamps, 60 Watt Lamps | AR118: (1) 96", T8, High Output Ballast, 57 Watt Lamps | AS118: (1) 96", T8 Std Ballast, 57 Watt Lamps | AT118: (1) 45.8" T-5 54W HO Lamps (1) Prog RS Ballast, HLO(.95<BF<1.1) | BA118: Mercury Vapor | BB118: 75 Watt MV Lamp | BC118: Magnetic | BD118: 1 | BE118: 75 | BF118: 93
A119: 2 | M119: =IF((IF($H119="","",(ROUND(((K119-L119)*0.85*J119),0))))=0,"Missing Value",(IF($H119="","",(ROUND(((K119-L119)*0.85*J119),0))))) ->  | AQ119: (1) 72" T12, HO Lamps, 85 Watt Lamps | AR119: (1) 96", T8, High Output Ballast, 59 Watt Lamps | AS119: (1) 96", T8 Std Ballast, 59 Watt Lamps | AT119: (1) 57.6" T-5 35W Lamp (1) Prog Start or PRS Ballast, HLO (.95<BF<1.1) | BA119: Mercury Vapor | BB119: 100 Watt MV Lamp | BC119: Magnetic | BD119: 1 | BE119: 100 | BF119: 125
A120: 3 | AQ120: (1) 96" T12, ES HO Lamps Mag-STD, 95 Watt Lamps | AR120: (1) 96", T8, High Output Ballast, 86 Watt Lamps | AS120: (1) 96", T8 Std Ballast, 86 Watt Lamps | AT120: (1) 57.6" T-5 80W HO Lamp (1) Prog Start or PRS Ballast, HLO (.95<BF<1.1) | BA120: Mercury Vapor | BB120: 160 Watt MV self-ballasted Lamp | BC120: Magnetic | BD120: 1 | BE120: 160 | BF120: 160
A121: 4 | AQ121: (1) 96" T12, ES Lamps Mag-STD, 60 Watt Lamps | AR121: (2) 24", T8, High Output Ballast, 17 Watt Lamps | AS121: (2) 24", T8, Std Elec Ballast, 17 Watt Lamps | AT121: (2) 22" T-5 14W Lamps (1) Prog Start or PRS Ballast, HLO (.95<BF<1.1) | BA121: Mercury Vapor | BB121: 175 Watt MV Lamp | BC121: Magnetic | BD121: 1 | BE121: 175 | BF121: 205
A122: 5 | AQ122: (1) 96" T12, STD HO Lamps Mag-STD, 110 Watt Lamps | AR122: (2) 36", T8, High Output Ballast, 25 Watt Lamps | AS122: (2) 36", T8, Std Elec Ballast, 25 Watt Lamps | AT122: (2) 22" T-5 24W HO Lamps (1) Prog Start or PRS Ballast, HLO (.95<BF<1) | BA122: Mercury Vapor | BB122: 250 Watt MV Lamp | BC122: Magnetic | BD122: 1 | BE122: 250 | BF122: 290
A123: 6 | AQ123: (1) 108" T12 F108, HO Lamps, 124 Watt Lamps | AR123: (2) 48", T8, High Output Ballast, 28 Watt Lamps | AS123: (2) 48", T8, Std Ballast, 25 Watt Lamps | AT123: (2) 34" T-5 21W Lamps (1) Prog.Start or PRS Ballast HLO (.95<BF<1.1) | BA123: Mercury Vapor | BB123: 400 Watt MV Lamp | BC123: Magnetic | BD123: 1 | BE123: 400 | BF123: 455
A124: 7 | AQ124: (1) 114" T12 F117, HO Lamps, 132 Watt Lamps | AR124: (2) 48", T8, High Output Ballast, 25 Watt Lamps | AS124: (2) 48", T8, Std Ballast, 28 Watt Lamps | AT124: (2) 34" T-5 39W HO Lamps (1) Prog Start or PRS Ballast, HLO (.95<BF<1.1) | BA124: Mercury Vapor | BB124: 700 Watt MV Lamp | BC124: Magnetic | BD124: 1 | BE124: 700 | BF124: 780
A125: 8 | AQ125: (2) 24" T12, STD Lamps, 20 Watt Lamps | AR125: (2) 48", T8, High Output Ballast, 32 Watt Lamps | AS125: (2) 48", T8, Std Ballast, 32 Watt Lamps | AT125: (2) 45.8" T-5 28W Lamps (1) Prog Start or PRS Ballast, HLO (.95<BF<1.1) | BA125: Mercury Vapor | BB125: 1000 Watt MV Lamp | BC125: Magnetic | BD125: 1 | BE125: 1000 | BF125: 1075
A126: 9 | AQ126: (2) 36" T12, STD Lamps Mag-STD, 30 Watt Lamps | AR126: (2) 96", T8, High Output Ballast, 57 Watt Lamps | AS126: (2) 96", T8 Std Ballast, 57 Watt Lamps | AT126: (2) 45.8" T-5 49W HO Lamps, (1) Prog Start or RS Ballast, HLO (.95<BF<1.1) | BA126: Metal Halide | BB126: 20 Watt MH Lamp, Electronic Ballast | BC126: Electronic | BD126: 1 | BE126: 20 | BF126: 24
A127: 10 | AQ127: (2) 40" T12 F42, HO Lamps, 55 Watt Lamps | AR127: (2) 96", T8, High Output Ballast, 59 Watt Lamps | AS127: (2) 96", T8 Std Ballast, 59 Watt Lamps | AT127: (2) 45.8" T-5 54W HO Lamps (1) Prog RS Ballast, HLO (.95<BF<1.1) | BA127: Metal Halide | BB127: 22 Watt MH Lamp, Electronic Ballast | BC127: Electronic | BD127: 1 | BE127: 22 | BF127: 26
A128: 11 | AQ128: (2) 48" T12, ES Lamp, Magnetic Ballast-STD, 34 Watt Lamps | AR128: (2) 96", T8, High Output Ballast, 86 Watt Lamps | AS128: (2) 96", T8 Std Ballast, 86 Watt Lamps | AT128: (2) 57.6" T-5 35W Lamps (1) Prog Start or PRS Ballast, HLO (.95<BF<1.1) | BA128: Metal Halide | BB128: 39 Watt MH Lamp, Electronic Ballast | BC128: Electronic | BD128: 1 | BE128: 39 | BF128: 44
A129: 12 | AQ129: (2) 48" T12, HO Lamps, 60 Watt Lamps | AR129: (3) 24", T8, High Output Ballast, 17 Watt Lamps | AS129: (3) 24", T8, Std Elec Ballast, 17 Watt Lamps | AT129: (2) 57.6" T-5 80W HO Lamps (1) Prog Start or PRS Ballast, HLO (.95<BF<1.1) | BA129: Metal Halide | BB129: 50 Watt MH Lamp, Electronic Ballast | BC129: Electronic | BD129: 1 | BE129: 50 | BF129: 56
A130: 13 | AQ130: (2) 48" T12, STD Lamp, Magnetic Ballast-STD, 40 Watt Lamps | AR130: (3) 36", T8, High Output Ballast, 25 Watt Lamps | AS130: (3) 36", T8, Std Elec Ballast, 25 Watt Lamps | AT130: (3) 22" T-5 14W Lamps (2) Prog Start or PRS Ballasts, HLO (.95<BF<1.1) | BA130: Metal Halide | BB130: 70 Watt MH Lamp, Electronic Ballast | BC130: Electronic | BD130: 1 | BE130: 70 | BF130: 78
A131: 14 | Y131: 2. Fixture Type | AD131: 3. Ballast Type | AQ131: (2) 72" T12, HO Lamps, 85 Watt Lamps | AR131: (3) 48", T8, High Output Ballast, 28 Watt Lamps | AS131: (3) 48", T8, Std Ballast, 25 Watt Lamps | AT131: (3) 22" T-5 24W HO Lamps (2) Prog Start or PRS Ballasts, HLO (.95<BF<1.1) | BA131: Metal Halide | BB131: 100 Watt MH Lamp, Electronic Ballast | BC131: Electronic | BD131: 1 | BE131: 100 | BF131: 109
A132: 15 | Y132: RTFixturereplacingFixture | Z132: RTLampreplacingLamp | AA132: RTFixturetoRetrofitKit | AD132: RTLEDR | AE132: RTRetrofitKitR | AQ132: (2) 96" T12, ES HO Lamps Mag-STD, 95 Watt Lamps | AR132: (3) 48", T8, High Output Ballast, 25 Watt Lamps | AS132: (3) 48", T8, Std Ballast, 28 Watt Lamps | AT132: (3) 34" T-5 21W Lamps (2) Prog Start or PRS Ballasts, HLO (.95<BF<1.1) | BA132: Metal Halide | BB132: 150 Watt MH Lamp, Electronic Ballast | BC132: Electronic | BD132: 1 | BE132: 150 | BF132: 163
A133: Subtotal Controls on LED Fixtures | M133: =IF(SUM(M118:N132)=0,"",SUM(M118:N132)) ->  | Y133: LED | Z133: LED | AA133: Retrofit Kit | AD133: Flood and Spot LEDs Over 20W | AE133: LED Retrofit Kit | AQ133: (2) 96" T12, ES Lamps Mag-STD, 60 Watt Lamps | AR133: (3) 48", T8, High Output Ballast, 32 Watt Lamps | AS133: (3) 48", T8, Std Ballast, 32 Watt Lamps | AT133: (3) 34" T-5 39W HO Lamps (2) Prog Start or PRS Ballasts, HLO (.95<BF<1.1) | BA133: Metal Halide | BB133: 175 Watt MH Lamp, Electronic Ballast | BC133: Electronic | BD133: 1 | BE133: 175 | BF133: 191
AD134: Downlight Can Fixture Over 20W | AQ134: (2) 96" T12, STD HO Lamps Mag-STD, 110 Watt Lamps | AR134: (3) 96", T8, High Output Ballast, 57 Watt Lamps | AS134: (3) 96", T8 Std Ballast, 57 Watt Lamps | AT134: (3) 45.8" T-5 28W Lamps (2) Prog Start or PRS Ballasts, HLO(.95<BF<1.1) | BA134: Metal Halide | BB134: 200 Watt MH Lamp, Electronic Ballast | BC134: Electronic | BD134: 1 | BE134: 200 | BF134: 216
AD135: Parking Garage LEDs | AQ135: (2) 108" T12 F108, HO Lamps, 124 Watt Lamps | AR135: (3) 96", T8, High Output Ballast, 59 Watt Lamps | AS135: (3) 96", T8 Std Ballast, 59 Watt Lamps | AT135: (3) 45.8" T-5 49W HO Lamps, (1) Prog Start or RS Ballast, HLO (.95<BF<1.1) | BA135: Metal Halide | BB135: 250 Watt MH Lamp, Electronic Ballast | BC135: Electronic | BD135: 1 | BE135: 250 | BF135: 266
A136: IMPORTANT NOTICE: Only qualified LED lighting is elegible for a rebate. No fluorescent replacements are eligible for rebates. | AD136: High-Bay LEDs | AQ136: (2) 114" T12 F117, HO Lamps, 132 Watt Lamps | AR136: (3) 96", T8, High Output Ballast, 86 Watt Lamps | AS136: (3) 96", T8 Std Ballast, 86 Watt Lamps | AT136: (3) 45.8" T-5 54W HO Lamps, Prog RS (2) Ballast, HLO (.95<BF<1.1) | BA136: Metal Halide | BB136: 400 Watt MH Lamp, Electronic Ballast | BC136: Electronic | BD136: 1 | BE136: 400 | BF136: 424
AD137: Low-Bay LEDs | AQ137: (3) 24" T12, STD Lamps, 20 Watt Lamps | AR137: (4) 24", T8, High Output Ballast, 17 Watt Lamps | AS137: (4) 24", T8, Std Elec Ballast, 17 Watt Lamps | AT137: (3) 57.6" T-5 35W Lamps (2) Prog Start or PRS Ballasts, HLO (.95<BF<1.1) | BA137: Metal Halide | BB137: 450 Watt MH Lamp, Electronic Ballast | BC137: Electronic | BD137: 1 | BE137: 450 | BF137: 465
A138: Lighting Scope of Work is REQUIRED for all lighting measures. | AD138: Indoor Wall-Mounted Area LEDs | AQ138: (3) 36" T12, STD Lamps Mag-STD, 30 Watt Lamps | AR138: (4) 36", T8, High Output Ballast, 25 Watt Lamps | AS138: (4) 36", T8, Std Elec Ballast, 25 Watt Lamps | AT138: (4) 22" T-5 14W Lamps (2) Prog Start or PRS Ballasts, HLO (.95<BF<1.1) | BA138: Metal Halide | BB138: 32 Watt MH Lamp, Magnetic ballast | BC138: Magnetic | BD138: 1 | BE138: 32 | BF138: 42
AD139: Stairwell and Passageway LEDs | AQ139: (3) 48" T12, ES Lamp, Magnetic Ballast-STD, 34 Watt Lamps | AR139: (4) 48", T8, High Output Ballast, 28 Watt Lamps | AS139: (4) 48", T8, Std Ballast, 25 Watt Lamps | AT139: (4) 22" T-5 24W HO Lamps (2) Prog Start or PRS Ballasts, HLO (.95<BF<1.1) | BA139: Metal Halide | BB139: 39 Watt MH Lamp, Magnetic ballast | BC139: Magnetic | BD139: 1 | BE139: 39 | BF139: 56
A140: In no case will the program pay a rebate for lamps and retrofit kits that have been installed in fixtures with cracked, broken or yellowed lenses. | AD140: Bollards | AQ140: (3) 48" T12, STD Lamp, Magnetic Ballast-STD, 40 Watt Lamps | AR140: (4) 48", T8, High Output Ballast, 25 Watt Lamps | AS140: (4) 48", T8, Std Ballast, 28 Watt Lamps | AT140: (4) 34" T-5 39W HO Lamps (2 )Prog.Start or PRS Ballasts, HLO (.95<BF<1.1) | BA140: Metal Halide | BB140: 50 Watt MH Lamp, Magnetic ballast | BC140: Magnetic | BD140: 1 | BE140: 50 | BF140: 67
AD141: Display Case LEDs | AQ141: (3) 96" T12, ES HO Lamps Mag-STD, 95 Watt Lamps | AR141: (4) 48", T8, High Output Ballast, 32 Watt Lamps | AS141: (4) 48", T8, Std Ballast, 32 Watt Lamps | AT141: (4) 34" T-5 39W Lamps (2) Prog Start or PRS Ballasts, HLO (.95<BF<1.1) | BA141: Metal Halide | BB141: 70 Watt MH Lamp, Magnetic ballast | BC141: Magnetic | BD141: 1 | BE141: 70 | BF141: 94
AD142: 1x4 Luminaires | AQ142: (3) 96" T12, ES Lamps Mag-STD, 60 Watt Lamps | AR142: (4) 96", T8, High Output Ballast, 57 Watt Lamps | AS142: (4) 96", T8 Std Ballast, 25 Watt Lamps | AT142: (4) 45.8" T-5 28W Lamps (2) Prog Start or PRS Ballasts, HLO (.95<BF<1.1) | BA142: Metal Halide | BB142: 100 Watt MH Lamp, Magnetic ballast | BC142: Magnetic | BD142: 1 | BE142: 100 | BF142: 127
AD143: 2x2 Luminaires | AQ143: (3) 96" T12, STD HO Lamps Mag-STD, 110 Watt Lamps | AR143: (4) 96", T8, High Output Ballast, 59 Watt Lamps | AS143: (4) 96", T8 Std Ballast, 57 Watt Lamps | AT143: (4) 45.8" T-5 49W HO Lamps, (2) Prog Start or RS Ballast, HLO (.95<BF<1.1) | BA143: Metal Halide | BB143: 125 Watt MH Lamp, Magnetic ballast | BC143: Magnetic | BD143: 1 | BE143: 125 | BF143: 150
AD144: 2x4 Luminaires | AQ144: (4) 24" T12, STD Lamps, 20 Watt Lamps | AR144: (4) 96", T8, High Output Ballast, 86 Watt Lamps | AS144: (4) 96", T8 Std Ballast, 59 Watt Lamps | AT144: (4) 45.8" T-5 54W HO Lamps, (2) Prog RS Ballast, HLO (.95<BF<1.1) | BA144: Metal Halide | BB144: 150 Watt MH Lamp, Magnetic Ballast | BC144: Magnetic | BD144: 1 | BE144: 150 | BF144: 184
AD145: 1x8 Luminaires | AQ145: (4) 36" T12, STD Lamps Mag-STD, 30 Watt Lamps | AR145: (6) 48", T8, High Output Ballast, 28 Watt Lamps | AS145: (4) 96", T8 Std Ballast, 86 Watt Lamps | AT145: (4) 45.8" T-5 54W HO Lamps, (2) Prog RS Ballast, HLO (.95<BF<1.1), alt 1 | BA145: Metal Halide | BB145: 175 Watt MH Lamp, Magnetic ballast | BC145: Magnetic | BD145: 1 | BE145: 175 | BF145: 209
AQ146: (4) 48" T12, ES Lamp, Magnetic Ballast-STD, 34 Watt Lamps | AR146: (6) 48", T8, High Output Ballast, 32 Watt Lamps | AS146: (6) 48", T8, Std Ballast, 28 Watt Lamps | AT146: (5) 45.9" T-5 54W Lamps (2) Prog.Start or PRS Ballasts, HLO (.95<BF<1.1) | BA146: Metal Halide | BB146: 200 Watt MH Lamp, Magnetic ballast | BC146: Magnetic | BD146: 1 | BE146: 200 | BF146: 232
AQ147: (4) 48" T12, STD Lamp, Magnetic Ballast-STD, 40 Watt Lamps | AR147: (6) 96", T8, High Output Ballast, 57 Watt Lamps | AS147: (6) 48", T8, Std Ballast, 32 Watt Lamps | AT147: (6) 45.8" T-5 54W HO Lamps (3) Prog RS Ballast, HLO(.95<BF<1.1) | BA147: Metal Halide | BB147: 250 Watt MH Lamp, Magnetic ballast | BC147: Magnetic | BD147: 1 | BE147: 250 | BF147: 291
AQ148: (4) 96" T12, ES HO Lamps Mag-STD, 95 Watt Lamps | AR148: (6) 96", T8, High Output Ballast, 59 Watt Lamps | AS148: (6) 96", T8 Std Ballast, 57 Watt Lamps | AT148: (6) 45.8" T-5 54W HO Lamps (3) Prog RS Ballast, HLO(.95<BF<1.1), alt 1 | BA148: Metal Halide | BB148: 320 Watt MH Lamp, Magnetic ballast | BC148: Magnetic | BD148: 1 | BE148: 320 | BF148: 367
AQ149: (4) 96" T12, ES Lamps Mag-STD, 60 Watt Lamps | AR149: (6) 96", T8, High Output Ballast, 86 Watt Lamps | AS149: (6) 96", T8 Std Ballast, 59 Watt Lamps | AT149: (6) 45.9" T-5 49W HO Lamps, (3) Prog Start or RS Ballast, HLO (.95<BF<1.1) | BA149: Metal Halide | BB149: 350 Watt MH Lamp, Magnetic ballast | BC149: Magnetic | BD149: 1 | BE149: 350 | BF149: 395
AQ150: (4) 96" T12, STD HO Lamps Mag-STD, 110 Watt Lamps | AS150: (6) 96", T8 Std Ballast, 86 Watt Lamps | AT150: (8) 45.8" T-5 49W HO Lamps, (4) Prog Start or RS Ballast, HLO(.95<BF<1.1) | BA150: Metal Halide | BB150: 360 Watt MH Lamp, Magnetic ballast | BC150: Magnetic | BD150: 1 | BE150: 360 | BF150: 418
AT151: (10) 45.8" T-5 54W HO Lamps (5) Prog RS Ballast, HLO (.95<BF<1.1) | BA151: Metal Halide | BB151: 400 Watt MH Lamp, Magnetic ballast | BC151: Magnetic | BD151: 1 | BE151: 400 | BF151: 456
AT152: (12) 45.8" T-5 54W HO Lamps (6) Prog RS Ballast, HLO (.95<BF<1.1) | BA152: Metal Halide | BB152: 450 Watt MH Lamp, Magnetic ballast | BC152: Magnetic | BD152: 1 | BE152: 450 | BF152: 507
BA153: Metal Halide | BB153: 750 Watt MH Lamp, Magnetic ballast | BC153: Magnetic | BD153: 1 | BE153: 750 | BF153: 814
BA154: Metal Halide | BB154: 1000 Watt MH Lamp, Magnetic ballast | BC154: Magnetic | BD154: 1 | BE154: 1000 | BF154: 1077
BA155: Metal Halide | BB155: 1500 Watt MH Lamp, Magnetic ballast | BC155: Magnetic | BD155: 1 | BE155: 1500 | BF155: 1608
BA156: T8 | BB156: (1) 24", T8, Std Elec Ballast, 17 Watt Lamps | BC156: Electronic Std | BD156: 1 | BE156: 17 | BF156: 16
BA157: T8 | BB157: (1) 24", T8, High Output Ballast, 17 Watt Lamps | BC157: Electronic HO | BD157: 1 | BE157: 17 | BF157: 20
BA158: T8 | BB158: (1) 36", T8, Std Elec Ballast, 25 Watt Lamps | BC158: Electronic Std | BD158: 1 | BE158: 25 | BF158: 23
BA159: T8 | BB159: (1) 36", T8, High Output Ballast, 25 Watt Lamps | BC159: Electronic HO | BD159: 1 | BE159: 25 | BF159: 28
BA160: T8 | BB160: (1) 48", T8, Std Ballast, 25 Watt Lamps | BC160: Electronic Std | BD160: 1 | BE160: 25 | BF160: 23
BA161: T8 | BB161: (1) 48", T8, High Output Ballast, 25 Watt Lamps | BC161: Electronic HO | BD161: 1 | BE161: 25 | BF161: 28
BA162: T8 | BB162: (1) 48", T8, Std Ballast, 28 Watt Lamps | BC162: Electronic Std | BD162: 1 | BE162: 28 | BF162: 25
BA163: T8 | BB163: (1) 48", T8, High Output Ballast, 28 Watt Lamps | BC163: Electronic HO | BD163: 1 | BE163: 28 | BF163: 32
BA164: T8 | BB164: (1) 48", T8, Std Ballast, 32 Watt Lamps | BC164: Electronic Std | BD164: 1 | BE164: 32 | BF164: 30
S165: 2. Fixture Type | BA165: T8 | BB165: (1) 48", T8, High Output Ballast, 32 Watt Lamps | BC165: Electronic HO | BD165: 1 | BE165: 32 | BF165: 36
R166: CMeasureType | T166: Retrofit Type | U166: Fixture Type | BA166: T8 | BB166: (1) 96", T8 Std Ballast, 57 Watt Lamps | BC166: Electronic Std | BD166: 1 | BE166: 57 | BF166: 52
R167: Exterior/12 Hour | T167: LED | U167: Controlled Fixture | BA167: T8 | BB167: (1) 96", T8, High Output Ballast, 57 Watt Lamps | BC167: Electronic HO | BD167: 1 | BE167: 57 | BF167: 59
R168: 24 Hour/Garage/3-Shift | T168: LED | U168: Controlled Fixture | BA168: T8 | BB168: (1) 96", T8 Std Ballast, 59 Watt Lamps | BC168: Electronic Std | BD168: 1 | BE168: 59 | BF168: 55
BA169: T8 | BB169: (1) 96", T8, High Output Ballast, 59 Watt Lamps | BC169: Electronic HO | BD169: 1 | BE169: 59 | BF169: 62
BA170: T8 | BB170: (1) 96", T8 Std Ballast, 86 Watt Lamps | BC170: Electronic Std | BD170: 1 | BE170: 86 | BF170: 82
BA171: T8 | BB171: (1) 96", T8, High Output Ballast, 86 Watt Lamps | BC171: Electronic HO | BD171: 1 | BE171: 86 | BF171: 90
BA172: T8 | BB172: (2) 24", T8, Std Elec Ballast, 17 Watt Lamps | BC172: Electronic Std | BD172: 2 | BE172: 17 | BF172: 32
BA173: T8 | BB173: (2) 24", T8, High Output Ballast, 17 Watt Lamps | BC173: Electronic HO | BD173: 2 | BE173: 17 | BF173: 40
BA174: T8 | BB174: (2) 36", T8, Std Elec Ballast, 25 Watt Lamps | BC174: Electronic Std | BD174: 2 | BE174: 25 | BF174: 46
BA175: T8 | BB175: (2) 36", T8, High Output Ballast, 25 Watt Lamps | BC175: Electronic HO | BD175: 2 | BE175: 25 | BF175: 56
BA176: T8 | BB176: (2) 48", T8, Std Ballast, 25 Watt Lamps | BC176: Electronic Std | BD176: 2 | BE176: 25 | BF176: 46
BA177: T8 | BB177: (2) 48", T8, High Output Ballast, 25 Watt Lamps | BC177: Electronic HO | BD177: 2 | BE177: 25 | BF177: 56
BA178: T8 | BB178: (2) 48", T8, Std Ballast, 28 Watt Lamps | BC178: Electronic Std | BD178: 2 | BE178: 28 | BF178: 50
BA179: T8 | BB179: (2) 48", T8, High Output Ballast, 28 Watt Lamps | BC179: Electronic HO | BD179: 2 | BE179: 28 | BF179: 64
BA180: T8 | BB180: (2) 48", T8, Std Ballast, 32 Watt Lamps | BC180: Electronic Std | BD180: 2 | BE180: 32 | BF180: 60
BA181: T8 | BB181: (2) 48", T8, High Output Ballast, 32 Watt Lamps | BC181: Electronic HO | BD181: 2 | BE181: 32 | BF181: 72
BA182: T8 | BB182: (2) 96", T8 Std Ballast, 57 Watt Lamps | BC182: Electronic Std | BD182: 2 | BE182: 57 | BF182: 100
BA183: T8 | BB183: (2) 96", T8, High Output Ballast, 57 Watt Lamps | BC183: Electronic HO | BD183: 2 | BE183: 57 | BF183: 105
BA184: T8 | BB184: (2) 96", T8 Std Ballast, 59 Watt Lamps | BC184: Electronic Std | BD184: 2 | BE184: 59 | BF184: 109
BA185: T8 | BB185: (2) 96", T8, High Output Ballast, 59 Watt Lamps | BC185: Electronic HO | BD185: 2 | BE185: 59 | BF185: 160
BA186: T8 | BB186: (2) 96", T8 Std Ballast, 86 Watt Lamps | BC186: Electronic Std | BD186: 2 | BE186: 86 | BF186: 164
BA187: T8 | BB187: (2) 96", T8, High Output Ballast, 86 Watt Lamps | BC187: Electronic HO | BD187: 2 | BE187: 86 | BF187: 180
BA188: T8 | BB188: (3) 24", T8, Std Elec Ballast, 17 Watt Lamps | BC188: Electronic Std | BD188: 3 | BE188: 17 | BF188: 48
BA189: T8 | BB189: (3) 24", T8, High Output Ballast, 17 Watt Lamps | BC189: Electronic HO | BD189: 3 | BE189: 17 | BF189: 60
BA190: T8 | BB190: (3) 36", T8, Std Elec Ballast, 25 Watt Lamps | BC190: Electronic Std | BD190: 3 | BE190: 25 | BF190: 69
BA191: T8 | BB191: (3) 36", T8, High Output Ballast, 25 Watt Lamps | BC191: Electronic HO | BD191: 3 | BE191: 25 | BF191: 84
BA192: T8 | BB192: (3) 48", T8, Std Ballast, 25 Watt Lamps | BC192: Electronic Std | BD192: 3 | BE192: 25 | BF192: 69
BA193: T8 | BB193: (3) 48", T8, High Output Ballast, 25 Watt Lamps | BC193: Electronic HO | BD193: 3 | BE193: 25 | BF193: 84
BA194: T8 | BB194: (3) 48", T8, Std Ballast, 28 Watt Lamps | BC194: Electronic Std | BD194: 3 | BE194: 28 | BF194: 75
BA195: T8 | BB195: (3) 48", T8, High Output Ballast, 28 Watt Lamps | BC195: Electronic HO | BD195: 3 | BE195: 28 | BF195: 96
BA196: T8 | BB196: (3) 48", T8, Std Ballast, 32 Watt Lamps | BC196: Electronic Std | BD196: 3 | BE196: 32 | BF196: 90
BA197: T8 | BB197: (3) 48", T8, High Output Ballast, 32 Watt Lamps | BC197: Electronic HO | BD197: 3 | BE197: 32 | BF197: 108
BA198: T8 | BB198: (3) 96", T8 Std Ballast, 57 Watt Lamps | BC198: Electronic Std | BD198: 3 | BE198: 57 | BF198: 156
BA199: T8 | BB199: (3) 96", T8, High Output Ballast, 57 Watt Lamps | BC199: Electronic HO | BD199: 3 | BE199: 57 | BF199: 177
BA200: T8 | BB200: (3) 96", T8 Std Ballast, 59 Watt Lamps | BC200: Electronic Std | BD200: 3 | BE200: 59 | BF200: 165
BA201: T8 | BB201: (3) 96", T8, High Output Ballast, 59 Watt Lamps | BC201: Electronic HO | BD201: 3 | BE201: 59 | BF201: 186
BA202: T8 | BB202: (3) 96", T8 Std Ballast, 86 Watt Lamps | BC202: Electronic Std | BD202: 3 | BE202: 86 | BF202: 246
... 114 more rows

Sheet Lighting SOW
A1: App # (office use only): | C1: =IF('Applicant Info'!J3="","",'Applicant Info'!J3) ->  | D1: Please complete all info in the white spaces below:
A2: Business Name: | C2: =IF('Applicant Info'!A22="","",'Applicant Info'!A22) ->  | G2: Date: | H2: =IF('Applicant Info'!K6="", IF('Applicant Info'!K8="","",'Applicant Info'!K8),'Applicant Info'!K6) -> 
A3: Prepared by: | G3: Phone: | H3: =IF('Applicant Info'!D27="","",'Applicant Info'!D27) -> 
A4: Address: | C4: =IF('Applicant Info'!E29="","",'Applicant Info'!E29 &" "&'Applicant Info'!E30 &" " &'Applicant Info'!I30 &" "&'Applicant Info'!K30) ->  | G4: Email: | H4: =IF('Applicant Info'!$E$28="","",'Applicant Info'!$E$28) -> 
A5: Lighting Scope of Work / Building Audit Form | T5: Annual Savings*
A6: Existing Lighting | K6: Proposed Lighting | T6: *calculated per figures entered on this form; savings are NOT guaranteed
A7: LOCATION | B7: LOCATION (Description) | C7: Fixture Type | D7: Lamp or fixture type | E7: Ballast | F7: Lamps per Fixture | G7: Watts per Fixture | H7: Fixture Qty | I7: Total W | J7: Operating Hours per Week | K7: New or Retrofit | L7: Fixture Type | M7: DLC or Energy Star Qualified? | N7: Fixture or Lamp Model Number | O7: Lamps per Fixture | P7: Watts per Fixture | Q7: Fixture Qty | R7: Total W | S7: Occupancy Control? (Y / N) | T7: Savings (W) | U7: Savings (kWh)
I8: =IF(B8="","",H8*G8) ->  | R8: =IF(ISBLANK(M8), "",P8*Q8) ->  | U8: =IF(OR(J8="",T8=""),"",J8*T8*52/1000) -> 
T10: =IF(OR(I10="",R10=""),"",I10-R10) -> 
I73: =IF(B73="","",H73*G73) ->  | R73: =IF(ISBLANK(M73), "",P73*Q73) ->  | T73: =IF(OR(I73="",R73=""),"",I73-R73) ->  | U73: =IF(OR(J73="",T73=""),"",J73*T73*52/1000) -> 
A144: Room Type | B144: Type | D144: Ballast | F144: Lamps | H144: New or Retro | J144: Control | K144: DLC Energy Star Qualified?
A145: Bathroom | B145: Incandescent | K145: DLC
A146: Bedroom | B146: Pin Fluorescent | D146: Magnetic | F146: 1 | H146: New Fixture | J146: YES | K146: EnergyStar
A147: Carport | B147: Screw-in CFL | D147: Electronic | F147: 2 | H147: Retrofit Kit | J147: NO
A148: Closet | B148: Hardwired CFL | D148: Pulse-start | F148: 3 | H148: Lamp to Lamp | J148: Ceiling
A149: Dining Room | B149: 2x4 Troffer | D149: N/A | F149: 4 | H149: Remove | J149: Wall
A150: Entry | B150: 2x2 Troffer | F150: 5
A151: Family Room | B151: 2' Strip | F151: 6
A152: Garage | B152: 4' Strip | F152: 7
A153: Gym | B153: 6' Strip | F153: 8
A154: Hall/Entry | B154: 8' Strip | F154: 9
A155: Kitchen | B155: Wallpack | F155: 10
A156: Laundry Room | B156: Pole
A157: Living Room | B157: HID
A158: Mailbox Area | B158: Exit INC
A159: Office | B159: HighBay T8
A160: Other | B160: HighBay T5
A161: Patio / Balcony | B161: Sign
A162: Pool Area | B162: Other
A163: Storage / Closet
A164: Utility Room
B165: Type2
B166: LED Screw-in
B167: LED T8 Lamp
B168: Pin LED
B169: LED 2x4 Troffer
B170: LED 2x2 Troffer
B171: 2' LED Strip
B172: 4' LED Strip
B173: 6' LED Strip
B174: 8' LED Strip
B175: LED Wallpack
B176: LED Pole Fixture
B177: LED Sign
B178: Other

Sheet HVAC & Smart Thermostats
B1: HVAC INCENTIVES | L1: USE THIS SECTION TO REPLACE THE TABLE IN THE SPECS WORKSHEET
A2: Applicant: fill in gray fields at bottom
A3: Equipment Type | D3: Size Category | G3: Qualifying Efficiency* | H3: Incentive (per ton) | I3: Efficiency Bonus | L3: Equipment Type | M3: Size Category | P3: Qualifying Efficiency* | Q3: Incentive (per ton) | R3: Efficiency Bonus
A4: Unitary and Split Air Conditioning Systems | D4: < 65,000 Btu/h (5.4 tons) | G4: 14.0 SEER and 12.0 EER | H4: 25 | I4: 15 | L4: Unitary and Split Air Conditioning Systems | M4: < 65,000 Btu/h (5.4 tons) | P4: 14.0 SEER and 12.0 EER | Q4: 25 | R4: 15
D5: ≥ 65,000 Btu/h and < 135,000 Btu/h (5.4-11.25 tons) | G5: 12.0 EER** | M5: ≥ 65,000 Btu/h and < 135,000 Btu/h (5.4-11.25 tons) | P5: 12.0 EER**
D7: ≥ 135,000 Btu/h and < 240,000 Btu/h (11.25-20 tons) | G7: 12.0 EER** | M7: ≥ 135,000 Btu/h and < 240,000 Btu/h (11.25-20 tons) | P7: 12.0 EER**
D9: ≥ 240,000 Btu/h and < 760,000 Btu/h (20-63 Tons) | G9: 10.8 EER** | M9: ≥ 240,000 Btu/h and < 760,000 Btu/h (20-63 Tons) | P9: 10.8 EER**
D11: ≥ 760,000 Btu/h (> 63 tons) | G11: 10.2 EER** | M11: ≥ 760,000 Btu/h (> 63 tons) | P11: 10.2 EER**
A13: Air Source Heat Pumps | D13: < 65,000 Btu/h (5.4 tons) | G13: 14 SEER and 12.0 EER and 7.7 HSPF | H13: 40 | I13: 15 | L13: Air Source Heat Pumps | M13: < 65,000 Btu/h (5.4 tons) | P13: 14 SEER and 12.0 EER and 7.7 HSPF | Q13: 40 | R13: 15
D14: ≥ 65,000 Btu/h and < 135,000 Btu/h (5.4-11.25 tons) | G14: 11.6 EER** and 3.2 COP | M14: ≥ 65,000 Btu/h and < 135,000 Btu/h (5.4-11.25 tons) | P14: 11.6 EER** and 3.2 COP
D16: ≥ 135,000 Btu/h and < 240,000 Btu/h (11.25-20 tons) | G16: 11.2 EER** and 3.1 COP | M16: ≥ 135,000 Btu/h and < 240,000 Btu/h (11.25-20 tons) | P16: 11.2 EER** and 3.1 COP
D18: ≥ 240,000 Btu/h and < 760,000 Btu/h (20-63 Tons) | G18: 10.0 EER** and 3.1 COP | M18: ≥ 240,000 Btu/h and < 760,000 Btu/h (20-63 Tons) | P18: 10.0 EER** and 3.1 COP
A20: Chillers: Water-Cooled, Centrifugal*** | D20: ≤ 150 tons | G20: 0.569 kW/ton-IPLV | H20: 20 | I20: 20 | L20: Chillers: Water-Cooled, Centrifugal | M20: ≤ 150 tons | P20: 0.569 kW/ton-IPLV | Q20: 20 | R20: 20
D21: >150 tons and ≤ 300 tons | G21: 0.507 kW/ton-IPLV | M21: >150 tons and ≤ 300 tons | P21: 0.507 kW/ton-IPLV
D22: > 300 tons | G22: 0.467 kW/ton-IPLV | M22: > 300 tons | P22: 0.467 kW/ton-IPLV
A23: Chillers: Water Cooled Scroll or Helical-Rotary*** | D23: ≤ 150 tons | G23: 0.575 kW/ton-IPLV | L23: Chillers: Water Cooled Scroll or Helical-Rotary | M23: ≤ 150 tons | P23: 0.575 kW/ton-IPLV
D24: >150 tons and ≤ 300 tons | G24: 0.534 kW/ton-IPLV | M24: >150 tons and ≤ 300 tons | P24: 0.534 kW/ton-IPLV
D25: > 300 tons | G25: 0.486 kW/ton-IPLV | M25: > 300 tons | P25: 0.486 kW/ton-IPLV
A26: Chillers: Water-Cooled Reciprocating, All | D26: ALL | G26: 0.592 kW/ton-IPLV | L26: Chillers: Water-Cooled Reciprocating, All | M26: ALL | P26: 0.592 kW/ton-IPLV
A27: Chillers: Air-Cooled, All | D27: ALL | G27: 0.867 kW/ton-IPLV | H27: 40 | I27: 20 | L27: Chillers: Air-Cooled, All | M27: ALL | P27: 0.867 kW/ton-IPLV | Q27: 40 | R27: 20
A28: Packaged Terminal AC | D28: ALL | G28: 12.5-(0.213 x Btu/h/1000) EER | H28: 50 | I28: 0 | L28: Packaged Terminal AC | M28: ALL | P28: 12.5-(0.213 x Btu/h/1000) EER | Q28: 50 | R28: 0
A29: Packaged Terminal HP | D29: ALL | G29: 12.3-(0.213 x Btu/h/1000) EER | H29: 100 | L29: Packaged Terminal HP | M29: ALL | P29: 12.3-(0.213 x Btu/h/1000) EER | Q29: 100
A30: Variable Refrigerant Flow HP | D30: < 65,000 Btu/h (5.4 tons) | G30: 15.6 SEER and 8.9 HSPF | H30: 40 | I30: 20 | L30: Variable Refrigerant Flow HP | M30: < 65,000 Btu/h (5.4 tons) | P30: 15.6 SEER and 8.9 HSPF | Q30: 40 | R30: 20
D31: ≥ 65,000 Btu/h and < 135,000 Btu/h (5.4-11.25 tons) | G31: 14.8 IEER and 4.0 COP | H31: 40 | I31: 25 | M31: ≥ 65,000 Btu/h and < 135,000 Btu/h (5.4-11.25 tons) | P31: 14.8 IEER and 4.0 COP | Q31: 40 | R31: 25
D32: ≥ 135,000 Btu/h and < 240,000 Btu/h (11.25-20 tons) | G32: 14.2 IEER and 3.2 COP | M32: ≥ 135,000 Btu/h and < 240,000 Btu/h (11.25-20 tons) | P32: 14.2 IEER and 3.2 COP
D33: ≥ 240,000 Btu/h (20 Tons) | G33: 12.7 IEER and 3.7 COP | M33: ≥ 240,000 Btu/h (20 Tons) | P33: 12.7 IEER and 3.7 COP
A34: Equipment Model | B34: Tons | C34: Efficiency Rating | D34: Quantity | E34: Equipment Type | G34: Size Category | I34: Incentive
I35: =IF(E35="","",IF(LEFT(E35,1)<>"C",B35*D35*IF(VLOOKUP(CONCATENATE(E35,G35),$K$108:$N$134,2,FALSE)>C35,0,VLOOKUP(CONCATENATE(E35,G35),$K$108:$N$134,3,FALSE)+(C35-(VLOOKUP(CONCATENATE(E35,G35),$K$108:$N$134,2,FALSE)))*(VLOOKUP(CONCATENATE(E35,G35),$K$108:$N$134,4,FALSE))),B35*D35*IF(VLOOKUP(CONCATENATE(E35,G35),$K$108:$N$134,2,FALSE)<C35,0,VLOOKUP(CONCATENATE(E35,G35),$K$108:$N$134,3,FALSE)+((VLOOKUP(CONCATENATE(E35,G35),$K$108:$N$134,2,FALSE))-C35)*(VLOOKUP(CONCATENATE(E35,G35),$K$108:$N$134,4,FALSE))/0.1))) -> 
A43: Income Qualifier Bonus: | I43: =IF('Applicant Info'!$P$13=TRUE,SUM(I35:I42)*0.1,0) -> 0
A44: Total HVAC Incentives: | I44: =SUM(I35:I43) -> 0
N45: Cooling Only | R45: Heating and Cooling
A46: Smart Thermostats (when replacing Manual or Programmable Thermostats, pre-inspection required) | L46: Thermostats - System Description | M46: Rated Cooling Capacity | N46: Incentive | O46: $/kWh | P46: EUL, years | Q46: IMC | R46: Incentive | S46: $/kWh | T46: EUL, years | U46: IMC
A47: Rated Cooling Capacity | B47: Incentive/Unit | L47: Air Conditioning (Refrigerated Air) | M47: 12000 | N47: 15 | O47: 0.165579784 | P47: 10 | Q47: 175 | R47: 55 | S47: 0.1406993608 | T47: 10 | U47: 175
B48: DX Cooling (Refrigerated Air) | E48: Heat Pump | G48: DX Cooling and Electric Resistance | L48: Heat Pump | M48: 18000 | N48: 25 | O48: 0.1839775378 | P48: 10 | Q48: 175 | R48: 75 | S48: 0.1279085098 | T48: 10 | U48: 175
A49: 12000 BTU | B49: 15 | E49: 55 | G49: 55 | L49: Electric Baseboard / Furnace | M49: 24000 | N49: 35 | O49: 0.1931764146 | P49: 10 | Q49: 175 | R49: 95 | S49: 0.1215130843 | T49: 10 | U49: 175
A50: 18000 BTU | B50: 25 | E50: 75 | G50: 75 | M50: 30000 | N50: 45 | O50: 0.1986957408 | P50: 10 | Q50: 175 | R50: 115 | S50: 0.117675829 | T50: 10 | U50: 175
A51: 24000 BTU | B51: 35 | E51: 95 | G51: 95 | M51: 36000 | N51: 55 | O51: 0.2023752915 | P51: 10 | Q51: 175 | R51: 135 | S51: 0.1151176588 | T51: 10 | U51: 175
A52: 30000 BTU | B52: 45 | E52: 115 | G52: 115
A53: 36000 BTU | B53: 55 | E53: 135 | G53: 135
A54: System Type | B54: Capacity (Btu/h) | E54: Quantity | G54: Incentive
G55: =_xlfn.IFNA(IF($A55=$L$47,VLOOKUP($B55,$M$47:$U$51,2,FALSE)*$E55,IF($A55=$L$48,VLOOKUP($B55,$M$47:$U$51,6,FALSE)*$E55,IF($A55=$L$49,VLOOKUP($B55,$M$47:$U$51,6,FALSE)*$E55,""))),"") -> 
G56: =_xlfn.IFNA(IF($A56=$L$47,VLOOKUP($B56,$M$47:$U$51,2,FALSE)*$E56,IF($A56=$L$48,VLOOKUP($B56,$M$47:$U$51,6,FALSE)*$E56,IF($A56=$L$49,VLOOKUP($B56,$M$47:$U$51,6,FALSE)*$E56,""))),"") -> 
A59: Income Qualifier Bonus: | G59: =IF('Applicant Info'!$P$13=TRUE,SUM(G55:I58)*0.1,0) -> 0
A60: Total Smart Thermostat Incentives: | G60: =IF(SUM(G55:I59)=0,"",SUM(G55:I59)) -> 
A62: Total All HVAC Form Incentives | H62: =SUM(I44,G60) -> 0
A63: * Use SEER for Unitary and Split Units less than 5.4 tons and EER for units larger than 5.4 tons; values available from CEE 2012 Tier 2; Use IEER for VRF Units; IPLV values based on ASHRAE 90.1 2010; see specifications page for complete list. Attach AHRI Rating Sheet. ** Units with electric resistance heating must have EER values 0.2 higher than the efficiencies listed. *** Unit efficiency for chillers should be provided in kW per ton – IPLV where IPLV = Integrated Part Load Value; values based on ASHRAE 90.1 2010. Attach manufacturer's rating sheet for credit.
A68: INSTRUCTIONS TO COMPLETE THIS WORKSHEET:
A69: Equipment Model: | B69: Enter the equipment model as shown on the invoice; provide the specification sheet(s) that accompany the model
A70: Tons: | B70: Enter the equipment tonnage from the AHRI or manufacturer specification sheet
A71: Efficiency Rating: | B71: Enter the equipment efficiency rating from the AHRI or manufacturer specification sheet; for chillers, kW/ton = 12/IPLV EER
A72: Quantity: | B72: Enter the number of units that fit this size and efficiency rating
A73: Equipment Type: | B73: Enter the equipment type from the drop-down menu
A74: Size Category: | B74: Enter the equipment size from the drop-down menu
K84: Unitary and Split Air Conditioning Systems
K85: Air Source Heat Pumps
K86: Chillers: Water-Cooled: Centrifugal
K87: Chillers: Water-Cooled: Scroll or Screw
K88: Chillers: Water-Cooled: Reciprocating
K89: Chillers: Air-Cooled
K90: Packaged Terminal AC
K91: Packaged Terminal HP
K92: Variable Refrigerant Flow HP
K95: < 65,000 Btu/h (5.4 tons)
K96: ≥ 65,000 Btu/h and < 135,000 Btu/h (5.4-11.25 tons)
K97: ≥ 135,000 Btu/h and < 240,000 Btu/h (11.25-20 tons)
K98: ≥ 240,000 Btu/h and < 760,000 Btu/h (20-63 Tons)
K99: ≥ 760,000 Btu/h (> 63 tons)
K100: ≤ 150 tons
K101: >150 tons and ≤ 300 tons
K102: > 300 tons
K103: ALL
L108: Level Normal | M108: Incentive | N108: Bonus | O108: Level 2 | P108: Level 3 | Q108: Level 4 | R108: Min | S108: Max
K110: Unitary and Split Air Conditioning Systems< 65,000 Btu/h (5.4 tons) | L110: 14 | M110: 25 | N110: 15 | O110: =L110+1 -> 15 | P110: =O110+1 -> 16 | Q110: 17 | R110: 0 | S110: 5.4
K111: Unitary and Split Air Conditioning Systems≥ 65,000 Btu/h and < 135,000 Btu/h (5.4-11.25 tons) | L111: 12 | M111: 25 | N111: 15 | O111: =L111+1 -> 13 | P111: 14 | Q111: 15
K112: Unitary and Split Air Conditioning Systems≥ 135,000 Btu/h and < 240,000 Btu/h (11.25-20 tons) | L112: 12 | M112: 25 | N112: 15 | O112: =L112+1 -> 13 | P112: 14 | Q112: 15 | R112: 11.25 | S112: 20
K113: Unitary and Split Air Conditioning Systems≥ 240,000 Btu/h and < 760,000 Btu/h (20-63 Tons) | L113: 10.8 | M113: 25 | N113: 15 | O113: =L110+1 -> 15 | P113: =O110+1 -> 16 | Q113: =P110+1 -> 17 | R113: 20 | S113: 63
K114: Unitary and Split Air Conditioning Systems≥ 760,000 Btu/h (> 63 tons) | L114: 10.2 | M114: 25 | N114: 15 | O114: =L114+1 -> 11.2 | P114: 12.2 | Q114: 13.2 | R114: 63 | S114: 100000
K115: Air Source Heat Pumps< 65,000 Btu/h (5.4 tons) | L115: 14 | M115: 40 | N115: 15 | O115: =L115+1 -> 15 | P115: 16 | Q115: 17 | R115: 0 | S115: 5.4
K116: Air Source Heat Pumps≥ 65,000 Btu/h and < 135,000 Btu/h (5.4-11.25 tons) | L116: 11.6 | M116: 40 | N116: 15 | O116: =L116+1 -> 12.6 | P116: 13.6 | Q116: 14.6 | R116: 5.4 | S116: 11.25
K117: Air Source Heat Pumps≥ 135,000 Btu/h and < 240,000 Btu/h (11.25-20 tons) | L117: 11.2 | M117: 40 | N117: 15 | O117: =L117+1 -> 12.2 | P117: 13.2 | Q117: 14.2 | R117: 11.25 | S117: 20
K118: Air Source Heat Pumps≥ 240,000 Btu/h and < 760,000 Btu/h (20-63 Tons) | L118: 10 | M118: 40 | N118: 15 | O118: =L115+1 -> 15 | P118: =O115+1 -> 16 | Q118: =P115+1 -> 17 | R118: 20 | S118: 63
K119: Air Source Heat Pumps≥ 760,000 Btu/h (> 63 tons) | L119: 10 | M119: 40 | N119: 15 | O119: =L119+1 -> 11 | P119: =O119+1 -> 12 | Q119: 13 | R119: 63 | S119: 100000
K120: Chillers: Water-Cooled: Centrifugal≤ 150 tons | L120: 0.569 | M120: 20 | N120: 20 | O120: 0.54 | P120: =ROUNDUP(L120/0.9*0.7,2) -> 0.45 | Q120: =ROUNDUP(L120/0.9*0.6,2) -> 0.38 | R120: 0 | S120: 150
K121: Chillers: Water-Cooled: Centrifugal>150 tons and ≤ 300 tons | L121: 0.507 | M121: 20 | N121: 20 | O121: 0.48 | P121: 0.4 | Q121: 0.34 | R121: 150 | S121: 300
K122: Chillers: Water-Cooled: Centrifugal> 300 tons | L122: 0.467 | M122: 20 | N122: 20 | O122: 0.44 | P122: 0.37 | Q122: 0.32 | R122: 300 | S122: 100000
K123: Chillers: Water-Cooled: ReciprocatingALL | L123: 0.592 | M123: 20 | N123: 20 | O123: 0.54 | P123: 0.47 | Q123: 0.4 | R123: 0 | S123: 75
K124: Chillers: Water-Cooled: Scroll or Screw≤ 150 tons | L124: 0.575 | M124: 20 | N124: 20 | O124: 0.54 | P124: 0.45 | Q124: 0.39 | R124: 75 | S124: 150
K125: Chillers: Water-Cooled: Scroll or Screw>150 tons and ≤ 300 tons | L125: 0.534 | M125: 20 | N125: 20 | O125: 0.5 | P125: 0.42 | Q125: 0.36 | R125: 150 | S125: 300
K126: Chillers: Water-Cooled: Scroll or Screw> 300 tons | L126: 0.486 | M126: 20 | N126: 20 | O126: 0.46 | P126: 0.38 | Q126: 0.33 | R126: 300 | S126: 100000
K127: Chillers: Air-CooledALL | L127: 0.867 | M127: 40 | N127: 20 | O127: =ROUND(L127/0.9*0.8,2) -> 0.77 | P127: 0.68 | Q127: 0.58 | R127: 0 | S127: 150
K128: Chillers: Air-Cooled> 150 tons | L128: 0.867 | M128: 15 | N128: 20 | O128: =ROUND(L128/0.9*0.8,2) -> 0.77 | P128: 0.68 | Q128: 0.58 | R128: 150 | S128: 100000
K129: Packaged Terminal ACALL | L129: =12.5-(0.213*B35*12000/1000) -> 12.5 | M129: 50 | N129: 0 | O129: =L129+1 -> 13.5 | P129: =O129+1 -> 14.5 | Q129: 15.5 | R129: 0 | S129: 100000
K130: Packaged Terminal HPALL | L130: =12.3-(0.213*B36*12000/1000) -> 12.3 | M130: 100 | N130: 0 | O130: 13.3 | P130: 14.3 | Q130: 15.3 | R130: 0 | S130: 100000
K131: Variable Refrigerant Flow HP≥ 65,000 Btu/h and < 135,000 Btu/h (5.4-11.25 tons) | L131: 14.8 | M131: 40 | N131: 25 | O131: 15.8 | P131: 16.8 | Q131: 17.8 | R131: 5.4 | S131: 11.25
K132: Variable Refrigerant Flow HP≥ 135,000 Btu/h and < 240,000 Btu/h (11.25-20 tons) | L132: 14.2 | M132: 40 | N132: 25 | O132: 15.2 | P132: 16.2 | Q132: 17.2 | R132: 11.25 | S132: 20
K133: Variable Refrigerant Flow HP≥ 240,000 Btu/h and < 760,000 Btu/h (20-63 Tons) | L133: 12.7 | M133: 40 | N133: 25 | O133: 13.7 | P133: 14.7 | Q133: 15.7 | R133: 20 | S133: 63
K134: Variable Refrigerant Flow HP< 65,000 Btu/h (5.4 tons) | L134: 15.6 | M134: 40 | N134: 25 | O134: 16.6 | P134: 17.6 | Q134: 18.6 | R134: 63 | S134: 100000
O136: **used stated values for Level 2, if available. Else was rounded up to the 10s of watts

Sheet Motors, VSDs & Pool Pumps
C1: MOTORS & VARIABLE SPEED DRIVES INCENTIVES
A2: Applicant: fill in gray fields at bottom
P3: Validation
A4: Premium-Efficiency Motors - Minimum Qualifying Efficiencies | X4: Concatenate | Y4: Baseline Efficiency
A5: Horsepower | C5: 1200 RPM | E5: 1800 RPM | G5: 3600 RPM | I5: Incentive per 0.1% efficiency improvement over baseline efficiencies | O5: 1 | P5: 1200 | Q5: Open | U5: 1 | V5: 1200 | W5: Open | X5: 11200Open | Y5: 0.825
C6: Open | D6: Closed | E6: Open | F6: Closed | G6: Open | H6: Closed | O6: 1.5 | P6: 1800 | Q6: Closed | U6: 1.5 | V6: 1200 | W6: Open | X6: 1.51200Open | Y6: 0.865
A7: 1 | C7: 0.825 | D7: 0.855 | E7: 0.77 | F7: 0.825 | G7: 0.855 | H7: 0.77 | I7: 2 | O7: 2 | P7: 3600 | U7: 2 | V7: 1200 | W7: Open | X7: 21200Open | Y7: 0.875
A8: 1.5 | C8: 0.865 | D8: 0.865 | E8: 0.84 | F8: 0.875 | G8: 0.865 | H8: 0.84 | I8: 3 | O8: 3 | U8: 3 | V8: 1200 | W8: Open | X8: 31200Open | Y8: 0.885
A9: 2 | C9: 0.875 | D9: 0.865 | E9: 0.855 | F9: 0.885 | G9: 0.865 | H9: 0.855 | I9: 4 | O9: 5 | U9: 5 | V9: 1200 | W9: Open | X9: 51200Open | Y9: 0.895
A10: 3 | C10: 0.885 | D10: 0.895 | E10: 0.855 | F10: 0.895 | G10: 0.895 | H10: 0.865 | I10: 6 | O10: 7.5 | U10: 7.5 | V10: 1200 | W10: Open | X10: 7.51200Open | Y10: 0.902
A11: 5 | C11: 0.895 | D11: 0.895 | E11: 0.865 | F11: 0.895 | G11: 0.895 | H11: 0.885 | I11: 10 | O11: 10 | U11: 10 | V11: 1200 | W11: Open | X11: 101200Open | Y11: 0.917
A12: 7.5 | C12: 0.902 | D12: 0.91 | E12: 0.885 | F12: 0.91 | G12: 0.917 | H12: 0.895 | I12: 17 | O12: 15 | U12: 15 | V12: 1200 | W12: Open | X12: 151200Open | Y12: 0.917
A13: 10 | C13: 0.917 | D13: 0.917 | E13: 0.895 | F13: 0.91 | G13: 0.917 | H13: 0.902 | I13: 22 | O13: 20 | U13: 20 | V13: 1200 | W13: Open | X13: 201200Open | Y13: 0.924
A14: 15 | C14: 0.917 | D14: 0.93 | E14: 0.902 | F14: 0.917 | G14: 0.924 | H14: 0.91 | I14: 33 | O14: 25 | U14: 25 | V14: 1200 | W14: Open | X14: 251200Open | Y14: 0.93
A15: 20 | C15: 0.924 | D15: 0.93 | E15: 0.91 | F15: 0.917 | G15: 0.93 | H15: 0.91 | I15: 44 | O15: 30 | U15: 30 | V15: 1200 | W15: Open | X15: 301200Open | Y15: 0.936
A16: 25 | C16: 0.93 | D16: 0.936 | E16: 0.917 | F16: 0.93 | G16: 0.936 | H16: 0.917 | I16: 65 | O16: 40 | U16: 40 | V16: 1200 | W16: Open | X16: 401200Open | Y16: 0.941
A17: 30 | C17: 0.936 | D17: 0.941 | E17: 0.917 | F17: 0.93 | G17: 0.936 | H17: 0.917 | I17: 77 | O17: 50 | U17: 50 | V17: 1200 | W17: Open | X17: 501200Open | Y17: 0.941
A18: 40 | C18: 0.941 | D18: 0.941 | E18: 0.924 | F18: 0.941 | G18: 0.941 | H18: 0.924 | I18: 102 | O18: 60 | U18: 60 | V18: 1200 | W18: Open | X18: 601200Open | Y18: 0.945
A19: 50 | C19: 0.941 | D19: 0.945 | E19: 0.93 | F19: 0.941 | G19: 0.945 | H19: 0.93 | I19: 127 | O19: 75 | U19: 75 | V19: 1200 | W19: Open | X19: 751200Open | Y19: 0.945
A20: 60 | C20: 0.945 | D20: 0.95 | E20: 0.936 | F20: 0.945 | G20: 0.95 | H20: 0.936 | I20: 200 | O20: 100 | U20: 100 | V20: 1200 | W20: Open | X20: 1001200Open | Y20: 0.95
A21: 75 | C21: 0.945 | D21: 0.95 | E21: 0.936 | F21: 0.945 | G21: 0.954 | H21: 0.936 | I21: 250 | O21: 125 | U21: 125 | V21: 1200 | W21: Open | X21: 1251200Open | Y21: 0.95
A22: 100 | C22: 0.95 | D22: 0.954 | E22: 0.936 | F22: 0.95 | G22: 0.954 | H22: 0.941 | I22: 325 | O22: 150 | U22: 150 | V22: 1200 | W22: Open | X22: 1501200Open | Y22: 0.954
A23: 125 | C23: 0.95 | D23: 0.954 | E23: 0.941 | F23: 0.95 | G23: 0.954 | H23: 0.95 | I23: 400 | O23: 200 | U23: 200 | V23: 1200 | W23: Open | X23: 2001200Open | Y23: 0.954
A24: 150 | C24: 0.954 | D24: 0.958 | E24: 0.941 | F24: 0.958 | G24: 0.958 | H24: 0.95 | I24: 475 | U24: 1 | V24: 1200 | W24: Closed | X24: 11200Closed | Y24: 0.855
A25: 200 | C25: 0.954 | D25: 0.958 | E25: 0.95 | F25: 0.958 | G25: 0.962 | H25: 0.954 | I25: 625 | U25: 1.5 | V25: 1200 | W25: Closed | X25: 1.51200Closed | Y25: 0.865
U26: 2 | V26: 1200 | W26: Closed | X26: 21200Closed | Y26: 0.865
A27: Motor Make/Model | C27: Quantity | D27: Motor Size (HP) (dropdown) | E27: Motor Speed (rpm) (dropdown) | F27: Motor Type (open/closed) (dropdown) | G27: Baseline Efficiency | H27: Actual Motor Efficiency | I27: Total Incentive | O27: Concatenate | U27: 3 | V27: 1200 | W27: Closed | X27: 31200Closed | Y27: 0.895
G28: =IF(ISNA(VLOOKUP(O28,$X$5:$Y$118,2,0))=TRUE,"",(VLOOKUP(O28,$X$5:$Y$118,2,0))) ->  | I28: =IF(H28="","",IF(OR(ISNA((H28-G28)*1000*VLOOKUP(D28,$A$7:$I$25,8,0)),H28<G28)=TRUE,"DNQ",((H28-G28)*1000*VLOOKUP(D28,$A$7:$I$25,9,0)*C28))) ->  | O28: =CONCATENATE(D28,E28,F28) ->  | U28: 5 | V28: 1200 | W28: Closed | X28: 51200Closed | Y28: 0.895 | AC28: ENERGYSTAR Pool Pump Assumptions | AL28: Incentive | AM28: $/kWh | AO28: ES
G29: =IF(ISNA(VLOOKUP(O29,$X$5:$Y$118,2,0))=TRUE,"",(VLOOKUP(O29,$X$5:$Y$118,2,0))) ->  | I29: =IF(H29="","",IF(OR(ISNA((H29-G29)*1000*VLOOKUP(D29,$A$7:$I$25,8,0)),H29<G29)=TRUE,"DNQ",((H29-G29)*1000*VLOOKUP(D29,$A$7:$I$25,9,0)*C29))) ->  | O29: =CONCATENATE(D29,E29,F29) ->  | U29: 7.5 | V29: 1200 | W29: Closed | X29: 7.51200Closed | Y29: 0.91 | AC29: Rated Hp | AD29: Hours, HighSpeed | AE29: Hours, LowSpeed | AF29: PFR, HighSpeed | AG29: EF, HighSpeed | AH29: PFR, LowSpeed | AI29: EF, LowSpeed | AJ29: kWh, ENERGYSTAR | AO29: Yes
U30: 10 | V30: 1200 | W30: Closed | X30: 101200Closed | Y30: 0.917 | AC30: <1.25 | AD30: 4.3 | AE30: 9.7 | AF30: 56 | AG30: 2.398 | AH30: 31 | AI30: 5.407 | AJ30: =+((AF30*60*$C$13*365)/(AG30*1000))+((AH30*60*$D$13*365)/(AI30*1000)) -> 584.1158396 | AL30: 120 | AM30: =+AL30/AI30 -> 22.19345293 | AO30: No
U31: 15 | V31: 1200 | W31: Closed | X31: 151200Closed | Y31: 0.93 | AC31: 1.25 < HP <1.75 | AE31: 0.2085 | AF31: 61 | AG31: 2.267 | AH31: 31.9 | AI31: 5.433 | AJ31: =+((AF31*60*$C$13*365)/(AG31*1000))+((AH31*60*$D$13*365)/(AI31*1000)) -> 658.2844099 | AL31: =+AL30+20 -> 140 | AM31: =+AL31/AI31 -> 25.76845205
U32: 20 | V32: 1200 | W32: Closed | X32: 201200Closed | Y32: 0.93 | AC32: 1.75 < HP <2.25 | AE32: 0.2516 | AF32: 66.4 | AG32: 1.951 | AH32: 33.3 | AI32: 5.221 | AJ32: 811.5642467 | AL32: =+AL31+20 -> 160 | AM32: =+AL32/AI32 -> 30.64547022
U33: 25 | V33: 1200 | W33: Closed | X33: 251200Closed | Y33: 0.936 | AC33: 2.25 < HP <2.75 | AE33: 0.3081 | AF33: 66 | AG33: 2.024 | AH33: 34 | AI33: 4.796 | AJ33: 797.2258739 | AL33: 180 | AM33: =+AL33/AI33 -> 37.53127606
U34: 30 | V34: 1200 | W34: Closed | X34: 301200Closed | Y34: 0.941 | AC34: 2.75 < HP <3.00 | AE34: 0.3639 | AF34: 74 | AG34: 1.617 | AH34: 37 | AI34: 4.764 | AJ34: 1075.012402 | AL34: 200 | AM34: =+AL34/AI34 -> 41.98152813
U35: 40 | V35: 1200 | W35: Closed | X35: 401200Closed | Y35: 0.941
A36: Income Qualifier Bonus: | I36: =IF('Applicant Info'!$P$13=TRUE,SUM(I28:J35)*0.1,0) -> 0 | L36: =I37 -> 0 | O36: =CONCATENATE(D37,E37,F37) ->  | U36: 50 | V36: 1200 | W36: Closed | X36: 501200Closed | Y36: 0.945
A37: Total Motors Incentives: | I37: =SUM(I28:J36) -> 0 | U37: 60 | V37: 1200 | W37: Closed | X37: 601200Closed | Y37: 0.95
U38: 75 | V38: 1200 | W38: Closed | X38: 751200Closed | Y38: 0.95
A39: Pool Pump 0.5 - 3 HP (ENERGY STAR® qualified multi-speed or variable-speed) | U39: 100 | V39: 1200 | W39: Closed | X39: 1001200Closed | Y39: 0.954
U40: 125 | V40: 1200 | W40: Closed | X40: 1251200Closed | Y40: 0.954
A41: Horsepower (HP) | E41: ENERGY STAR® | G41: Incentive/Unit | I41: Quantity | J41: Total Incentive | U41: 150 | V41: 1200 | W41: Closed | X41: 1501200Closed | Y41: 0.958
A42: HP ≤ 1.25 | G42: 120 | J42: =IF(E42="Yes",$G42*$I42,IF(E42="No","DNQ",IF(OR(E42="",I42=""),0,""))) -> 0 | U42: 200 | V42: 1200 | W42: Closed | X42: 2001200Closed | Y42: 0.958
A43: 1.25 < HP ≤ 1.75 | G43: 140 | H43: 100 | J43: =IF(E43="Yes",$G43*$I43,IF(E43="No","DNQ",IF(OR(E43="",I43=""),0,""))) -> 0 | U43: 1 | V43: 1800 | W43: Open | X43: 11800Open | Y43: 0.77
A44: 1.75 < HP ≤ 2.25 | C44: 160 | G44: 160 | H44: 100 | J44: 0 | U44: 1.5 | V44: 1800 | W44: Open | X44: 1.51800Open | Y44: 0.84
A45: 2.25 < HP ≤ 2.75 | C45: 180 | G45: 180 | H45: 100 | J45: 0 | U45: 2 | V45: 1800 | W45: Open | X45: 21800Open | Y45: 0.855
A46: 2.75 < HP ≤ 3.0 | C46: 200 | G46: 200 | H46: 100 | J46: 0 | U46: 3 | V46: 1800 | W46: Open | X46: 31800Open | Y46: 0.855
A47: Income Qualifier Bonus: | J47: =IF('Applicant Info'!$P$13=TRUE,SUM(J42:J46)*0.2,0) -> 0 | U47: 5 | V47: 1800 | W47: Open | X47: 51800Open | Y47: 0.865
A48: Total Pool Pumps Incentive: | J48: =SUM(J42:J47) -> 0 | U48: 7.5 | V48: 1800 | W48: Open | X48: 7.51800Open | Y48: 0.885
U49: 10 | V49: 1800 | W49: Open | X49: 101800Open | Y49: 0.895
A50: Variable Speed Drive on HVAC Motors Incentives (when adding VSDs where none existed before) | U50: 15 | V50: 1800 | W50: Open | X50: 151800Open | Y50: 0.902
A51: VSD Application Description | F51: VSD Size (HP) | G51: Incentive Unit | H51: Incentive/ Unit* | I51: Quantity | J51: Incentive ($100/hp) | K51: Recommended increase | L51: kWh | M51: Cost | N51: New | U51: 20 | V51: 1800 | W51: Open | X51: 201800Open | Y51: 0.91
G52: per HP | H52: 100 | J52: =IF($A52="","",$F52*$I52*$H52) ->  | K52: 70 | L52: =1757*F52*I52 -> 0 | M52: =J52/L52 ->  | N52: =P55/L52 ->  | U52: 25 | V52: 1800 | W52: Open | X52: 251800Open | Y52: 0.917
G53: per HP | H53: 100 | J53: =F53*I53*H53 -> 0 | K53: 70 | U53: 30 | V53: 1800 | W53: Open | X53: 301800Open | Y53: 0.917
G54: per HP | H54: 100 | J54: 0 | K54: 70 | U54: 40 | V54: 1800 | W54: Open | X54: 401800Open | Y54: 0.924
G55: per HP | H55: 100 | J55: 0 | K55: 70 | P55: =F52*I52*K52 -> 0 | U55: 50 | V55: 1800 | W55: Open | X55: 501800Open | Y55: 0.93
G56: per HP | H56: 100 | J56: 0 | K56: 70 | U56: 60 | V56: 1800 | W56: Open | X56: 601800Open | Y56: 0.936
G57: per HP | H57: 100 | J57: 0 | K57: 70 | U57: 75 | V57: 1800 | W57: Open | X57: 751800Open | Y57: 0.936
G58: per HP | H58: 100 | J58: 0 | K58: 70 | U58: 100 | V58: 1800 | W58: Open | X58: 1001800Open | Y58: 0.936
G59: per HP | H59: 100 | J59: 0 | K59: 70 | U59: 125 | V59: 1800 | W59: Open | X59: 1251800Open | Y59: 0.941
G60: per HP | H60: 100 | J60: 0 | K60: 70 | U60: 150 | V60: 1800 | W60: Open | X60: 1501800Open | Y60: 0.941
G61: per HP | H61: 100 | J61: 0 | K61: 70 | U61: 200 | V61: 1800 | W61: Open | X61: 2001800Open | Y61: 0.95
A62: Income Qualifier Bonus: | J62: =IF('Applicant Info'!$P$13=TRUE,SUM(J52:J61)*0.1,0) -> 0 | L62: =J63 -> 0 | U62: 1 | V62: 1800 | W62: Closed | X62: 11800Closed | Y62: 0.825
A63: Total VSD Incentives: | J63: =SUM(J52:J62) -> 0 | L63: =L36+L62 -> 0 | U63: 1.5 | V63: 1800 | W63: Closed | X63: 1.51800Closed | Y63: 0.875
A64: *The variable speed drive incentive is calculated based on the horsepower (HP) that is actually being controlled, not necessarily the size of the VSD. This section for HVAC only; for VSD's on non-HVAC equipment, use the Custom tab. | U64: 2 | V64: 1800 | W64: Closed | X64: 21800Closed | Y64: 0.885
U65: 3 | V65: 1800 | W65: Closed | X65: 31800Closed | Y65: 0.895
U66: 5 | V66: 1800 | W66: Closed | X66: 51800Closed | Y66: 0.895
U67: 7.5 | V67: 1800 | W67: Closed | X67: 7.51800Closed | Y67: 0.91
U68: 10 | V68: 1800 | W68: Closed | X68: 101800Closed | Y68: 0.91
U69: 15 | V69: 1800 | W69: Closed | X69: 151800Closed | Y69: 0.917
U70: 20 | V70: 1800 | W70: Closed | X70: 201800Closed | Y70: 0.917
U71: 25 | V71: 1800 | W71: Closed | X71: 251800Closed | Y71: 0.93
U72: 30 | V72: 1800 | W72: Closed | X72: 301800Closed | Y72: 0.93
U73: 40 | V73: 1800 | W73: Closed | X73: 401800Closed | Y73: 0.941
U74: 50 | V74: 1800 | W74: Closed | X74: 501800Closed | Y74: 0.941
U75: 60 | V75: 1800 | W75: Closed | X75: 601800Closed | Y75: 0.945
U76: 75 | V76: 1800 | W76: Closed | X76: 751800Closed | Y76: 0.945
U77: 100 | V77: 1800 | W77: Closed | X77: 1001800Closed | Y77: 0.95
U78: 125 | V78: 1800 | W78: Closed | X78: 1251800Closed | Y78: 0.95
U79: 150 | V79: 1800 | W79: Closed | X79: 1501800Closed | Y79: 0.958
U80: 200 | V80: 1800 | W80: Closed | X80: 2001800Closed | Y80: 0.958
U81: 1 | V81: 3600 | W81: Open | X81: 13600Open | Y81: 0.855
U82: 1.5 | V82: 3600 | W82: Open | X82: 1.53600Open | Y82: 0.865
U83: 2 | V83: 3600 | W83: Open | X83: 23600Open | Y83: 0.865
U84: 3 | V84: 3600 | W84: Open | X84: 33600Open | Y84: 0.895
U85: 5 | V85: 3600 | W85: Open | X85: 53600Open | Y85: 0.895
U86: 7.5 | V86: 3600 | W86: Open | X86: 7.53600Open | Y86: 0.917
U87: 10 | V87: 3600 | W87: Open | X87: 103600Open | Y87: 0.917
U88: 15 | V88: 3600 | W88: Open | X88: 153600Open | Y88: 0.924
U89: 20 | V89: 3600 | W89: Open | X89: 203600Open | Y89: 0.93
U90: 25 | V90: 3600 | W90: Open | X90: 253600Open | Y90: 0.936
U91: 30 | V91: 3600 | W91: Open | X91: 303600Open | Y91: 0.936
U92: 40 | V92: 3600 | W92: Open | X92: 403600Open | Y92: 0.941
U93: 50 | V93: 3600 | W93: Open | X93: 503600Open | Y93: 0.945
U94: 60 | V94: 3600 | W94: Open | X94: 603600Open | Y94: 0.95
U95: 75 | V95: 3600 | W95: Open | X95: 753600Open | Y95: 0.954
U96: 100 | V96: 3600 | W96: Open | X96: 1003600Open | Y96: 0.954
U97: 125 | V97: 3600 | W97: Open | X97: 1253600Open | Y97: 0.954
U98: 150 | V98: 3600 | W98: Open | X98: 1503600Open | Y98: 0.958
U99: 200 | V99: 3600 | W99: Open | X99: 2003600Open | Y99: 0.962
U100: 1 | V100: 3600 | W100: Closed | X100: 13600Closed | Y100: 0.77
U101: 1.5 | V101: 3600 | W101: Closed | X101: 1.53600Closed | Y101: 0.84
U102: 2 | V102: 3600 | W102: Closed | X102: 23600Closed | Y102: 0.855
U103: 3 | V103: 3600 | W103: Closed | X103: 33600Closed | Y103: 0.865
U104: 5 | V104: 3600 | W104: Closed | X104: 53600Closed | Y104: 0.885
U105: 7.5 | V105: 3600 | W105: Closed | X105: 7.53600Closed | Y105: 0.895
U106: 10 | V106: 3600 | W106: Closed | X106: 103600Closed | Y106: 0.902
U107: 15 | V107: 3600 | W107: Closed | X107: 153600Closed | Y107: 0.91
U108: 20 | V108: 3600 | W108: Closed | X108: 203600Closed | Y108: 0.91
U109: 25 | V109: 3600 | W109: Closed | X109: 253600Closed | Y109: 0.917
U110: 30 | V110: 3600 | W110: Closed | X110: 303600Closed | Y110: 0.917
U111: 40 | V111: 3600 | W111: Closed | X111: 403600Closed | Y111: 0.924
U112: 50 | V112: 3600 | W112: Closed | X112: 503600Closed | Y112: 0.93
U113: 60 | V113: 3600 | W113: Closed | X113: 603600Closed | Y113: 0.936
U114: 75 | V114: 3600 | W114: Closed | X114: 753600Closed | Y114: 0.936
U115: 100 | V115: 3600 | W115: Closed | X115: 1003600Closed | Y115: 0.941
U116: 125 | V116: 3600 | W116: Closed | X116: 1253600Closed | Y116: 0.95
U117: 150 | V117: 3600 | W117: Closed | X117: 1503600Closed | Y117: 0.95
U118: 200 | V118: 3600 | W118: Closed | X118: 2003600Closed | Y118: 0.954

Sheet Windows
A2: Applicant: fill in gray fields
A3: Window Incentive (MUST satisfy Energy Star® Criteria; please see specs below)
A4: Region* | B4: Shading Type (Old Windows) | C4: U-Factor Btu/(h sq.ft.°F) | D4: Solar Heat Gain Coefficient (SHGC) | E4: Area of Window Film [ft2] | F4: Incentive/ft2 | G4: ENERGY STAR® | H4: Cooling Type | I4: Heating Type | J4: Incentive | K4: $/kWh | L4: ES Requirement | M4: Base U-Factor | N4: Base SHGC | AM4: Region
F5: =_xlfn.IFNA(IF($B5="Single-pane",VLOOKUP($A5,$P$8:$Q$10,2,FALSE),IF(OR($A5="",$B5=""),"",VLOOKUP($A5,$P$16:$Q$18,2,FALSE))),"") ->  | G5: =IF(OR(A5="",B5="",C5="",D5=""),"",L5) ->  | J5: =IF(OR($C5="",$D5="",$E5="",$G5="",$H5="",$I5=""),"",IF(OR($L5="Do Not Qualify",$H5="NO COOLING"),"DNQ",$F5*$E5)) ->  | K5: =IFERROR(J5/AI5,"") ->  | L5: =_xlfn.IFNA(IF(AND(OR($C5<=0.27,AND($C5<=0.28,$D5>=0.32),AND($C5<=0.28,$D5>=0.37),AND($C5<=0.29,$D5>=0.37),AND($C5<=0.3,$D5>=0.42)),$A5="Santa Fe",$C5=""=FALSE),"Qualified Product",IF(AND(OR($A5="Albuquerque",$A5="Las Cruces"),$C5<=$M5,$D5<=$N5,$C5=""=FALSE,$D5=""=FALSE),"Qualified Product","Do Not Qualify")),"") -> Do Not Qualify | M5: =_xlfn.IFNA(VLOOKUP($A5,$X$8:$Z$13,2,FALSE),"") ->  | N5: =_xlfn.IFNA(VLOOKUP($A5,$X$8:$Z$13,3,FALSE),"") ->  | Q5: Annual kWh Savings: Energy Star Windows Replacing Single-pane Windows | X5: Windows MUST satisfy ENERGY STAR criteria Below | AM5: North -NM
G6: =IF(OR(A6="",B6="",C6="",D6=""),"",L6) ->  | L6: =_xlfn.IFNA(IF(AND(OR($C6<=0.27,AND($C6<=0.28,$D6>=0.32),AND($C6<=0.28,$D6>=0.37),AND($C6<=0.29,$D6>=0.37),AND($C6<=0.3,$D6>=0.42)),$A6="Santa Fe",$C6=""=FALSE),"Qualified Product",IF(AND(OR($A6="Albuquerque",$A6="Las Cruces"),$C6<=$M6,$D6<=$N6,$C6=""=FALSE,$D6=""=FALSE),"Qualified Product","Do Not Qualify")),"") -> Do Not Qualify | M6: =_xlfn.IFNA(VLOOKUP($A6,$X$8:$Z$13,2,FALSE),"") ->  | N6: =_xlfn.IFNA(VLOOKUP($A6,$X$8:$Z$13,3,FALSE),"") ->  | R6: $/kWh | X6: Climate Zone | Y6: U-Factor Btu/(h sq.ft. F) | Z6: Solar Heat Gain Coefficient (SHGC) | AM6: Central -NM
J7: =IF(OR($C7="",$D7="",$E7="",$G7="",$H7="",$I7=""),"",IF(OR($L7="Do Not Qualify",$H7="NO COOLING"),"DNQ",$F7*$E7)) ->  | L7: Do Not Qualify | P7: Climate Zone | Q7: Incentive per Sq. Ft. | R7: Refrigerated Air | S7: Evap Cooling | T7: Electric Resistance + Evap | U7: Heat Pump | AM7: South -NM
L8: Do Not Qualify | P8: Albuquerque | Q8: 1 | R8: 0.1757469244 | S8: 0.5235602094 | T8: 0.3194888179 | U8: 0.1529051988 | X8: Albuquerque | Y8: 0.3 | Z8: 0.4
L9: Do Not Qualify | P9: Santa Fe | Q9: 1 | R9: 0.4784688995 | S9: 1.428571429 | T9: 0.3012048193 | U9: 0.2551020408 | X9: Santa Fe | Y9: 0.27
L10: Do Not Qualify | P10: Las Cruces | Q10: 1 | R10: 0.1792114695 | S10: 0.5347593583 | T10: 0.3246753247 | U10: 0.1557632399 | X10: Santa Fe | Y10: 0.28 | Z10: 0.32
L11: Do Not Qualify | X11: Santa Fe | Y11: 0.29 | Z11: 0.37
L12: Do Not Qualify | X12: Santa Fe | Y12: 0.3 | Z12: 0.42
L13: Do Not Qualify | Q13: Annual kWh Savings: Energy Star Windows Replacing Double-pane Windows | X13: Las Cruces | Y13: 0.3 | Z13: 0.25
K14: =IFERROR(J14/AI14,"") ->  | L14: Do Not Qualify | R14: $/kWh
L15: Do Not Qualify | P15: Climate Zone | Q15: Incentive per Sq. Ft. | R15: Refrigerated Air | S15: Evap Cooling | T15: Electric Resistance + Evap | U15: Heat Pump
L16: Do Not Qualify | P16: Albuquerque | Q16: 0.5 | R16: 0.117370892 | S16: 0.3401360544 | T16: 0.4 | U16: 0.1121076233 | W16: Energy Star? | X16: Shading Coefficient | Y16: Region | Z16: Cooling Type | AA16: Heating Type
A17: Income Qualifier Bonus: | J17: =IF('Applicant Info'!$P$13=TRUE,SUM(J5:J16)*0.1,0) -> 0 | P17: Santa Fe | Q17: 0.5 | R17: 0.3205128205 | S17: 0.9259259259 | T17: 8.333333333 | U17: 0.2525252525 | W17: Yes | X17: Single-pane | Y17: Albuquerque | Z17: Refrigerated Air | AA17: Gas Heat
A18: Total Window Film Incentives: | J18: =SUM($J$5:$J$17) -> 0 | P18: Las Cruces | Q18: 0.5 | R18: 0.1196172249 | S18: 0.3816793893 | T18: 0.4587155963 | U18: 0.1141552511 | W18: No | X18: Double-pane | Y18: Santa Fe | Z18: Evap Cooling | AA18: Electric Resistance
A19: *Please refer to spec sheets for information about region and Energy Star® Criteria. | Y19: Las Cruces | Z19: NO COOLING | AA19: Heat Pump

Sheet Custom
D1: CUSTOM INCENTIVES
A2: Applicant: fill in gray fields | D2: *Please attach supporting documentation as described in the specifications*
A3: Item 1
A4: Description | H4: $/kWh | I4: Subtotal
E5: Annual kWh Savings | H5: 0.08 | I5: =IF(AND(G5>0,G11>0,G13>0),MIN(G5*H5,G11,0.5*G13),0) -> 0
E7: kW Savings
E9: Annual Operating Hours | L9: =IF(ISNUMBER(I5)=TRUE,I5,0) -> 0
E11: Incremental Measure Cost
E13: Total Project Cost
A15: Item 2
A16: Description | H16: $/kWh | I16: Subtotal
E17: Annual kWh Savings | H17: 0.08 | I17: =IF(AND(G17>0,G23>0,G25>0),MIN(G17*H17,G23,0.5*G25),0) -> 0
E19: kW Savings
E21: Annual Operating Hours | L21: =IF(ISNUMBER(I17)=TRUE,I17,0) -> 0
E23: Incremental Measure Cost
E25: Total Project Cost
A27: Item 3
A28: Description | H28: $/kWh | I28: Subtotal
E29: Annual kWh Savings | H29: 0.08 | I29: =IF(AND(G29>0,G35>0,G37>0),MIN(G29*H29,G35,0.5*G37),0) -> 0
E31: kW Savings
E33: Annual Operating Hours | L33: =IF(ISNUMBER(I29)=TRUE,I29,0) -> 0
E35: Incremental Measure Cost
E37: Total Project Cost
A39: Item 4
A40: Description | H40: $/kWh | I40: Subtotal
E41: Annual kWh Savings | H41: 0.08 | I41: =IF(AND(G41>0,G47>0,G49>0),MIN(G41*H41,G47,0.5*G49),0) -> 0
E43: kW Savings
E45: Annual Operating Hours | L45: =IF(ISNUMBER(I41)=TRUE,I41,0) -> 0
E47: Incremental Measure Cost
E49: Total Project Cost
A51: Income Qualifier Bonus: | I51: =IF('Applicant Info'!$P$13=TRUE,L51*0.1,0) -> 0 | L51: =L9+L21+L33+L45 -> 0
A52: Total Custom Incentives: | I52: =SUM(I51:L51) -> 0
A54: Incremental measure cost (IMC) is the difference between the cost of an energy-efficient piece of equipment and a new
A55: standard-efficiency piece of equipment. The IMC of energy-efficient equipment installed before an old piece of equipment
A56: reaches the end of its life (such as lighting equipment) generally is equal to the total cost of the energy-efficient equipment,
A57: including labor. The IMC of energy-efficient equipment installed at or near the end of life of an old piece of equipment (such as
A58: chillers, motors, air-conditioning units) generally is equal to the difference in cost between the energy-efficient equipment and
A59: the new standard-efficiency piece of equipment, not including labor.
A60: The rebate will be shown as 100% of the Incremental Measure Cost or 50% of the Total Project Cost. All Custom measures subject to approval using the Utility Cost Test (UCT). Submit calculations and costs for assistance.
A63: Custom Specifications
